Workbook

Sheet Datenbank
A1: Preisänderung für morgen | K1: =L1-M1-N1 -> 8 | L1: =COUNTIF(G:G,TODAY()) -> 8
A2: ID | B2: Preis | C2: EK | D2: Aktion | E2: Artikel | F2: Sorte | G2: LetzteAenderung | H2: AenderungEK | J2: =IF(K1<9,"1",IF(AND(K1>8,K1<17),"2",IF(AND(K1>16,K1<25),"3",IF(AND(K1>24,K1<33),"4","")))) -> 1
A3: 58 | B3: 0.69 | C3: 0.53 | D3: 1 | E3: Grapefruit | G3: 2025-07-12
A4: 68 | B4: 3.33 | C4: 2.5 | D4: 1 | E4: Vorwiegend festkochend | F4: Sorte:siehe Etikett | G4: 2025-07-12
A5: 92 | B5: 0.33 | C5: 0.22 | D5: 1 | E5: Limette | F5: "Tahiti" | G5: 2025-07-12
A6: 716 | B6: 0.77 | C6: 0.5 | D6: 1 | E6: Chinakohl | F6: "Pfalz" | G6: 2025-07-15
A7: 758 | B7: 0.99 | C7: 0.65 | D7: 1 | E7: Weißkraut | F7: "Pfalz" | G7: 2025-07-12
A8: 759 | B8: 0.99 | C8: 1.1 | D8: 1 | E8: Rotkraut | F8: "Pfalz" | G8: 2025-07-12
A9: 1 | B9: 1.19 | C9: 0.65 | E9: Trauben gepackt
A10: 2 | B10: 0.99 | C10: 0.5 | E10: Bergnektarinen gepackt
A11: 3 | B11: 1.19 | C11: 0.65 | E11: Trauben gepackt | G11: 2025-07-15
A12: 4 | B12: 2.99 | C12: 1.5 | E12: Bergpfirsiche gepackt | G12: 2025-07-15
A13: 5
A14: 6
A15: 7 | B15: 1.99 | C15: 1.3 | E15: Orangen Netz | G15: 2025-06-06
A16: 8 | B16: 4.77 | C16: 4 | E16: Rothaus | F16: Classic oder Alkoholfrei | G16: 2025-05-03
A17: 9 | B17: 0
A18: 10 | B18: 2.99 | C18: 1.6 | E18: trauben rose ziplook | F18: Mini Eiertomaten | G18: 2025-03-12
A19: 11 | B19: 0.99 | C19: 1 | E19: Grapefruit gepackt | F19: Sorte: Star Ruby
A20: 12 | B20: 0
A21: 13 | B21: 0
A22: 14 | B22: 0
A23: 15 | B23: 0.99 | C23: 0.6 | G23: 2024-08-12T20:58:18
A24: 16 | B24: 0
A25: 17 | B25: 0
A26: 18 | B26: 0 | E26: Achtung!!!! | G26: 2025-07-14
A27: 19 | B27: 21 | E27: blubb
A28: 20 | B28: 0.69 | C28: 0.42 | E28: Kopfsalat | G28: 2025-07-15
A29: 21 | B29: 0.99 | C29: 0.525 | E29: Eisbergsalat | G29: 2025-07-15
A30: 22 | B30: 0.99 | C30: 0.67 | E30: Endivien | F30: "Pfalz" | G30: 2025-07-12
A31: 23 | B31: 1.59 | C31: 1 | E31: Kaki | F31: Sorte: Persimon | G31: 2025-07-03
A32: 24 | B32: 0.99 | C32: 0.35 | E32: Krull | G32: 2025-07-12
A33: 25 | B33: 1.99 | C33: 1 | E33: Romanasalat | G33: 2025-04-09
A34: 26 | B34: 1.29 | C34: 0.8 | E34: Bund - Möhren | F34: "Pfalz" | G34: 2025-07-01
A35: 27 | B35: 0.99 | C35: 0.35 | E35: Eichblatt | G35: 2025-07-12
A36: 28 | B36: 9 | E36: kiste kopfsalat | G36: 2024-08-02T16:23:00
A37: 29 | B37: 1.79 | C37: 1.25 | E37: Paprika Mix | F37: Sorte:Color | G37: 2025-06-30
A38: 30 | B38: 0.99 | C38: 0.48 | E38: Paprika Rot gepackt | G38: 2025-05-22
A39: 31 | B39: 0
A40: 32 | B40: 0
A41: 33 | B41: 0
A42: 34 | B42: 1.99 | C42: 1.2 | E42: E - Schlotten | G42: 2025-05-14
A43: 35 | B43: 1.49 | C43: 0.93 | E43: Zwiebel gelb Netz | G43: 2025-07-15
A44: 36 | B44: 4.99 | C44: 4 | E44: Zwiebel gelb Netz | G44: 2025-06-05
A45: 37 | B45: 0.79 | C45: 0.5 | E45: Zwiebelschlotten | F45: "Pfalz" | G45: 2025-07-15
A46: 38 | B46: 3.99 | C46: 0.88 | E46: Zuckererbsen
A47: 39 | B47: 0.69 | C47: 0.5 | E47: Feigen | F47: Sorte:"Brogiotto Nero" | G47: 2025-06-12
A48: 40 | B48: 0.99 | C48: 1 | E48: Artischocken | G48: 2025-03-04
A49: 41 | B49: 0
A50: 42 | B50: 0
A51: 43 | B51: 1.49 | C51: 0.8 | E51: Rettich weiß | F51: "Pfalz" | G51: 2025-06-21
A52: 44 | B52: 0.69 | C52: 0.43 | E52: Rettich Rot | G52: 2025-05-09
A53: 45 | B53: 1.59 | C53: 0.9 | E53: Blumenkohl | G53: 2025-07-16 | H53: 2025-07-16
A54: 46 | B54: 0.59 | C54: 0.3 | E54: Kohlrabi | F54: "Pfalz" | G54: 2025-07-10
A55: 47 | B55: 1.69 | C55: 0.975 | E55: Knoblauch gepackt | G55: 2025-05-15
A56: 48 | B56: 0.99 | C56: 0.65 | E56: Kokosnuss | G56: 2024-10-24
A57: 49 | B57: 1.19 | C57: 0.62 | E57: Tomaten Schale | G57: 2025-07-15
A58: 50 | B58: 0
A59: 51 | B59: 1.99 | C59: 1.5 | E59: Karambole | F59: Sorte: Sternenfrucht
A60: 52 | B60: 2.99 | C60: 1.85 | E60: Kartoffel fest | F60: Sorte: Siehe Etikett | G60: 2025-07-15
A61: 53 | B61: 0 | G61: 2024-09-24
A62: 54 | B62: 3.99 | C62: 3 | E62: Papaya | G62: 2025-07-09
A63: 55 | B63: 0
A64: 56 | B64: 0.55 | C64: 0.3 | E64: Kresse | G64: 2025-06-21
A65: 57 | B65: 0.69 | C65: 0.4 | E65: Zitronen | F65: Sorte: Limon Verna | G65: 2025-06-21
A66: 59 | B66: 1.59 | C66: 0.8 | E66: Clementine Netz | F66: "Clemenules" | G66: 2025-05-05
A67: 60 | B67: 0.99 | C67: 0.6 | E67: Orangen Netz | F67: Sorte:Navel | G67: 2025-06-11
A68: 61 | B68: 0.99 | C68: 0.7 | E68: Salatherzen | G68: 2025-07-15
A69: 62 | B69: 1.99 | C69: 1.45 | E69: Kartoffel mehlig | F69: Sorte: siehe Etikett | G69: 2025-07-12
A70: 63 | B70: 1.29 | C70: 0.6 | E70: Rucola | G70: 2025-07-15
A71: 64 | B71: 2.99 | C71: 1.7 | E71: Clementinen Steige | F71: Sorte: Clemenules | G71: 2025-01-17
A72: 65 | B72: 1.99 | C72: 1 | E72: Erdbeeren gepackt | G72: 2025-04-23
A73: 66 | B73: 1.99 | C73: 1.4 | E73: Kartoffel vorwiegend | F73: Sorte: siehe Etikett | G73: 2025-07-12
A74: 67 | B74: 0
A75: 69 | B75: 2.49 | C75: 1.85 | E75: Zuckermais | G75: 2025-05-24
A76: 70 | B76: 0
A77: 71 | B77: 0
A78: 72 | B78: 1.99 | C78: 1 | E78: Sellerie mit Grün | G78: 2025-07-11
A79: 73 | B79: 1.49 | C79: 0.8 | E79: Bleichsellerie | F79: neue ernte "Pfalz" | G79: 2025-06-21
A80: 74 | B80: 0 | G80: 2025-04-23
A81: 75 | B81: 1 | C81: 0.5 | E81: Peterle Krauß | G81: 2025-04-25
A82: 76 | B82: 2 | C82: 0.975 | E82: Dill | G82: 2025-04-26
A83: 77 | B83: 1.39 | C83: 1 | E83: Suppengrün
A84: 78 | B84: 1.2 | C84: 0.7 | E84: Schnittlauch | G84: 2025-04-25
A85: 79 | B85: 0
A86: 80 | B86: 0.29 | C86: 0.35 | E86: Kiwi grün | F86: Sorte: Hayward Green | G86: 2025-07-12
A87: 81 | B87: 1.59 | C87: 1 | E87: Mango | F87: "Palmer" | G87: 2025-07-10
A88: 82 | B88: 1.99 | C88: 1.25 | E88: Honigmelone | F88: Honig | G88: 2025-07-08
A89: 83 | B89: 1.99 | C89: 1.25 | E89: Cantaloup Melone | F89: "Carante" | G89: 2025-07-08
A90: 84 | B90: 1.99 | C90: 1.6 | E90: Galia-Melone | F90: Galia | G90: 2025-06-26
A91: 85 | B91: 3.99 | C91: 2.5 | E91: Ananas | G91: 2025-06-21
A92: 86 | B92: 2.99 | C92: 1.5 | E92: Mini Wassermelone | F92: kernarm | G92: 2025-07-03
A93: 87 | B93: 0.99 | C93: 0.64 | E93: Gurken | G93: 2025-07-15 | H93: 2025-07-16
A94: 88 | B94: 0.49 | C94: 0.3 | E94: Radieschen | F94: "Pfalz" | G94: 2025-07-15
A95: 89 | B95: 2.99 | C95: 3 | E95: Zuckermelone | G95: 2024-09-10
A96: 90 | B96: 0
A97: 91 | B97: 4.49 | C97: 3.4 | E97: Grüne Sosse | F97: Sorte: Echte Frankfurter | G97: 2025-04-10
A98: 93 | B98: 0
A99: 94 | B99: 0
A100: 95 | B100: 0
A101: 96 | B101: 0
A102: 97 | B102: 0
A103: 98 | B103: 0
A104: 99 | B104: 0
A105: 100 | B105: 1.99 | C105: 1.394 | E105: Bio Bananen | F105: DE-ÖKO-006 | G105: 2025-02-10
A106: 101 | B106: 2.99 | C106: 1.7 | E106: Spinat | G106: 2025-06-12
A107: 102 | B107: 1.39 | C107: 1 | E107: Rosenkohl gepackt | G107: 2024-11-22
A108: 103 | B108: 2.49 | C108: 1.477 | E108: Kiwi Grün Bio 4er | F108: DE-ÖKO-006 | G108: 2025-03-05
A109: 104 | B109: 1.59 | C109: 1.082 | E109: Kiwi Gold Bio 3er
A110: 105 | B110: 3.49 | C110: 2.05 | E110: Wildkräutersalat | G110: 2025-04-08
A111: 106 | B111: 3.49 | C111: 2.2 | E111: Babyleaf-Mix | G111: 2025-02-06
A112: 107 | B112: 0
A113: 108 | B113: 0
A114: 109 | B114: 1.59 | C114: 0.96 | E114: Bio Gurke | F114: DE-ÖKO-006 | G114: 2025-03-17
A115: 110 | B115: 2.22 | C115: 1.227 | E115: Zucchini Bio | F115: DE-ÖKO-006 | G115: 2025-03-17
A116: 111 | B116: 1.99 | C116: 1.312 | E116: Bio Karotten lose | F116: DE-ÖKO-005 | G116: 2025-06-11
A117: 112 | B117: 1.99 | C117: 1.312 | E117: Karotte Bio | G117: 2025-06-11
A118: 113 | B118: 1.99 | C118: 1.231 | E118: Aubergine Bio
A119: 114 | B119: 1.49 | C119: 0.967 | E119: Snack Karotte Bio
A120: 115 | B120: 0
A121: 116 | B121: 0
A122: 117 | B122: 0
A123: 118 | B123: 0
A124: 119 | B124: 0
A125: 120 | B125: 2.99 | C125: 1.559 | E125: Rispentomaten Mini Bio | F125: DE-ÖKO-005 | G125: 2025-03-17
A126: 121 | B126: 0
A127: 122 | B127: 0
A128: 123 | B128: 0.01 | E128: Achtung Paprika Rot hat
A129: 124 | B129: 0 | E129: Wer Bio Gala hat | F129: bitte mit Santana Tauschen
A130: 125 | B130: 0 | E130: Bio Mango
A131: 126 | B131: 0 | E131: Bitte Feldsalat | F131: mit Salatherzen tauschen
A132: 127 | B132: 0
A133: 128 | B133: 0
A134: 129 | B134: 0
A135: 130 | B135: 2.49 | C135: 1.608 | E135: Bio Champignon | F135: DE-ÖKO-005
A136: 131 | B136: 0.69 | C136: 0.433 | E136: Kresse mix Bio
A137: 132 | B137: 2.22 | C137: 1.433 | E137: Bio Snackpaprika | G137: 2025-03-17
A138: 133 | B138: 6.99 | C138: 5 | E138: Paprika Rot Bio | F138: DE-ÖKO-005
A139: 134 | B139: 1.29 | C139: 0.803 | E139: Bio Chili Rot | F139: ES-ECO-019-CT
A140: 135 | B140: 2.79 | C140: 1.854 | E140: Paprika Spitz Bio | F140: DE-ÖKO-006 | G140: 2025-03-17
A141: 136 | B141: 3.69 | C141: 2.495 | E141: Paprika Rot Bio | G141: 2025-03-17
A142: 137 | B142: 1.49 | C142: 0.96 | E142: Chili Mix Bio | G142: 2025-01-06
A143: 138 | B143: 0
A144: 139 | B144: 0
A145: 140 | B145: 0
A146: 141 | B146: 1.99 | C146: 1.2 | E146: Kurkuma Bio | F146: DE-ÖKO-006 | G146: 2025-03-12
A147: 142 | B147: 0.79 | C147: 0.466 | E147: Ingwer Bio | F147: DE-ÖKO-006
A148: 143 | B148: 0
A149: 144 | B149: 0
A150: 145 | B150: 2.59 | C150: 1.535 | E150: Aprikosen Bio | F150: Sorte: siehe Etikett | G150: 2024-07-04T13:01:03
A151: 146 | B151: 2.99 | C151: 1.912 | E151: Pfirsich Platt Bio
A152: 147 | B152: 0
A153: 148 | B153: 0
A154: 149 | B154: 0 | G154: 2024-12-11
A155: 150 | B155: 2.79 | C155: 1.773 | E155: Orangen Bio | G155: 2025-01-06
A156: 151 | B156: 3.79 | C156: 2.011 | E156: Mandarinen Bio | G156: 2025-01-06
A157: 152 | B157: 2.99 | C157: 1.928 | E157: Spaghettikürbis Bio | G157: 2024-09-13
A158: 153 | B158: 2.29 | C158: 1.403 | E158: Bio Butternutkürbis | G158: 2025-03-17
A159: 154 | B159: 1.59 | C159: 1 | E159: Grapefruit Bio
A160: 155 | B160: 3.99 | E160: Apfel Elstar Bio | F160: DE-ÖKO-003
A161: 156 | B161: 3.29 | C161: 2.036 | E161: Apfel Gala Bio
A162: 157 | B162: 3.49 | C162: 1.765 | E162: Apfel Santana Bio | F162: DE-ÖKO-006 | G162: 2024-09-13
A163: 158 | B163: 3.29 | C163: 2.175 | E163: Cripps Pink Bio | G163: 2024-07-04T13:01:18
A164: 159 | B164: 2.39 | C164: 1.567 | E164: Granatapfel Bio
A165: 160 | B165: 2.29 | C165: 1.419 | E165: Salatherzen Bio | F165: DE-ÖKO-034
A166: 161 | B166: 1.89 | C166: 1.214 | E166: Feldsalat Bio | G166: 2025-03-17
A167: 162 | B167: 0
A168: 163 | B168: 0
A169: 164 | B169: 2.49 | C169: 1.682 | E169: Conference Birne Bio | G169: 2025-03-17
A170: 165 | B170: 2.99 | C170: 1.928 | E170: Bio Pflaume | F170: Sorte: Siehe Etikett | G170: 2024-09-13
A171: 166 | B171: 2.29 | C171: 1.485 | E171: Bio Birne | F171: Sorte: Limonera | G171: 2024-11-12
A172: 167 | B172: 0
A173: 168 | B173: 0
A174: 169 | B174: 0
A175: 170 | B175: 2.19 | C175: 1.411 | E175: Broccoli Bio | G175: 2025-03-17
A176: 171 | B176: 2.29 | C176: 1.411 | E176: Pastinaken Bio | G176: 2024-12-17
A177: 172 | B177: 1.69 | C177: 1.082 | E177: Zwiebel Schalotte Bio
A178: 173 | B178: 0
A179: 174 | B179: 0
A180: 175 | B180: 3.49 | C180: 2.175 | E180: Kartoffel Bio | F180: festkochend | G180: 2025-03-17
A181: 176 | B181: 0
A182: 177 | B182: 0
A183: 178 | B183: 0
A184: 179 | B184: 0
A185: 180 | B185: 1.89 | C185: 1.09 | E185: Zitrone Bio | F185: ES-ECO-020-CV | G185: 2025-04-04
A186: 181 | B186: 0.69 | C186: 0.409 | E186: Limette Bio | F186: DE-ÖKO-006
A187: 182 | B187: 0.49 | C187: 0.25 | E187: Zitrone Bio | G187: 2025-05-26
A188: 183 | B188: 0
A189: 184 | B189: 0
A190: 185 | B190: 1.99 | C190: 1.288 | E190: Mango Bio Faserarm | G190: 2025-03-17
A191: 186 | B191: 0
A192: 187 | B192: 0
A193: 188 | B193: 0
A194: 189 | B194: 0
A195: 190 | B195: 3.99 | C195: 2.545 | E195: Bio Hokkaido | G195: 2025-03-17
A196: 191 | B196: 2.49 | C196: 1.535 | E196: Zuckermais Bio | F196: DE-ÖKO-006 | G196: 2024-10-08
A197: 192 | B197: 1.69 | C197: 1.05 | E197: Rote Bete gekocht Bio
A198: 193 | B198: 0
A199: 194 | B199: 0
A200: 195 | B200: 0
... 808 more rows

Sheet Übertrag (hidden)
A2: 45 | B2: 1.59 | C2: 0.9 | E2: Blumenkohl
A3: 705 | B3: 2.69 | C3: 2 | E3: Mini - Rispen | F3: Sorte: Rote Perle
A4: 722 | B4: 0.55 | C4: 0.28 | E4: Kiwi Gold
A5: 748 | B5: 1.59 | C5: 0.9 | E5: Pfifferling | F5: Sorte; Cantharellus
A6: 781 | B6: 0.55 | C6: 0.33 | E6: Avocado | F6: Sorte: Hass
A7: 817 | B7: 2.99 | C7: 1.99 | E7: Pink Lady
A8: 860 | B8: 2.99 | C8: 2 | E8: Nektarinen
A9: 867 | B9: 2.99 | C9: 1.5 | E9: Bergpfirsich | F9: Sorte:Paraguayos

Sheet Obst (hidden)
A1: ID | B1: Artikel | C1: Herkunft | D1: Klasse | E1: Sorte | F1: Beschreibung | G1: PLU Wiege | H1: PLU Stück | I1: Gewicht | J1: Einheit | K1: Preis | L1: Verpackung | M1: Neue Ernte | N1: Behandelt | O1: Aktion | P1: Spalte1 | Q1: Spalte2
A2: 1 | B2: Trauben gepackt | I2: 500 | J2: g | K2: 1.19 | L2: Schale
A3: 2 | B3: Bergnektarinen gepackt | I3: 500 | J3: g | K3: 0.99
A4: 3 | B4: Trauben gepackt | J4: 10 | K4: 1.19
A5: 4 | B5: Bergpfirsiche gepackt | I5: 1000 | J5: g | K5: 2.99 | L5: Schale
A6: 5 | I6: 1 | J6: 16
A7: 6 | J7: 5
A8: 7 | B8: Orangen Netz | J8: 20 | K8: 1.99
A9: 8 | B9: Rothaus | C9: Tannenzäplfe | E9: Classic oder Alkoholfrei | F9: Bester Aromahopfen aus Tettnang und der Hallertau ebenso wie heimisches Malz aus Sommergerste und reinstes Quellwasser aus dem Hochschwarzwald verleihen dem Rothaus Tannenzäpfle seinen einzigartig würzigen und frischen Geschmack. | I9: 1.9 | J9: L | K9: 4.77 | L9: Packung | M9: 6x0,33l
A10: 9 | K10: 0
A11: 10 | B11: trauben rose ziplook | E11: Mini Eiertomaten | G11: 80 | I11: 500 | J11: g | K11: 2.99 | L11: Packung
A12: 11 | B12: Grapefruit gepackt | C12: "Spanien" | D12: Kl. II | E12: Sorte: Star Ruby | F12: Grapefruits schmecken sehr saftig und säuerlich bis süß-säuerlich, je nach Sorte auch leicht bis deutlich bitter. Übrigens: Je dünner und glatter die Schale, desto lieblicher schmeckt die sogenannte Citrus paradisi. | I12: 1.5 | J12: kg | K12: 0.99 | L12: Netz | N12: Schale behandelt
A13: 12 | K13: 0
A14: 13 | K14: 0
A15: 14 | K15: 0
A16: 15 | C16: Zum Testen ob es geht | K16: 0.99
A17: 16 | K17: 0
A18: 17 | K18: 0
A19: 18 | B19: Achtung!!!! | C19: Bitte text lesen!!!!! | F19: Bitte die 700 Nehmen für die Strauchtomaten im Aufbau!!!!!! | K19: 0
A20: 19 | B20: blubb | K20: 21
A21: 20 | B21: Kopfsalat | C21: "Deutschland" | D21: Kl. II | F21: Kopfsalat enthält unter anderem Zitronen- und andere Säuren. Das sorgt für frischen Geschmack. Daneben kommen Vitamin C, Folsäure und Beta-Carotin, das Provitamin A, in ihm vor. Der Körper kann es in Vitamin A umwandeln. | H21: 20 | K21: 0.69 | L21: Stück
A22: 21 | B22: Eisbergsalat | C22: "Deutschland" | D22: Kl. II | F22: Eisbergsalat besteht hauptsächlich aus Wasser, deshalb schmeckt er frisch und knackig. Er ist auch bekannt als "Krachsalat". Eisbergsalat enthält nur 13 Kilokalorien pro 100 Gramm. An Vitaminen kommt unter anderem Folsäure in ihm vor. | H22: 21 | K22: 0.99 | L22: Stück | M22: Pfalz
A23: 22 | B23: Endivien | C23: "Deutschland" | D23: Kl. II | E23: "Pfalz" | F23: Endivien sind Blattsalate aus der Verwandtschaft von Zichorie, Chicorée und Radicchio. Es gibt glattblättrige Sorten, die als Eskariol bezeichnet werden, und krausblättrige Sorten, die man Frisée oder Petticoat-Salate nennt. | H23: 22 | K23: 0.99 | L23: Stück | M23: neue Ernte
A24: 23 | B24: Kaki | C24: "South-Afrika" | E24: Sorte: Persimon | F24: Kakis sind orangefarbene, etwa tomatengroße Früchte, die ursprünglich aus Asien kommen. Sie haben in Deutschland hauptsächlich im Winter Saison – meist sind sie in der Zeit von Oktober bis Dezember erhältlich. | H24: 23 | K24: 1.59 | L24: Stück
A25: 24 | B25: Krull | C25: "Deutschland" | D25: Kl. II | F25: Frisch, mild, mit einem leicht nussartigen Geschmack und meist ohne Bitterstoffe, so kommt der Krull daher. Er ist Bestandteil vieler Mix-Salate im Handel. Entstanden ist der Krauskopf aus einer Kreuzung zwischen Kopfsalat und Eichblattsalat. | H25: 24 | K25: 0.99 | L25: Stück | M25: neue Ernte
A26: 25 | B26: Romanasalat | C26: "Spanien" | D26: Kl. II | F26: Romana-Salat, auch Römischer Salat und Bindesalat genannt, besteht hauptsächlich aus Wasser und hat relativ wenig Kalorien. Er enthält aber Vitamin C, Folsäure sowie Kalium und Kalzium. | H26: 25 | K26: 1.99 | L26: Stück
A27: 26 | B27: Bund - Möhren | C27: "Deutschland" | D27: Kl. II | E27: "Pfalz" | F27: Die Bundmöhren stellen dabei eine besondere Angebotsform dar, denn hierbei wird die Wurzel zusammen mit dem Laub vermarktet. Das grüne Laub ist ein untrügliches Zeichen für Frische. | H27: 26 | K27: 1.29 | L27: Stück | M27: Neue Ernte
A28: 27 | B28: Eichblatt | C28: "Deutschland" | D28: Kl. II | F28: Der rote Eichblattsalat ist reichhaltig an Beta-Carotin, Vitamin B1, Vitamin B2, Vitamin B6 sowie Vitamin C. Außerdem enthält der Salat Kalium, Phosphor und blutbildendes Eisen. | H28: 27 | K28: 0.99 | L28: Stück | M28: neue Ernte
A29: 28 | B29: kiste kopfsalat | C29: deutsch 12 köpfe | F29: kiste +3,86 pfand | H29: 28 | K29: 9 | M29: plu 28
A30: 29 | B30: Paprika Mix | C30: "Spanien" | D30: Kl. II | E30: Sorte:Color | F30: Der Paprika Mix mit einer roten, einer gelben und einer orangenen Paprika ist ein Klassiker in der Küche. Ob gegart oder knackig frisch für einen Salat, sie ist vielseitig einsetzbar. | H30: 29 | I30: 400 | J30: g | K30: 1.79 | L30: Packung
A31: 30 | B31: Paprika Rot gepackt | C31: "Spanien" | D31: Kl. II | F31: Die Antwort lautet: sehr gesund. Denn Paprika enthalten wertvolle Nährstoffe und sind wahre Vitaminbomben. Schon 100 g, also eine mittelgroße Paprika, liefern den gesamten Tagesbedarf an Vitamin C und damit das dreifache von | H31: 29 | I31: 500 | J31: g | K31: 0.99 | L31: Packung
A32: 31 | K32: 0
A33: 32 | K33: 0
A34: 33 | K34: 0
A35: 34 | B35: E - Schlotten | C35: "Frankreich" | F35: Schalotten haben ein feineres, weniger scharfes, eher süßliches und würzigeres Aroma als die meisten Speisezwiebelsorten. Zum scharfen Anbraten eignen sie sich nur bedingt, weil sie dadurch bitter und schal werden. | H35: 34 | I35: 100 | J35: g | K35: 1.99 | L35: Packung | M35: Neu Ernte
A36: 35 | B36: Zwiebel gelb Netz | C36: "Deutschland" | D36: Kl. II | F36: Die Herkunft der Zwiebel ist schwer zu bestimmen, da sie eine alte und sehr weit verbreitete Kulturpflanze ist. Man geht davon aus, dass sie aus Zentralasien stammt. Schon im alten Ägypten wurde die Zwiebel als Kulturpflanze erwähnt. | H36: 35 | J36: kg | K36: 1.49 | L36: Netz | M36: Neue Ernte
A37: 36 | B37: Zwiebel gelb Netz | C37: "Italien" | D37: Kl. II | F37: Die Herkunft der Zwiebel ist schwer zu bestimmen, da sie eine alte und sehr weit verbreitete Kulturpflanze ist. Man geht davon aus, dass sie aus Zentralasien stammt. Schon im alten Ägypten wurde die Zwiebel als Kulturpflanze erwähnt. | H37: 36 | I37: 4 | J37: kg | K37: 4.99 | L37: Netz | M37: Neue Ernte
A38: 37 | B38: Zwiebelschlotten | C38: "Deutschland" | E38: "Pfalz" | F38: Neben der Verwendung als Würze für Fleischgerichte, Suppen und Eintöpfe gibt es auch Klassiker unter den Zwiebelrezepten, wie die französische Zwiebelsuppe oder den deftigen Zwiebelkuchen. | H38: 37 | K38: 0.79 | L38: Stück | M38: neue Ernte
A39: 38 | B39: Zuckererbsen | C39: siehe Verpackung | D39: Kl. II | F39: Rohe Zuckerschoten sind extrem lecker und knackig. Sie können sofort verzehrt oder als Garnierung zu Salaten oder Suppen gegeben werden. Dazu müssen die Schoten nur gewaschen und gereinigt werden. | H39: 38 | I39: 250 | J39: g | K39: 3.99 | L39: Packung
A40: 39 | B40: Feigen | C40: "Italien" | D40: Kl. II | E40: Sorte:"Brogiotto Nero" | F40: Feigen haben einen köstlichen Geschmack und ein Aroma, das dem von Rosinen ähnelt, aber man kann den Unterschied erkennen, da man den Geschmack und das Aroma von Feigen nicht nachahmen kann. | H40: 39 | K40: 0.69 | L40: Stück
A41: 40 | B41: Artischocken | C41: "Türkei" | D41: Kl. II | F41: Der Geschmack der Artischocke ist feinherb und zartbitter, aber auch nussig. Deswegen lässt sich das Gemüse auch sehr vielfältig in der Küche verwenden. Der essbare Blütenkopf besteht aus dem Artischockenherz. | H41: 40 | K41: 0.99 | L41: Stück
A42: 41 | K42: 0
A43: 42 | K43: 0
A44: 43 | B44: Rettich weiß | C44: "Deutschland" | D44: Kl. II | E44: "Pfalz" | F44: Der Rettich ist weiß, dessen vorteilhafte Eigenschaften und Kontraindikationen leicht nachprüfbar sind, und weist eine ausgewogene chemische Zusammensetzung auf. | H44: 43 | K44: 1.49 | L44: Stück | M44: Neue Ernte
A45: 44 | B45: Rettich Rot | C45: "Deutschland" | D45: Kl. II | F45: Die rote Farbe des Rettichs hat keinen Einfluss auf den Geschmack, die Inhaltsstoffe sind vergleichbar mit denen anderer Rettichsorten. Ebenso wie die anderen Rettichsorten schmeckt der rote Rettich herzhaft-würzig. | H45: 44 | K45: 0.69 | L45: Stück
A46: 45 | B46: Blumenkohl | C46: "Deutschland" | D46: Kl. II | F46: Blumenkohl, auch Karfiol oder Minarett-Kohl genannt, verdankt seinen Namen einer botanischen Besonderheit: Der Kohlkopf ist der noch nicht geschossene Blütenstand der Pflanze. | H46: 45 | K46: 1.59 | L46: Stück | M46: Neue Ernte
A47: 46 | B47: Kohlrabi | C47: "Deutschland" | D47: Kl. II | E47: "Pfalz" | F47: Kohlrabi gilt als typisch deutsches Gemüse und in vielerlei Hinsicht als gesund. In der heimischen Küche findet die Knolle daher oft und in zahlreichen Varianten Verwendung. | H47: 46 | K47: 0.59 | L47: Stück | M47: neu Ernte
A48: 47 | B48: Knoblauch gepackt | C48: "China" | D48: Kl. II | F48: Knoblauch ist eine ausdauernde, frostharte und krautige Pflanze aus der Familie der Amaryllisgewächse (Amaryllidaceae), wird allerdings nur einjährig überwinternd kultiviert. | H48: 47 | I48: 250 | J48: g | K48: 1.69 | L48: Packung
A49: 48 | B49: Kokosnuss | C49: Afrika | D49: Kl. II | F49: Das weiße Fleisch der Kokosnuss schmeckt nussähnlich. Das im Inneren steckende Kokoswasser hingegen hat einen süßlichen und zugleich leicht säuerlichen Geschmack. Tatsächlich schmeckt das Fruchtfleisch bitter und ist ungenießbar. | H49: 48 | K49: 0.99 | L49: Stück
A50: 49 | B50: Tomaten Schale | C50: Herkunft: siehe Etikett | D50: Kl. II | F50: Die winzigen Cherrytomaten werden oftmals irrtümlicherweise auch als Cocktailtomaten bezeichnet. Obwohl diese beiden Tomatensorten sich auf den ersten Blick äußerst ähnlich sind, gibt es dennoch Unterschiede | H50: 49 | I50: 250 | J50: g | K50: 1.19 | L50: Packung
A51: 50 | C51: "Spanien" | K51: 0
A52: 51 | B52: Karambole | C52: Asien | D52: Kl. II | E52: Sorte: Sternenfrucht | F52: Sternfrüchte haben sehr wenig Fett. Je nach natürlicher Zusammensetzung unter 0,3 g Fett je 100 g Frucht und das bei ebenfalls sehr niedrigen 31 Kalorien. Auch der Anteil an Kohlenhydraten liegt unter 7-8 g pro 100 g. | H52: 51 | K52: 1.99 | L52: Stück
A53: 52 | B53: Kartoffel fest | C53: "Deutschland" | E53: Sorte: Siehe Etikett | F53: Annabelle ist eine frühreife, festkochende Kartoffelsorte mit langovalen Knollen. Sie entstand aus der Kreuzung Nicola x Monalisa. Die aus den Niederlanden stammende Kartoffel wurde 2002 zugelassen | H53: 52 | I53: 2 | J53: kg | K53: 2.99 | L53: Netz
A54: 53 | K54: 0
A55: 54 | B55: Papaya | C55: "Brasilien" | D55: Kl. II | F55: Diese tropische Offenbarung mit ihrem süss-saftigen, orangefarbenen bis kirschroten Fruchtfleisch und den kleinen schwarzen, pfeffrigen Kernen ist auch in Europa das ganze Jahr über erhältlich. | G55: 26158 | H55: 54 | K55: 3.99 | L55: Stück
A56: 55 | K56: 0
A57: 56 | B57: Kresse | C57: "Deutschland" | D57: Kl. II | F57: Gartenkresse ist jenes würzig schmeckende Grünzeug, das meist zur Dekoration über kalte Platten gestreut wird. Kein Mensch denkt bei Kresse an ein Heilmittel. Genau das aber ist die Gartenkresse | H57: 56 | K57: 0.55 | L57: Stück
A58: 57 | B58: Zitronen | C58: Spanien | D58: Kl. II | E58: Sorte: Limon Verna | F58: Zitronen sind Lebensmittel und Heilmittel zugleich. Nutzen Sie am besten die ganze Frucht, also nicht nur den Zitronensaft, sondern auch die Schale. Beides passt hervorragend in die Feinschmeckerküche. | H58: 57 | K58: 0.69 | L58: Stück | M58: Neue Ernte | N58: Schale behandelt
A59: 58 | B59: Grapefruit | C59: "Südafrika" | D59: Kl. II | F59: Grapefruits schmecken sehr saftig und säuerlich bis süß-säuerlich, je nach Sorte auch leicht bis deutlich bitter. Übrigens: Je dünner und glatter die Schale, desto lieblicher schmeckt die sogenannte Citrus paradisi. | H59: 58 | K59: 0.69 | L59: Stück | N59: Schale behandelt | O59: 1
A60: 59 | B60: Clementine Netz | C60: Spanien | D60: Kl. II | E60: "Clemenules" | F60: Clemenules-Mandarinen zeichnen sich durch einen hohen Vitamin-C-Gehalt, ein intensives Aroma und ihre leuchtende orange Farbe aus. Die Früchte sind etwas abgeflacht, mittelgroß, wiegen zwischen 80 und 100 g und sind einfach zu schälen. | H60: 59 | I60: 1000 | J60: g | K60: 1.59 | L60: Netz | N60: Schale behandelt
A61: 60 | B61: Orangen Netz | C61: "Spanien" | D61: Kl. II | E61: Sorte:Navel | F61: Die Orange ist die beliebteste unter den Zitrusfrüchten, ein wichtiger Lieferant für Vitamin C und ein Duftstoff in der Kosmetik. Wichtige Inhaltsstoffe sitzen nicht nur im Fruchtfleisch, sondern auch in den weißen Häutchen und der Schale. | H61: 60 | I61: 1 | J61: kg | K61: 0.99 | L61: Netz | N61: Schale behandelt
A62: 61 | B62: Salatherzen | C62: "Deutschland" | D62: Kl. II | F62: Als Salatherzen werden die inneren Blätter eines Salatkopfes, zum Beispiel von Kopf- oder Romanasalat bezeichnet. Die feinen innen liegenden Blätter sind meistens zarter und knackiger als die äußeren Blätter. | H62: 61 | I62: 2 | K62: 0.99 | L62: Stück
A63: 62 | B63: Kartoffel mehlig | C63: "Deutschland" | E63: Sorte: siehe Etikett | F63: Melody ist eine mittelfrühe Kartoffel-Speisesorte, die sich gut eignet als mehligkochende Premiumsorte: gleichmäßige, ziemlich grobfallende Sortierung, schöne gleichmäßige, ovale Form, schöne, helle Schale und eine gute Speisequalität. | H63: 62 | I63: 2.5 | J63: kg | K63: 1.99 | L63: Netz | M63: Neue Ernte
A64: 63 | B64: Rucola | C64: "Deutschland" | D64: Kl. II | F64: Egal ob auf Pizza, im Pesto oder als Salat – Rucola erfreut sich großer Beliebtheit. Der dunkelgrüne Blattsalat mit dem würzigen Geschmack ist aber nicht nur markanter Bestandteil vieler Rezepte, sondern auch gesund. | H64: 63 | I64: 125 | J64: g | K64: 1.29 | L64: Packung | M64: neue Ernte
A65: 64 | B65: Clementinen Steige | C65: "Italien" | D65: Kl. II | E65: Sorte: Clemenules | F65: Clemenules-Mandarinen zeichnen sich durch einen hohen Vitamin-C-Gehalt, ein intensives Aroma und ihre leuchtende orange Farbe aus. Sie sind das Ergebnis einer spontanen Mutation der feinen Clementine, die zum ersten Mal in Nules, Castellón de la Plana | H65: 64 | I65: 2 | J65: kg | K65: 2.99 | L65: Stück | N65: Schale behandelt
A66: 65 | B66: Erdbeeren gepackt | C66: "Spanien" | D66: Kl. II | F66: Die aromatischen Früchte sind mit etwa 32 Kilokalorien pro hundert Gramm gut für die schlanke Linie. Hervorzuheben ist ihr hoher Gehalt an Ballaststoffen (Pektinen und Zellulose), welche die Verdauung fördern. | H66: 65 | I66: 800 | J66: g | K66: 1.99 | L66: Packung
A67: 66 | B67: Kartoffel vorwiegend | C67: "Deutschland" | E67: Sorte: siehe Etikett | F67: Die Sorte "Marabel" ist seit 1990 eine der beliebtesten Speisekartoffeln in Deutschland. Marabel ist eine Frühkartoffel. Die Kartoffel besitzt eine gelbe und sehr glatte Schale sowie eine ovale Form und festes, gelbfleischiges Fruchtfleisch. | H67: 66 | I67: 2.5 | J67: kg | K67: 1.99 | L67: Netz | M67: Neue Ernte
A68: 67 | K68: 0
A69: 68 | B69: Vorwiegend festkochend | C69: "Deutschland" | E69: Sorte:siehe Etikett | F69: Die Sorte "Marabel" ist seit 1990 eine der beliebtesten Speisekartoffeln in Deutschland. Marabel ist eine Frühkartoffel. Die Kartoffel besitzt eine gelbe und sehr glatte Schale sowie eine ovale Form und festes, gelbfleischiges Fruchtfleisch. | H69: 68 | I69: 4 | J69: kg | K69: 3.33 | L69: Netz | M69: Neue Ernte | O69: 1
A70: 69 | B70: Zuckermais | C70: "Marocco" | D70: Kl. II | F70: Zuckermais oder Süßmais (Zea mays Saccharata-Gruppe) ist eine Maissorte, die bei der Reife erst sehr spät ihren süßen Geschmack verliert und keinen ausgeprägten mehligen Geschmacksanteil zeigt. Eine bekannte Maissorte ist Golden Bantam. | H70: 69 | I70: 500 | J70: g | K70: 2.49 | M70: Neue Ernte
A71: 70 | K71: 0
A72: 71 | K72: 0
A73: 72 | B73: Sellerie mit Grün | C73: "Deutschland" | D73: Kl. II | F73: Rund ist gesund - bei Knollensellerie trifft das definitiv und uneingeschränkt zu. Wer ihn nur als Suppengemüse kennt, hat übrigens was verpasst, denn Knollensellerie kann kulinarisch durchaus für angenehme Überraschungen sorgen! | H73: 72 | K73: 1.99 | L73: Stück | M73: achtung allergiger
A74: 73 | B74: Bleichsellerie | C74: "Deutschland" | D74: Kl. II | E74: neue ernte "Pfalz" | F74: Staudensellerie kommt gebleicht und ungebleicht auf den Markt. Die meist aus England oder den USA stammenden Bleichselleriesorten sind so genannte selbstbleichende Sorten. | H74: 73 | K74: 1.49 | L74: Stück | M74: Achtung Allergiker
A75: 74 | K75: 0 | M75: 758
A76: 75 | B76: Peterle Krauß | C76: Deutschland | D76: Kl. II | F76: Die beliebte Krause Petersilie stammt ursprünglich aus dem Mittelmeergebiet. Dort wächst sie wild auf trockenen, steinigen Standorten. Mauern oder Schuttplätze sind in diesem Umfeld die Lebensgrundlage(bot.) Petroselinum crispum var. crispum. | H76: 75 | K76: 1 | L76: Stück
A77: 76 | B77: Dill | C77: Deutschland | D77: Kl. II | F77: Um die Gewürzpflanze Dill ranken sich viele Mythen: So soll ein Bündel Dill unter dem Kopfkissen gegen Albträume helfen, während das an der Tür angebrachte Kraut böse Hexen fernhalten soll. | H77: 76 | K77: 2 | L77: Stück
A78: 77 | B78: Suppengrün | C78: Deutschland | D78: Kl. II | F78: Suppengrün, auch Suppengemüse, Kochgemüse, Wurzelwerk oder Wurzelzeug genannt, ist eine Mischung aus verschiedenen Gemüsearten zur Herstellung einer Brühe. | H78: 77 | K78: 1.39 | L78: Stück
A79: 78 | B79: Schnittlauch | C79: Deutschland | D79: Kl. II | F79: Schnittlauch kennen wir alle als Gewürzkraut. Weniger bekannt sind seine Eigenschaften als Heilpflanze. Es handelt sich um eine Lauchart (Allium), also um einen Verwandten von Knoblauch, Bärlauch oder Zierlauch. | H79: 78 | K79: 1.2 | L79: Stück
A80: 79 | K80: 0 | M80: 88
A81: 80 | B81: Kiwi grün | C81: "Italien" | D81: Kl. II | E81: Sorte: Hayward Green | F81: Von Hobbygärtnern und auch von den gewerblichen Obstbauern ist der Kiwibaum (Actinidia deliciosa) erst recht spät entdeckt worden. In seiner angestammten Heimat wird dieser Beerenstrauch hingegen bereits seit gut tausend Jahren kultiviert. | H81: 80 | K81: 0.29 | L81: Stück
A82: 81 | B82: Mango | C82: "Brasilien" | D82: Kl. II | E82: "Palmer" | F82: Die Mango ist eine tropische Frucht, die in verschiedenen Teilen der Welt angebaut wird und für ihren süßen und unverwechselbaren Geschmack bekannt ist. Die Schale der Frucht, deren Farbe von dunkelgrün bis orange variieren kann, ist ziemlich hart. | H82: 81 | K82: 1.59 | L82: Stück
A83: 82 | B83: Honigmelone | C83: "Spanien" | D83: Kl. II | E83: Honig | F83: Ob Honigmelone, Wassermelone, Cantaloupe-Melone oder Galiamelone – die Auswahl an verschiedenen Melonenarten im Supermarkt ist groß. Die Honigmelone ist leicht an ihrer knallgelben Farbe zu erkennen. | H83: 82 | K83: 1.99 | L83: Stück
A84: 83 | B84: Cantaloup Melone | C84: "Spanien" | D84: Kl. II | E84: "Carante" | F84: Cantaloupe Melone ist eine süße und saftige Zuckermelone mit orangefarbenem Fruchtfleisch und grünlicher Schale.Sie stammt ursprünglich aus dem Ort Cantalupo bei Rom, wo sie im 18. Jahrhundert von den Päpsten angebaut wurde. | H84: 83 | K84: 1.99 | L84: Stück
A85: 84 | B85: Galia-Melone | C85: "Spanien" | D85: Kl. II | E85: Galia | F85: Die Galiamelone zählt zu den sogenannten Netzmelonen und findet sich besonders im Sommer immer wieder gerne in der Obstschale – dabei ist sie gar kein Obst, sondern ein Gemüse! | H85: 84 | K85: 1.99 | L85: Stück
A86: 85 | B86: Ananas | C86: Costa-Rica | D86: Kl. II | F86: Nährstoffwunder Ananas: In kaum einer anderen Frucht stecken mehr Vitalstoffe als in der gelben Tropenfrucht. Hier erfährst du alles über die gesunde Wirkung, die richtige Zubereitung und vielfältige Verwendung von Ananas. | H86: 85 | K86: 3.99 | L86: Stück
A87: 86 | B87: Mini Wassermelone | C87: "Spanien" | D87: Kl. II | E87: kernarm | F87: Die Wassermelone ist eine niederliegende bis kletternde, einjährige, krautige Pflanze. Die Sprossachsen sind dünn, kantig, gefurcht und abstehend steif behaart. | H87: 86 | K87: 2.99 | L87: Stück
A88: 87 | B88: Gurken | C88: "Belgien" | D88: Kl. II | F88: Gurken sind vor allem im Sommer eine willkommene Erfrischung, denn durch ihren hohen Wassergehalt versorgen sie unseren Körper mit viel Flüssigkeit. Dieser Wassergehalt sorgt auch dafür, dass Gurken nur wenige Kalorien haben. | H88: 87 | K88: 0.99 | L88: Stück | M88: 500-600gramm
A89: 88 | B89: Radieschen | C89: "Deutschland" | D89: Kl. II | E89: "Pfalz" | F89: Ein Radieschen ist ein gesundes Wurzelgemüse, das zu den Kreuzblütengewächsen gehört. Sein botanische Name lautet Raphanus sativus, teilweise wird das Gemüse aber auch einfach „Radies“ genannt. | H89: 88 | K89: 0.49 | L89: Stück | M89: neue Ernte
A90: 89 | B90: Zuckermelone | C90: Türkei | D90: Kl. II | F90: Zuckermelonen haben eine vergleichsweise dicke Schale, die durch grüne Flecken und eine netzartige Struktur gekennzeichnet ist. Zuckermelone Geschmack: fruchtig, autromatisch, süß | H90: 89 | K90: 2.99 | L90: Stück
A91: 90 | K91: 0
A92: 91 | B92: Grüne Sosse | C92: "Deutschland" | E92: Sorte: Echte Frankfurter | K92: 4.49
A93: 92 | B93: Limette | C93: "Brasilien" | D93: Kl. II | E93: "Tahiti" | F93: Als Limette bezeichnet man mehrere Arten von Zitrusfrüchten. Limetten sind grün bis gelb, rundlich mit einem Durchmesser von drei bis sechs Zentimetern. Ihr Fruchtfleisch ist essbar und schmeckt sehr sauer, vergleichbar mit Zitronen. | H93: 92 | K93: 0.33 | L93: Stück | N93: Schale behandelt | O93: 1
A94: 93 | K94: 0
A95: 94 | K95: 0
A96: 95 | K96: 0
A97: 96 | K97: 0
A98: 97 | K98: 0
A99: 98 | K99: 0
A100: 99 | K100: 0
A101: 100 | B101: Bio Bananen | E101: DE-ÖKO-006 | F101: Die Bio-Banane ist eine imposante Blattschmuckstaude, die dank ihrer winterharten Natur auch ausgepflanzt im Garten gedeiht. Aus langen, steifen Blattstielen bildet die Banane ausladende Blattwedel, die jedem Standort ein exotisches Flair verleihen. | G101: 100 | H101: 7708685 | J101: kg | K101: 1.99 | L101: lose
A102: 101 | B102: Spinat | C102: "Italien" | D102: Kl. II | F102: Frischer Spinat hat den Vorteil, dass er oft aromatischer und knackiger ist als Tiefkühlspinat. Da er jedoch schnell verdirbt, solltest du ihn möglichst zügig verarbeiten, idealerweise innerhalb von ein bis zwei Tagen. | H102: 101 | I102: 250 | J102: g | K102: 2.99 | L102: Packung
A103: 102 | B103: Rosenkohl gepackt | C103: Niederlande | D103: Kl. II | F103: Rosenkohl schmeckt als Salat und gekocht als Gemüse und lässt sich hervorragend einfrieren. Als schonende Zubereitung eignet sich das Dampfgaren. Rosenkohl enthält viele Mineral- und Ballaststoffe sowie Vitamin A, Riboflavin (Vitamin B2) und Ascorbinsäure | H103: 102 | I103: 500 | J103: g | K103: 1.39 | L103: Packung
A104: 103 | B104: Kiwi Grün Bio 4er | C104: siehe Etikett | D104: Kl. II | E104: DE-ÖKO-006 | F104: Von Hobbygärtnern und auch von den gewerblichen Obstbauern ist der Kiwibaum (Actinidia deliciosa) erst recht spät entdeckt worden. In seiner angestammten Heimat wird dieser Beerenstrauch hingegen bereits seit gut tausend Jahren kultiviert. | H104: 273968 | I104: 4 | K104: 2.49 | L104: Stück
A105: 104 | B105: Kiwi Gold Bio 3er | C105: siehe Etikett | D105: Kl. II | F105: Zespri SunGold Kiwis enthalten von Natur aus viel Vitamin C, ein Nährstoff dessen Eigenschaften zur Gesundheit der Haut beiträgt.Zespri SunGold Kiwis enthalten mehr Vitamin C als eine Orange/100 g | H105: 9057438 | I105: 3 | K105: 1.59 | L105: Stück
A106: 105 | B106: Wildkräutersalat | C106: Herkunft: siehe Etikett | D106: Kl. II | F106: Wildkräuter müssen laut Definition zwei Dinge erfüllen: Erstens sind es krautige (nicht verholzende) Pflanzen, die zum Verzehr geeignet sind. Zweitens sind sie Kraut, das nicht züchterisch bearbeitet wurde. | H106: 105 | I106: 250 | J106: g | K106: 3.49 | L106: Packung
A107: 106 | B107: Babyleaf-Mix | C107: "Italien" | D107: Kl. II | F107: Im Handel werden viele Mischungen angeboten, die neben den Sorten des Gartensalats auch Endivie Mangold und Rote Beete Pak Choi und Chinakohl Spinat oder Senf enthalten können. | H107: 106 | I107: 250 | J107: g | K107: 3.49 | L107: Packung
A108: 107 | K108: 0
A109: 108 | K109: 0
A110: 109 | B110: Bio Gurke | C110: siehe Etikett | D110: Kl. II | E110: DE-ÖKO-006 | F110: Gurken sind vor allem im Sommer eine willkommene Erfrischung, denn durch ihren hohen Wassergehalt versorgen sie unseren Körper mit viel Flüssigkeit. Dieser Wassergehalt sorgt auch dafür, dass Gurken nur wenige Kalorien haben. | H110: 2493357 | K110: 1.59 | L110: Stück
A111: 110 | B111: Zucchini Bio | C111: siehe Etikett | D111: Kl. II | E111: DE-ÖKO-006 | F111: Ihr mildes, leicht nussiges Aroma macht Zucchini zum kulinarischen Alleskönner, der auf unzählige Arten zubereitet werden kann. Erfahren Sie jetzt alles Wissenswerte rund um das beliebte mediterrane Gemüse! | H111: 8181276 | I111: 500 | J111: g | K111: 2.22 | L111: Packung
A112: 111 | B112: Bio Karotten lose | C112: Deutschland | D112: Kl. II | E112: DE-ÖKO-005 | F112: Möhren gehören zu den enorm kalorienarmen Gemüsesorten und sollten in der Küche nach Möglichkeit nicht fehlen. Außerdem sind sie besonders reich an Carotin, einer Vorstufe von Vitamin A. | G112: 111 | H112: 7763778 | J112: kg | K112: 1.99 | L112: Lose
A113: 112 | B113: Karotte Bio | C113: Herkunft: siehe Etikett | D113: Kl. II | F113: Möhren gehören zu den enorm kalorienarmen Gemüsesorten und sollten in der Küche nach Möglichkeit nicht fehlen. Außerdem sind sie besonders reich an Carotin, einer Vorstufe von Vitamin A. | H113: 7763778 | I113: 1 | J113: kg | K113: 1.99 | L113: Packung
A114: 113 | B114: Aubergine Bio | C114: siehe Etikett | D114: Kl. II | F114: Auberginen sind nicht nur leckere Gemüse, sondern auch gesund und vielseitig. Sie haben viele Vorteile für die Verdauung, das Herz und die Haut.Auberginen sollten immer gegart werden, da sie roh Solanin enthalten, einen schwach giftigen Stoff. | H114: 8263652 | K114: 1.99 | L114: Stück
A115: 114 | B115: Snack Karotte Bio | C115: siehe Etikett | D115: Kl. II | H115: 9049727 | I115: 200 | J115: g | K115: 1.49 | L115: Packung
A116: 115 | K116: 0
A117: 116 | K117: 0
A118: 117 | K118: 0
A119: 118 | K119: 0
A120: 119 | K120: 0
A121: 120 | B121: Rispentomaten Mini Bio | C121: siehe Etikett | D121: Kl. II | E121: DE-ÖKO-005 | F121: Die Rote Perle Tomate ist eine kleine und sehr dunklerote Mini-Strauchtomate. Sie ist Platzfest, hat einen aromatischen würzigen Geschmack, ist sehr ertragreich und gut haltbar. | H121: 2355991 | I121: 300 | J121: g | K121: 2.99 | L121: Packung
A122: 121 | K122: 0
A123: 122 | K123: 0
A124: 123 | B124: Achtung Paprika Rot hat | C124: neue verpackungsgrös | K124: 0.01
A125: 124 | B125: Wer Bio Gala hat | E125: bitte mit Santana Tauschen | F125: Danke! Gala gibt es aktuell nicht! Und in Waage anlegen. Danke!!! | K125: 0
A126: 125 | B126: Bio Mango | F126: Bitte neuen Artikel raussuchen und bitte Herrn Niebler schicken für ein Schild. Danke! | K126: 0
A127: 126 | B127: Bitte Feldsalat | E127: mit Salatherzen tauschen | F127: Salatherzen gibt es aktuell keine. Danke | K127: 0
A128: 127 | K128: 0
A129: 128 | K129: 0
A130: 129 | K130: 0
A131: 130 | B131: Bio Champignon | C131: siehe Etikett | D131: Kl. II | E131: DE-ÖKO-005 | F131: Egerlinge sind besonders aufgrund ihres intensiven und leicht nussigen Geschmacks in der Küche sehr geschätzt. Zudem gibt es beim Verzehr keine Einschränkungen zu beachten, daher kann man sie sowohl in rohem, aber auch in gekochtem Zustand genießen. | H131: 7171289 | I131: 250 | J131: g | K131: 2.49 | L131: Packung
A132: 131 | B132: Kresse mix Bio | C132: Deutschland | D132: Kl. II | F132: Gartenkresse ist jenes würzig schmeckende Grünzeug, das meist zur Dekoration über kalte Platten gestreut wird. Kein Mensch denkt bei Kresse an ein Heilmittel. Genau das aber ist die Gartenkresse | H132: 8278255 | K132: 0.69 | L132: Stück
A133: 132 | B133: Bio Snackpaprika | C133: siehe Etikett | D133: Kl. II | F133: Die sehr beliebte rote Snackpaprika ist eine kleine und ausgesprochen süße Form der Spitzpaprika. Sie enthält nur wenig Kerne und kann deshalb direkt von der Pflanze weg verzehrt werden. Daher ist sie bei Kindern ein beliebtes Naschgemüse. | H133: 2331708 | I133: 150 | J133: g | K133: 2.22 | L133: Packung
A134: 133 | B134: Paprika Rot Bio | C134: siehe Etikett | D134: Kl. II | E134: DE-ÖKO-005 | F134: Die Antwort lautet: sehr gesund. Denn Paprika enthalten wertvolle Nährstoffe und sind wahre Vitaminbomben. Schon 100 g, also eine mittelgroße Paprika, liefern den gesamten Tagesbedarf an Vitamin C und damit das dreifache von Zitrusfrüchten. | G134: 133 | H134: 2247066 | J134: kg | K134: 6.99 | L134: Lose
A135: 134 | B135: Bio Chili Rot | C135: siehe Etikett | E135: ES-ECO-019-CT | F135: Wenn du die Schärfe von Chili, Paprika und Peperoni auf der Zunge schmeckst, handelt es sich um eine Schmerzreaktion, verursacht durch das Capsaicin. Die Unterschiede liegen aber nicht nur in Art und Form, sondern auch im Gehalt von Capsaicin. | H135: 8968584 | I135: 80 | J135: g | K135: 1.29 | L135: Packung
A136: 135 | B136: Paprika Spitz Bio | C136: siehe Etikett | D136: Kl. II | E136: DE-ÖKO-006 | F136: Capia-Paprikaschoten, die häufig als geröstet und frisch konsumiert werden, gehören zu den Aromen, die in vielen Rezepten gesucht werden. | H136: 3933679 | I136: 180 | J136: g | K136: 2.79 | L136: Packung
A137: 136 | B137: Paprika Rot Bio | C137: siehe Etikett | D137: Kl. II | F137: Die Antwort lautet: sehr gesund. Denn Paprika enthalten wertvolle Nährstoffe und sind wahre Vitaminbomben. Schon 100 g, also eine mittelgroße Paprika, liefern den gesamten Tagesbedarf an Vitamin C und damit das dreifache von Zitrusfrüchten. | H137: 1056856 | I137: 400 | J137: g | K137: 3.69 | L137: Packung
A138: 137 | B138: Chili Mix Bio | C138: Herkunft: siehe Etikett | D138: Kl. II | F138: Wenn du die Schärfe von Chili, Paprika und Peperoni auf der Zunge schmeckst, handelt es sich um eine Schmerzreaktion, verursacht durch das Capsaicin. Die Unterschiede liegen aber nicht nur in Art und Form, sondern auch im Gehalt von Capsaicin. | H138: 7720169 | I138: 80 | J138: g | K138: 1.49 | L138: Packung
A139: 138 | K139: 0
A140: 139 | K140: 0
A141: 140 | K141: 0
A142: 141 | B142: Kurkuma Bio | C142: China | D142: Kl. II | E142: DE-ÖKO-006 | F142: Im Gegensatz zum scharf schmeckenden Ingwer, weist Kurkuma sparsam dosiert, einen milderen würzigen Geschmack auf. Am besten schmeckt Kurkuma, wenn man es etwas in heißem Öl anwärmt. | G142: 141 | H142: 8087379 | I142: 100 | J142: g | K142: 1.99 | L142: Lose
A143: 142 | B143: Ingwer Bio | C143: Peru | E143: DE-ÖKO-006 | F143: Der Geschmack des Ingwers ist scharf und hat ein charakteristisches süßes Aroma. Das Aroma des frischen Ingwers ähnelt auch einer Zitrone. Der Geschmack wird durch das Vorhandensein von ätherischem Öl und scharfen Harzen intensiv. | G143: 142 | H143: 1218793 | I143: 100 | J143: g | K143: 0.79 | L143: Lose
A144: 143 | K144: 0
A145: 144 | K145: 0
A146: 145 | B146: Aprikosen Bio | C146: Herkunft: siehe Etikett | D146: Kl. II | E146: Sorte: siehe Etikett | F146: Der hohe Ballaststoffanteil sorgt für eine verdauungsfördernde Wirkung und der geringe Säureanteil macht die Aprikose leicht bekömmlich. Aprikosen sind oft geschwefelt erhältlich. | H146: 2478116 | I146: 400 | J146: g | K146: 2.59 | L146: Packung
A147: 146 | B147: Pfirsich Platt Bio | C147: siehe Etikett | D147: Kl. II | F147: Unter dem Namen Weinbergpfirsich kennen wir die flachen, hellrosa-orange-gelben Pfirsichfrüchte. Ihr Geschmack ist sehr süß und hoch aromatisch. Sie sind das neue Trendobst und als Weinbergpfirsich in aller Munde. | H147: 7015307 | I147: 500 | J147: g | K147: 2.99 | L147: Packung
A148: 147 | K148: 0
A149: 148 | K149: 0
A150: 149 | K150: 0
A151: 150 | B151: Orangen Bio | C151: siehe Etikett | D151: Kl. II | F151: Orangen schmecken süß, sind saftig und stecken voller Vitamine. Aber nicht nur das: Orangen sind auch vielseitig. Egal ob pur, als Saft oder Marmelade, in Desserts oder Smoothies. | H151: 284208 | J151: kg | K151: 2.79 | L151: Netz
A152: 151 | B152: Mandarinen Bio | C152: siehe Etikett | D152: Kl. II | F152: Sie kann sowohl süß, als auch herb oder bitter schmecken. Bei der Clementine ist dies nicht der Fall. Sie kommt deutlich weniger intensiv daher, ist aber – aufgrund des höheren Zuckergehalts – süßer als Mandarinen. | H152: 1450537 | I152: 750 | J152: g | K152: 3.79 | L152: Packung
A153: 152 | B153: Spaghettikürbis Bio | C153: Deutschland | D153: Kl. II | F153: Spaghettikürbis schmeckt mild. Er hat einen ähnlichen Geschmack wie Zucchini. Manche mögen ihn sogar als fade empfinden. Manche mögen den Geschmack als leicht süßlich empfinden. | G153: 152 | H153: 1433397 | J153: kg | K153: 2.99 | L153: Lose
A154: 153 | B154: Bio Butternutkürbis | C154: siehe Etikett | D154: Kl. II | F154: Seinem Namen macht der Butternutkürbis alle Ehre, wie seine Fans längst wissen. Sein zartes hellorangefarbenes Fruchtfleisch betört mit buttrigem Aroma. Auch die Kürbiskerne des Birnenkürbis sind essbar und schmecken angenehm nach Nuss. | G154: 153 | J154: kg | K154: 2.29 | L154: Lose
A155: 154 | B155: Grapefruit Bio | C155: Herkunft: Siehe Etikett | D155: Kl. II | F155: Grapefruits schmecken sehr saftig und säuerlich bis süß-säuerlich, je nach Sorte auch leicht bis deutlich bitter. Übrigens: Je dünner und glatter die Schale, desto lieblicher schmeckt die sogenannte Citrus paradisi. | H155: 1252425 | K155: 1.59 | L155: Stück
A156: 155 | B156: Apfel Elstar Bio | C156: Deutschland | D156: Kl. II | E156: DE-ÖKO-003 | F156: Elstar ist eine der beliebtesten Apfelsorten im Norden. Sein saftiges, weiß-gelbliches Fruchtfleisch hat einen intensiven, fein säuerlichen Geschmack. Bei guter Lagerung schmeckt er bis in den Mai. | G156: 155 | H156: 488959 | I156: 1 | J156: kg | K156: 3.99 | L156: Lose
A157: 156 | B157: Apfel Gala Bio | C157: siehe Etikett | D157: Kl. II | F157: Es ist ein mittelstark wachsender Baum. Seine Früchte besitzen eine hell rote glatte Schale. Ihr Geschmack ist süß, saftig, aromatisch mit festem Fruchtfleisch. | H157: 8676599 | I157: 550 | J157: g | K157: 3.29 | L157: Packung
A158: 157 | B158: Apfel Santana Bio | C158: Deutschland | D158: Kl. II | E158: DE-ÖKO-006 | F158: Wenn ab April der Apfel Santana anfängt zu blühen,kann man sich schon auf die großen, roten Früchte freuen. Von September an ist es dann so weit und es kann geerntet werden. Der süße Geschmak der saftigen, feinen Früchte ist einfach unverwechselbar. | G158: 157 | H158: 8847098 | I158: 550 | J158: g | K158: 3.49 | L158: Packung
A159: 158 | B159: Cripps Pink Bio | C159: Herkunft: siehe Etikett | D159: Kl. II | F159: Cripps Pink ist eine kleinfrüchtige Apfelsorte. Sie entstand 1973 aus einer Kreuzung von Lady Williams und Golden Delicious. Der Cripps Pink stammt ursprünglich aus Australien. Er gilt vom Geschmack als süß und ist mittelmäßig saftig. | H159: 8448206 | I159: 550 | J159: g | K159: 3.29 | L159: Packung
A160: 159 | B160: Granatapfel Bio | C160: Herkunft: Siehe Etikett | D160: Kl. II | F160: Der Granatapfel ist eine kugelförmige, bis zu 500 g schwere Frucht, die einen Durchmesser von bis zu 10 cm erreichen kann. Die Frucht besitzt eine glatte, lederartige Schale, die anfangs gelbgrün und später ins orangerote übergeht. | H160: 1457147 | K160: 2.39 | L160: Stück
A161: 160 | B161: Salatherzen Bio | C161: siehe Etikett | D161: Kl. II | E161: DE-ÖKO-034 | F161: Als Salatherzen werden die inneren Blätter eines Salatkopfes, zum Beispiel von Kopf- oder Romanasalat bezeichnet. Die feinen innen liegenden Blätter sind meistens zarter und knackiger als die äußeren Blätter. | H161: 504997 | K161: 2.29 | L161: Stück
A162: 161 | B162: Feldsalat Bio | C162: siehe Etikett | F162: Die zarten Blätter des Feldsalats werden schnell matschig. Umso wichtiger ist die richtige Lagerung des Salats. Sie sollten den Feldsalat kühl lagern, Kondenswasser jedoch vermeiden, da dieses an der Verpackung den Salat schnell verderben lässt. | H162: 2876337 | I162: 100 | J162: g | K162: 1.89 | L162: Packung
A163: 162 | K163: 0
A164: 163 | K164: 0
A165: 164 | B165: Conference Birne Bio | C165: siehe Etikett | D165: Kl. II | F165: onference ist mittelgroß bis groß und besitzt eine längliche, kegelartige Form. Die teils großflächige Berostung auf der grüngelben Deckfarbe der Schale ist sortentypisch. Der Geschmack ist süß und zeigt eine leichte Würze. | H165: 8256207 | I165: 500 | J165: g | K165: 2.49 | L165: Packung
A166: 165 | B166: Bio Pflaume | C166: Herkunft: siehe Etikett | D166: Kl. II | E166: Sorte: Siehe Etikett | F166: Pflaumen schmecken frisch von der Hand in den Mund am besten, für Kuchen oder Kompott eignen sie sich weniger. Sie sind naturgemäß von einer dünnen, wachsartigen Schicht überzogen. | H166: 81957 | I166: 500 | J166: g | K166: 2.99 | L166: Packung
A167: 166 | B167: Bio Birne | C167: Herkunft: siehe Etikett | D167: Kl. II | E167: Sorte: Limonera | F167: Alles, was eine Birne braucht, vereint die Limonera: Sie ist groß, mildsäuerlich, mäßig süß und vor allem saftig. Die Sommerbirne tankt in Spanien viel Sonne und ist bereits im August genussreif. Dann heißt es: ab in den Obstkorb und zu euch ins Büro. | H167: 9951320 | I167: 550 | J167: g | K167: 2.29 | L167: Packung
A168: 167 | K168: 0
A169: 168 | K169: 0
A170: 169 | K170: 0
A171: 170 | B171: Broccoli Bio | C171: siehe Etikett | D171: Kl. II | F171: Er ist reich an Vitaminen, Mineralstoffen und sekundären Pflanzenstoffen, die das Immunsystem stärken, Entzündungen hemmen und vor Krebs schützen können. Brokkoli lässt sich vielseitig zubereiten, zum Beispiel als Salat, | H171: 726105 | I171: 400 | J171: g | K171: 2.19 | L171: Packung
A172: 171 | B172: Pastinaken Bio | C172: siehe Etikett | D172: Kl. II | F172: Werden die Pastinaken erst nach dem Frost geerntet, dann entwickeln sie ein leicht süßliches und intensiv würziges Aroma. Dieses Aroma erinnert im weitesten Sinne an den Geschmack von Sellerie und Liebstöckel. | H172: 8397672 | I172: 300 | J172: g | K172: 2.29 | L172: Packung
A173: 172 | B173: Zwiebel Schalotte Bio | C173: Herkunft: Siehe Etikett | D173: Kl. II | F173: Schalotten haben ein feineres, weniger scharfes, eher süßliches und würzigeres Aroma als die meisten Speisezwiebelsorten. Zum scharfen Anbraten eignen sie sich nur bedingt, weil sie dadurch bitter und schal werden. | H173: 6697038 | I173: 200 | J173: g | K173: 1.69 | L173: Netz
A174: 173 | K174: 0
A175: 174 | K175: 0
A176: 175 | B176: Kartoffel Bio | C176: siehe Etikett | D176: Kl. II | E176: festkochend | F176: Festkochende Kartoffeln zeichnen sich im Vergleich zu mehligen Kartoffeln durch deutlich unterschiedliche Kocheigenschaften aus: Sie sind im gekochten Zustand schnittfest, feinkörnig und feucht. | H176: 3335283 | I176: 1.5 | J176: kg | K176: 3.49 | L176: Netz
A177: 176 | K177: 0
A178: 177 | K178: 0
A179: 178 | K179: 0
A180: 179 | K180: 0
A181: 180 | B181: Zitrone Bio | C181: siehe Etikett | D181: Kl. II | E181: ES-ECO-020-CV | F181: Zitronen sind Lebensmittel und Heilmittel zugleich. Nutzen Sie am besten die ganze Frucht, also nicht nur den Zitronensaft, sondern auch die Schale. Beides passt hervorragend in die Feinschmeckerküche. | H181: 180 | I181: 500 | J181: g | K181: 1.89 | L181: Packung
A182: 181 | B182: Limette Bio | C182: Niederlande | D182: Kl. II | E182: DE-ÖKO-006 | F182: Limetten sind grün bis gelb, rundlich mit einem Durchmesser von drei bis sechs Zentimetern. Ihr Fruchtfleisch ist essbar und schmeckt sehr sauer, vergleichbar mit Zitronen, aber meist mit einer intensiveren, würzigeren Note. | H182: 8290497 | K182: 0.69 | L182: Stück
A183: 182 | B183: Zitrone Bio | C183: "Spanien" | D183: Kl. II | F183: Zitronen sind Lebensmittel und Heilmittel zugleich. Nutzen Sie am besten die ganze Frucht, also nicht nur den Zitronensaft, sondern auch die Schale. Beides passt hervorragend in die Feinschmeckerküche. | H183: 182 | K183: 0.49 | L183: Stück
A184: 183 | K184: 0
A185: 184 | K185: 0
A186: 185 | B186: Mango Bio Faserarm | C186: Brasilien | D186: Kl. II | F186: Die Mango ist eine tropische Frucht, die in verschiedenen Teilen der Welt angebaut wird und für ihren süßen und unverwechselbaren Geschmack bekannt ist. Die Schale der Frucht, deren Farbe von dunkelgrün bis orange variieren kann, ist ziemlich hart. | H186: 1022075 | K186: 1.99 | L186: Stück
A187: 186 | K187: 0
A188: 187 | K188: 0
A189: 188 | K189: 0
A190: 189 | K190: 0
A191: 190 | B191: Bio Hokkaido | C191: Spanien | F191: Seinen Namen verdankt der Hokkaido-Kürbis seiner ursprünglichen Heimat – einer gleichnamigen Insel in Japan. Hokkaido-Kürbis begeistert viele mit einem leicht nussigen, etwas an Esskastanien erinnernden Aroma und seinem saftigen, faserarmen Fruchtfleisch. | G191: 190 | H191: 2891678 | J191: kg | K191: 3.99 | L191: Lose
A192: 191 | B192: Zuckermais Bio | C192: siehe Etikett | D192: Kl. II | E192: DE-ÖKO-006 | F192: Zuckermais oder Süßmais (Zea mays Saccharata-Gruppe) ist eine Maissorte, die bei der Reife erst sehr spät ihren süßen Geschmack verliert und keinen ausgeprägten mehligen Geschmacksanteil zeigt. Eine bekannte Maissorte ist Golden Bantam. | H192: 2138770 | I192: 400 | J192: g | K192: 2.49 | L192: Packung
A193: 192 | B193: Rote Bete gekocht Bio | C193: siehe Etikett | D193: Kl. II | F193: Rote Bete schmeckt bitter und hat einen leicht erdigen Beigeschmack. Der erdige Geschmack in der Roten Bete ist auf eine Verbindung namens Geosmin zurückzuführen. Rote Bete hat auch einen leicht süßen Geschmack, weshalb sie sich für Süßspeisen eignet. | H193: 1256869 | I193: 500 | J193: g | K193: 1.69 | L193: Packung
A194: 193 | K194: 0
A195: 194 | K195: 0
A196: 195 | K196: 0
A197: 196 | K197: 0
A198: 197 | K198: 0
A199: 198 | K199: 0
A200: 199 | K200: 0
... 807 more rows

Sheet Druck 8 Felder (hidden)
A10: =IF(Übertrag!A2>0,VLOOKUP(Übertrag!A2,Obst[],2,FALSE),"") -> Blumenkohl | T10: =IF(Übertrag!A2>0,VLOOKUP(Übertrag!A2,Obst[],7,FALSE),"") -> 0 | Y10: =IF(Übertrag!A3>0,VLOOKUP(Übertrag!A3,Obst[],2,FALSE),"") -> Mini - Rispen | AR10: =IF(Übertrag!A3>0,VLOOKUP(Übertrag!A3,Obst[],7,FALSE),"") -> 705
A15: =IF(Übertrag!A2>0,VLOOKUP(Übertrag!A2,Obst[],3,FALSE),"") -> "Deutschland" | T15: =IF(Übertrag!A2>0,VLOOKUP(Übertrag!A2,Obst[],8,FALSE),"") -> 45 | Y15: =IF(Übertrag!A3>0,VLOOKUP(Übertrag!A3,Obst[],3,FALSE),"") -> "Belgien" | AR15: =IF(Übertrag!A3>0,VLOOKUP(Übertrag!A3,Obst[],8,FALSE),"") -> 0
A19: =_xlfn.IFS(Übertrag!A2="","",K41="1",VLOOKUP(Übertrag!A2,Obst[],17,FALSE),Übertrag!A2>0,VLOOKUP(Übertrag!A2,Obst[],16,FALSE)) -> 0 | L19: =IF(Übertrag!A2>0,VLOOKUP(Übertrag!A2,Obst[],13,FALSE),"") -> Neue Ernte | T19: =IF(Übertrag!A2>0,VLOOKUP(Übertrag!A2,Obst[],4,FALSE),"") -> Kl. II | Y19: =_xlfn.IFS(Übertrag!A3="","",AI41="1",VLOOKUP(Übertrag!A3,Obst[],17,FALSE),Übertrag!A3>0,VLOOKUP(Übertrag!A3,Obst[],16,FALSE)) -> 0 | AJ19: =IF(Übertrag!A3>0,VLOOKUP(Übertrag!A3,Obst[],13,FALSE),"") -> 0 | AR19: =IF(Übertrag!A3>0,VLOOKUP(Übertrag!A3,Obst[],4,FALSE),"") -> Kl. II
L23: =IF(Übertrag!A2>0,VLOOKUP(Übertrag!A2,Obst[],11,FALSE),"") -> 1.59 | AJ23: =IF(Übertrag!A3>0,VLOOKUP(Übertrag!A3,Obst[],11,FALSE),"") -> 2.69
B41: =IF(Übertrag!A2>0,VLOOKUP(Übertrag!A2,Obst[],14,FALSE),"") -> 0 | K41: =IF(Übertrag!A2>0,VLOOKUP(Übertrag!A2,Obst[],15,FALSE),"") -> 0 | L41: =IF(N41="","","1kg=") ->  | N41: =IF(Q41=0,"",IF(T41="kg",SUM(L23/Q41),IF(T41="g",SUM(L23/Q41*1000),IF(T41="gr",SUM(L23/Q41*1000),"")))) ->  | Q41: =IF(Übertrag!A2>0,VLOOKUP(Übertrag!A2,Obst[],9,FALSE),"") -> 0 | T41: =IF(Übertrag!A2>0,VLOOKUP(Übertrag!A2,Obst[],10,FALSE),"") -> 0 | U41: =IF(Übertrag!A2>0,VLOOKUP(Übertrag!A2,Obst[],12,FALSE),"") -> Stück | Z41: =IF(Übertrag!A3>0,VLOOKUP(Übertrag!A3,Obst[],14,FALSE),"") -> 0 | AI41: =IF(Übertrag!A3>0,VLOOKUP(Übertrag!A3,Obst[],15,FALSE),"") -> 0 | AJ41: =IF(AL41="","","1kg=") ->  | AL41: =IF(AO41=0,"",IF(AR41="kg",SUM(AJ23/AO41),IF(AR41="g",SUM(AJ23/AO41*1000),IF(AR41="gr",SUM(AJ23/AO41*1000),"")))) ->  | AO41: =IF(Übertrag!A3>0,VLOOKUP(Übertrag!A3,Obst[],9,FALSE),"") -> 0 | AR41: =IF(Übertrag!A3>0,VLOOKUP(Übertrag!A3,Obst[],10,FALSE),"") -> kg | AS41: =IF(Übertrag!A3>0,VLOOKUP(Übertrag!A3,Obst[],12,FALSE),"") -> Lose
A44: =IF(Übertrag!A2>0,VLOOKUP(Übertrag!A2,Obst[],5,FALSE),"") -> 0 | Y44: =IF(Übertrag!A3>0,VLOOKUP(Übertrag!A3,Obst[],5,FALSE),"") -> Sorte: Rote Perle
A48: =IF(Übertrag!A2>0,VLOOKUP(Übertrag!A2,Obst[],6,FALSE),"") -> Blumenkohl, auch Karfiol oder Minarett-Kohl genannt, verdankt seinen Namen einer botanischen Besonderheit: Der Kohlkopf ist der noch nicht geschossene Blütenstand der Pflanze. | Y48: =IF(Übertrag!A3>0,VLOOKUP(Übertrag!A3,Obst[],6,FALSE),"") -> Die Rote Perle Tomate ist eine kleine und sehr dunklerote Mini-Strauchtomate. Sie ist Platzfest, hat einen aromatischen würzigen Geschmack, ist sehr ertragreich und gut haltbar.
A59: =IF(Übertrag!A2>0,VLOOKUP(Übertrag!A2,Datenbank[],7,FALSE),"") -> 2025-07-16 | Y59: =IF(Übertrag!A3>0,VLOOKUP(Übertrag!A3,Datenbank[],7,FALSE),"") -> 2025-07-16
A67: =IF(Übertrag!A4>0,VLOOKUP(Übertrag!A4,Obst[],2,FALSE),"") -> Kiwi Gold | T67: =IF(Übertrag!A4>0,VLOOKUP(Übertrag!A4,Obst[],7,FALSE),"") -> 0 | Y67: =IF(Übertrag!A5>0,VLOOKUP(Übertrag!A5,Obst[],2,FALSE),"") -> Pfifferling | AR67: =IF(Übertrag!A5>0,VLOOKUP(Übertrag!A5,Obst[],7,FALSE),"") -> 748
A72: =IF(Übertrag!A4>0,VLOOKUP(Übertrag!A4,Obst[],3,FALSE),"") -> "Neuseeland" | T72: =IF(Übertrag!A4>0,VLOOKUP(Übertrag!A4,Obst[],8,FALSE),"") -> 722 | Y72: =IF(Übertrag!A5>0,VLOOKUP(Übertrag!A5,Obst[],3,FALSE),"") -> "Litauen" | AR72: =IF(Übertrag!A5>0,VLOOKUP(Übertrag!A5,Obst[],8,FALSE),"") -> 0
A76: =_xlfn.IFS(Übertrag!A4="","",K98="1",VLOOKUP(Übertrag!A4,Obst[],17,FALSE),Übertrag!A4>0,VLOOKUP(Übertrag!A4,Obst[],16,FALSE)) -> 0 | L76: =IF(Übertrag!A4>0,VLOOKUP(Übertrag!A4,Obst[],13,FALSE),"") -> 0 | T76: =IF(Übertrag!A4>0,VLOOKUP(Übertrag!A4,Obst[],4,FALSE),"") -> Kl. II | Y76: =_xlfn.IFS(Übertrag!A5="","",AI98="1",VLOOKUP(Übertrag!A5,Obst[],17,FALSE),Übertrag!A5>0,VLOOKUP(Übertrag!A5,Obst[],16,FALSE)) -> 0 | AJ76: =IF(Übertrag!A5>0,VLOOKUP(Übertrag!A5,Obst[],13,FALSE),"") -> 0 | AR76: =IF(Übertrag!A5>0,VLOOKUP(Übertrag!A5,Obst[],4,FALSE),"") -> Kl. II
L80: =IF(Übertrag!A4>0,VLOOKUP(Übertrag!A4,Obst[],11,FALSE),"") -> 0.55 | AJ80: =IF(Übertrag!A5>0,VLOOKUP(Übertrag!A5,Obst[],11,FALSE),"") -> 1.59
B98: =IF(Übertrag!A4>0,VLOOKUP(Übertrag!A4,Obst[],14,FALSE),"") -> 0 | K98: =IF(Übertrag!A4>0,VLOOKUP(Übertrag!A4,Obst[],15,FALSE),"") -> 0 | L98: =IF(N98="","","1kg=") ->  | N98: =IF(Q98=0,"",IF(T98="kg",SUM(L80/Q98),IF(T98="g",SUM(L80/Q98*1000),IF(T98="gr",SUM(L80/Q98*1000),"")))) ->  | Q98: =IF(Übertrag!A4>0,VLOOKUP(Übertrag!A4,Obst[],9,FALSE),"") -> 0 | T98: =IF(Übertrag!A4>0,VLOOKUP(Übertrag!A4,Obst[],10,FALSE),"") -> 0 | U98: =IF(Übertrag!A4>0,VLOOKUP(Übertrag!A4,Obst[],12,FALSE),"") -> Stück | Z98: =IF(Übertrag!A5>0,VLOOKUP(Übertrag!A5,Obst[],14,FALSE),"") -> 0 | AI98: =IF(Übertrag!A5>0,VLOOKUP(Übertrag!A5,Obst[],15,FALSE),"") -> 0 | AJ98: =IF(AL98="","","1kg=") -> 1kg= | AL98: =IF(AO98=0,"",IF(AR98="kg",SUM(AJ80/AO98),IF(AR98="g",SUM(AJ80/AO98*1000),IF(AR98="gr",SUM(AJ80/AO98*1000),"")))) -> 15.9 | AO98: =IF(Übertrag!A5>0,VLOOKUP(Übertrag!A5,Obst[],9,FALSE),"") -> 100 | AR98: =IF(Übertrag!A5>0,VLOOKUP(Übertrag!A5,Obst[],10,FALSE),"") -> g | AS98: =IF(Übertrag!A5>0,VLOOKUP(Übertrag!A5,Obst[],12,FALSE),"") -> Lose
A101: =IF(Übertrag!A4>0,VLOOKUP(Übertrag!A4,Obst[],5,FALSE),"") -> 0 | Y101: =IF(Übertrag!A5>0,VLOOKUP(Übertrag!A5,Obst[],5,FALSE),"") -> Sorte; Cantharellus
A105: =IF(Übertrag!A4>0,VLOOKUP(Übertrag!A4,Obst[],6,FALSE),"") -> Zespri SunGold Kiwis enthalten von Natur aus viel Vitamin C, ein Nährstoff dessen Eigenschaften zur Gesundheit der Haut beiträgt.Zespri SunGold Kiwis enthalten mehr Vitamin C als eine Orange/100 g | Y105: =IF(Übertrag!A5>0,VLOOKUP(Übertrag!A5,Obst[],6,FALSE),"") -> Bei den Pfifferlingen handelt es sich im Allgemeinen um mittelgroße Pilze, deren Fruchtkörper mehr oder weniger deutlich in Hut und Stiel gegliedert sind. Der Hut ist mit einem Durchmesser von etwa 2 bis 9 cm meist etwas trichterförmig.
A116: =IF(Übertrag!A4>0,VLOOKUP(Übertrag!A4,Datenbank[],7,FALSE),"") -> 2025-07-16 | Y116: =IF(Übertrag!A5>0,VLOOKUP(Übertrag!A5,Datenbank[],7,FALSE),"") -> 2025-07-16
A124: =IF(Übertrag!A6>0,VLOOKUP(Übertrag!A6,Obst[],2,FALSE),"") -> Avocado | T124: =IF(Übertrag!A6>0,VLOOKUP(Übertrag!A6,Obst[],7,FALSE),"") -> 0 | Y124: =IF(Übertrag!A7>0,VLOOKUP(Übertrag!A7,Obst[],2,FALSE),"") -> Pink Lady | AR124: =IF(Übertrag!A7>0,VLOOKUP(Übertrag!A7,Obst[],7,FALSE),"") -> 817
A129: =IF(Übertrag!A6>0,VLOOKUP(Übertrag!A6,Obst[],3,FALSE),"") -> South Afrika | T129: =IF(Übertrag!A6>0,VLOOKUP(Übertrag!A6,Obst[],8,FALSE),"") -> 781 | Y129: =IF(Übertrag!A7>0,VLOOKUP(Übertrag!A7,Obst[],3,FALSE),"") -> Chile | AR129: =IF(Übertrag!A7>0,VLOOKUP(Übertrag!A7,Obst[],8,FALSE),"") -> 0
A133: =_xlfn.IFS(Übertrag!A6="","",K155="1",VLOOKUP(Übertrag!A6,Obst[],17,FALSE),Übertrag!A6>0,VLOOKUP(Übertrag!A6,Obst[],16,FALSE)) -> 0 | L133: =IF(Übertrag!A6>0,VLOOKUP(Übertrag!A6,Obst[],13,FALSE),"") -> 0 | T133: =IF(Übertrag!A6>0,VLOOKUP(Übertrag!A6,Obst[],4,FALSE),"") -> Kl. II | Y133: =_xlfn.IFS(Übertrag!A7="","",AI155="1",VLOOKUP(Übertrag!A7,Obst[],17,FALSE),Übertrag!A7>0,VLOOKUP(Übertrag!A7,Obst[],16,FALSE)) -> 0 | AJ133: =IF(Übertrag!A7>0,VLOOKUP(Übertrag!A7,Obst[],13,FALSE),"") -> Neue Ernte | AR133: =IF(Übertrag!A7>0,VLOOKUP(Übertrag!A7,Obst[],4,FALSE),"") -> Kl. II
L137: =IF(Übertrag!A6>0,VLOOKUP(Übertrag!A6,Obst[],11,FALSE),"") -> 0.55 | AJ137: =IF(Übertrag!A7>0,VLOOKUP(Übertrag!A7,Obst[],11,FALSE),"") -> 2.99
B155: =IF(Übertrag!A6>0,VLOOKUP(Übertrag!A6,Obst[],14,FALSE),"") -> 0 | K155: =IF(Übertrag!A6>0,VLOOKUP(Übertrag!A6,Obst[],15,FALSE),"") -> 0 | L155: =IF(N155="","","1kg=") ->  | N155: =IF(Q155=0,"",IF(T155="kg",SUM(L137/Q155),IF(T155="g",SUM(L137/Q155*1000),IF(T155="gr",SUM(L137/Q155*1000),"")))) ->  | Q155: =IF(Übertrag!A6>0,VLOOKUP(Übertrag!A6,Obst[],9,FALSE),"") -> 0 | T155: =IF(Übertrag!A6>0,VLOOKUP(Übertrag!A6,Obst[],10,FALSE),"") -> 0 | U155: =IF(Übertrag!A6>0,VLOOKUP(Übertrag!A6,Obst[],12,FALSE),"") -> Stück | Z155: =IF(Übertrag!A7>0,VLOOKUP(Übertrag!A7,Obst[],14,FALSE),"") -> 0 | AI155: =IF(Übertrag!A7>0,VLOOKUP(Übertrag!A7,Obst[],15,FALSE),"") -> 0 | AJ155: =IF(AL155="","","1kg=") ->  | AL155: =IF(AO155=0,"",IF(AR155="kg",SUM(AJ137/AO155),IF(AR155="g",SUM(AJ137/AO155*1000),IF(AR155="gr",SUM(AJ137/AO155*1000),"")))) ->  | AO155: =IF(Übertrag!A7>0,VLOOKUP(Übertrag!A7,Obst[],9,FALSE),"") -> 0 | AR155: =IF(Übertrag!A7>0,VLOOKUP(Übertrag!A7,Obst[],10,FALSE),"") -> kg | AS155: =IF(Übertrag!A7>0,VLOOKUP(Übertrag!A7,Obst[],12,FALSE),"") -> Lose
A158: =IF(Übertrag!A6>0,VLOOKUP(Übertrag!A6,Obst[],5,FALSE),"") -> Sorte: Hass | Y158: =IF(Übertrag!A7>0,VLOOKUP(Übertrag!A7,Obst[],5,FALSE),"") -> 0
A162: =IF(Übertrag!A6>0,VLOOKUP(Übertrag!A6,Obst[],6,FALSE),"") -> Das gelbe bis orangefarbene zarte Fruchtfleisch hat einen sehr aromatischen, nussigen Geschmack. Avocados werden roh verzehrt, da ihr Fruchtfleisch beim Erhitzen bitter wird. Harte Avocados reifen bei Zimmertemperatur nach. | Y162: =IF(Übertrag!A7>0,VLOOKUP(Übertrag!A7,Obst[],6,FALSE),"") -> Durch die rote und saftige Farbe kann man sich die Besonderheit dieses Apfels schon vorstellen. Leichte Aromen von Waldbeere, Vanille und Lyche schmeckt man heraus. Aus diesem Grund wird der Apfel auch Paradiesapfel genannt.
A173: =IF(Übertrag!A6>0,VLOOKUP(Übertrag!A6,Datenbank[],7,FALSE),"") -> 2025-07-16 | Y173: =IF(Übertrag!A7>0,VLOOKUP(Übertrag!A7,Datenbank[],7,FALSE),"") -> 2025-07-16
A181: =IF(Übertrag!A8>0,VLOOKUP(Übertrag!A8,Obst[],2,FALSE),"") -> Nektarinen | T181: =IF(Übertrag!A8>0,VLOOKUP(Übertrag!A8,Obst[],7,FALSE),"") -> 860 | Y181: =IF(Übertrag!A9>0,VLOOKUP(Übertrag!A9,Obst[],2,FALSE),"") -> Bergpfirsich | AR181: =IF(Übertrag!A9>0,VLOOKUP(Übertrag!A9,Obst[],7,FALSE),"") -> 867
A186: =IF(Übertrag!A8>0,VLOOKUP(Übertrag!A8,Obst[],3,FALSE),"") -> "Griechenland" | T186: =IF(Übertrag!A8>0,VLOOKUP(Übertrag!A8,Obst[],8,FALSE),"") -> 0 | Y186: =IF(Übertrag!A9>0,VLOOKUP(Übertrag!A9,Obst[],3,FALSE),"") -> Spanien | AR186: =IF(Übertrag!A9>0,VLOOKUP(Übertrag!A9,Obst[],8,FALSE),"") -> 0
A190: =_xlfn.IFS(Übertrag!A8="","",K212="1",VLOOKUP(Übertrag!A8,Obst[],17,FALSE),Übertrag!A8>0,VLOOKUP(Übertrag!A8,Obst[],16,FALSE)) -> 0 | L190: =IF(Übertrag!A8>0,VLOOKUP(Übertrag!A8,Obst[],13,FALSE),"") -> Extra | T190: =IF(Übertrag!A8>0,VLOOKUP(Übertrag!A8,Obst[],4,FALSE),"") -> Kl. II | Y190: =_xlfn.IFS(Übertrag!A9="","",AI212="1",VLOOKUP(Übertrag!A9,Obst[],17,FALSE),Übertrag!A9>0,VLOOKUP(Übertrag!A9,Obst[],16,FALSE)) -> 0 | AJ190: =IF(Übertrag!A9>0,VLOOKUP(Übertrag!A9,Obst[],13,FALSE),"") -> 0 | AR190: =IF(Übertrag!A9>0,VLOOKUP(Übertrag!A9,Obst[],4,FALSE),"") -> Kl. II
L194: =IF(Übertrag!A8>0,VLOOKUP(Übertrag!A8,Obst[],11,FALSE),"") -> 2.99 | AJ194: =IF(Übertrag!A9>0,VLOOKUP(Übertrag!A9,Obst[],11,FALSE),"") -> 2.99
B212: =IF(Übertrag!A8>0,VLOOKUP(Übertrag!A8,Obst[],14,FALSE),"") -> 0 | K212: =IF(Übertrag!A8>0,VLOOKUP(Übertrag!A8,Obst[],15,FALSE),"") -> 0 | L212: =IF(N212="","","1kg=") ->  | N212: =IF(Q212=0,"",IF(T212="kg",SUM(L194/Q212),IF(T212="g",SUM(L194/Q212*1000),IF(T212="gr",SUM(L194/Q212*1000),"")))) ->  | Q212: =IF(Übertrag!A8>0,VLOOKUP(Übertrag!A8,Obst[],9,FALSE),"") -> 0 | T212: =IF(Übertrag!A8>0,VLOOKUP(Übertrag!A8,Obst[],10,FALSE),"") -> kg | U212: =IF(Übertrag!A8>0,VLOOKUP(Übertrag!A8,Obst[],12,FALSE),"") -> Lose | Z212: =IF(Übertrag!A9>0,VLOOKUP(Übertrag!A9,Obst[],14,FALSE),"") -> 0 | AI212: =IF(Übertrag!A9>0,VLOOKUP(Übertrag!A9,Obst[],15,FALSE),"") -> 0 | AJ212: =IF(AL212="","","1kg=") ->  | AL212: =IF(AO212=0,"",IF(AR212="kg",SUM(AJ194/AO212),IF(AR212="g",SUM(AJ194/AO212*1000),IF(AR212="gr",SUM(AJ194/AO212*1000),"")))) ->  | AO212: =IF(Übertrag!A9>0,VLOOKUP(Übertrag!A9,Obst[],9,FALSE),"") -> 0 | AR212: =IF(Übertrag!A9>0,VLOOKUP(Übertrag!A9,Obst[],10,FALSE),"") -> kg | AS212: =IF(Übertrag!A9>0,VLOOKUP(Übertrag!A9,Obst[],12,FALSE),"") -> Lose
A215: =IF(Übertrag!A8>0,VLOOKUP(Übertrag!A8,Obst[],5,FALSE),"") -> 0 | Y215: =IF(Übertrag!A9>0,VLOOKUP(Übertrag!A9,Obst[],5,FALSE),"") -> Sorte:Paraguayos
A219: =IF(Übertrag!A8>0,VLOOKUP(Übertrag!A8,Obst[],6,FALSE),"") -> Sie ist nicht nur ein leckerer Bestandteil von sommerlichen Obstsalaten und eine echte Alternative für Menschen, die das pelzige Gefühl von Pfirsichen nicht mögen – die Nektarine ist auch unheimlich gesund. | Y219: =IF(Übertrag!A9>0,VLOOKUP(Übertrag!A9,Obst[],6,FALSE),"") -> Unter dem Namen Weinbergpfirsich kennen wir die flachen, hellrosa-orange-gelben Pfirsichfrüchte. Ihr Geschmack ist sehr süß und hoch aromatisch. Sie sind das neue Trendobst und als Weinbergpfirsich in aller Munde.
A230: =IF(Übertrag!A8>0,VLOOKUP(Übertrag!A8,Datenbank[],7,FALSE),"") -> 2025-07-16 | Y230: =IF(Übertrag!A9>0,VLOOKUP(Übertrag!A9,Datenbank[],7,FALSE),"") -> 2025-07-16

Sheet Druck 16 Felder (hidden)
A10: =IF(Übertrag!A2>0,VLOOKUP(Übertrag!A2,#REF!,2,FALSE),"") ->  | T10: =IF(Übertrag!A2>0,VLOOKUP(Übertrag!A2,#REF!,7,FALSE),"") ->  | Y10: =IF(Übertrag!A3>0,VLOOKUP(Übertrag!A3,#REF!,2,FALSE),"") ->  | AR10: =IF(Übertrag!A3>0,VLOOKUP(Übertrag!A3,#REF!,7,FALSE),"") -> 
A15: =IF(Übertrag!A2>0,VLOOKUP(Übertrag!A2,#REF!,3,FALSE),"") ->  | T15: =IF(Übertrag!A2>0,VLOOKUP(Übertrag!A2,#REF!,8,FALSE),"") ->  | Y15: =IF(Übertrag!A3>0,VLOOKUP(Übertrag!A3,#REF!,3,FALSE),"") ->  | AR15: =IF(Übertrag!A3>0,VLOOKUP(Übertrag!A3,#REF!,8,FALSE),"") -> 
A19: =_xlfn.IFS(Übertrag!A2="","",K41="1",VLOOKUP(Übertrag!A2,#REF!,17,FALSE),Übertrag!A2>0,VLOOKUP(Übertrag!A2,#REF!,16,FALSE)) ->  | L19: =IF(Übertrag!A2>0,VLOOKUP(Übertrag!A2,#REF!,13,FALSE),"") ->  | T19: =IF(Übertrag!A2>0,VLOOKUP(Übertrag!A2,#REF!,4,FALSE),"") ->  | Y19: =_xlfn.IFS(Übertrag!A3="","",AI41="1",VLOOKUP(Übertrag!A3,#REF!,17,FALSE),Übertrag!A3>0,VLOOKUP(Übertrag!A3,#REF!,16,FALSE)) ->  | AJ19: =IF(Übertrag!A3>0,VLOOKUP(Übertrag!A3,#REF!,13,FALSE),"") ->  | AR19: =IF(Übertrag!A3>0,VLOOKUP(Übertrag!A3,#REF!,4,FALSE),"") -> 
L23: =IF(Übertrag!A2>0,VLOOKUP(Übertrag!A2,#REF!,11,FALSE),"") ->  | AJ23: =IF(Übertrag!A3>0,VLOOKUP(Übertrag!A3,#REF!,11,FALSE),"") -> 
B41: =IF(Übertrag!A2>0,VLOOKUP(Übertrag!A2,#REF!,14,FALSE),"") ->  | K41: =IF(Übertrag!A2>0,VLOOKUP(Übertrag!A2,#REF!,15,FALSE),"") ->  | L41: =IF(N41="","","1kg=") ->  | N41: =IF(Q41=0,"",IF(T41="kg",SUM(L23/Q41),IF(T41="g",SUM(L23/Q41*1000),IF(T41="gr",SUM(L23/Q41*1000),"")))) ->  | Q41: =IF(Übertrag!A2>0,VLOOKUP(Übertrag!A2,#REF!,9,FALSE),"") ->  | T41: =IF(Übertrag!A2>0,VLOOKUP(Übertrag!A2,#REF!,10,FALSE),"") ->  | U41: =IF(Übertrag!A2>0,VLOOKUP(Übertrag!A2,#REF!,12,FALSE),"") ->  | Z41: =IF(Übertrag!A3>0,VLOOKUP(Übertrag!A3,#REF!,14,FALSE),"") ->  | AI41: =IF(Übertrag!A3>0,VLOOKUP(Übertrag!A3,#REF!,15,FALSE),"") ->  | AJ41: =IF(AL41="","","1kg=") ->  | AL41: =IF(AO41=0,"",IF(AR41="kg",SUM(AJ23/AO41),IF(AR41="g",SUM(AJ23/AO41*1000),IF(AR41="gr",SUM(AJ23/AO41*1000),"")))) ->  | AO41: =IF(Übertrag!A3>0,VLOOKUP(Übertrag!A3,#REF!,9,FALSE),"") ->  | AR41: =IF(Übertrag!A3>0,VLOOKUP(Übertrag!A3,#REF!,10,FALSE),"") ->  | AS41: =IF(Übertrag!A3>0,VLOOKUP(Übertrag!A3,#REF!,12,FALSE),"") -> 
A44: =IF(Übertrag!A2>0,VLOOKUP(Übertrag!A2,#REF!,5,FALSE),"") ->  | Y44: =IF(Übertrag!A3>0,VLOOKUP(Übertrag!A3,#REF!,5,FALSE),"") -> 
A48: =IF(Übertrag!A2>0,VLOOKUP(Übertrag!A2,#REF!,6,FALSE),"") ->  | Y48: =IF(Übertrag!A3>0,VLOOKUP(Übertrag!A3,#REF!,6,FALSE),"") -> 
A59: =IF(Übertrag!A2>0,VLOOKUP(Übertrag!A2,Datenbank[],7,FALSE),"") -> 2025-07-16 | Y59: =IF(Übertrag!A3>0,VLOOKUP(Übertrag!A3,Datenbank[],7,FALSE),"") -> 2025-07-16
A67: =IF(Übertrag!A4>0,VLOOKUP(Übertrag!A4,#REF!,2,FALSE),"") ->  | T67: =IF(Übertrag!A4>0,VLOOKUP(Übertrag!A4,#REF!,7,FALSE),"") ->  | Y67: =IF(Übertrag!A5>0,VLOOKUP(Übertrag!A5,#REF!,2,FALSE),"") ->  | AR67: =IF(Übertrag!A5>0,VLOOKUP(Übertrag!A5,#REF!,7,FALSE),"") -> 
A72: =IF(Übertrag!A4>0,VLOOKUP(Übertrag!A4,#REF!,3,FALSE),"") ->  | T72: =IF(Übertrag!A4>0,VLOOKUP(Übertrag!A4,#REF!,8,FALSE),"") ->  | Y72: =IF(Übertrag!A5>0,VLOOKUP(Übertrag!A5,#REF!,3,FALSE),"") ->  | AR72: =IF(Übertrag!A5>0,VLOOKUP(Übertrag!A5,#REF!,8,FALSE),"") -> 
A76: =_xlfn.IFS(Übertrag!A4="","",K98="1",VLOOKUP(Übertrag!A4,#REF!,17,FALSE),Übertrag!A4>0,VLOOKUP(Übertrag!A4,#REF!,16,FALSE)) ->  | L76: =IF(Übertrag!A4>0,VLOOKUP(Übertrag!A4,#REF!,13,FALSE),"") ->  | T76: =IF(Übertrag!A4>0,VLOOKUP(Übertrag!A4,#REF!,4,FALSE),"") ->  | Y76: =_xlfn.IFS(Übertrag!A5="","",AI98="1",VLOOKUP(Übertrag!A5,#REF!,17,FALSE),Übertrag!A5>0,VLOOKUP(Übertrag!A5,#REF!,16,FALSE)) ->  | AJ76: =IF(Übertrag!A5>0,VLOOKUP(Übertrag!A5,#REF!,13,FALSE),"") ->  | AR76: =IF(Übertrag!A5>0,VLOOKUP(Übertrag!A5,#REF!,4,FALSE),"") -> 
L80: =IF(Übertrag!A4>0,VLOOKUP(Übertrag!A4,#REF!,11,FALSE),"") ->  | AJ80: =IF(Übertrag!A5>0,VLOOKUP(Übertrag!A5,#REF!,11,FALSE),"") -> 
B98: =IF(Übertrag!A4>0,VLOOKUP(Übertrag!A4,#REF!,14,FALSE),"") ->  | K98: =IF(Übertrag!A4>0,VLOOKUP(Übertrag!A4,#REF!,15,FALSE),"") ->  | L98: =IF(N98="","","1kg=") ->  | N98: =IF(Q98=0,"",IF(T98="kg",SUM(L80/Q98),IF(T98="g",SUM(L80/Q98*1000),IF(T98="gr",SUM(L80/Q98*1000),"")))) ->  | Q98: =IF(Übertrag!A4>0,VLOOKUP(Übertrag!A4,#REF!,9,FALSE),"") ->  | T98: =IF(Übertrag!A4>0,VLOOKUP(Übertrag!A4,#REF!,10,FALSE),"") ->  | U98: =IF(Übertrag!A4>0,VLOOKUP(Übertrag!A4,#REF!,12,FALSE),"") ->  | Z98: =IF(Übertrag!A5>0,VLOOKUP(Übertrag!A5,#REF!,14,FALSE),"") ->  | AI98: =IF(Übertrag!A5>0,VLOOKUP(Übertrag!A5,#REF!,15,FALSE),"") ->  | AJ98: =IF(AL98="","","1kg=") ->  | AL98: =IF(AO98=0,"",IF(AR98="kg",SUM(AJ80/AO98),IF(AR98="g",SUM(AJ80/AO98*1000),IF(AR98="gr",SUM(AJ80/AO98*1000),"")))) ->  | AO98: =IF(Übertrag!A5>0,VLOOKUP(Übertrag!A5,#REF!,9,FALSE),"") ->  | AR98: =IF(Übertrag!A5>0,VLOOKUP(Übertrag!A5,#REF!,10,FALSE),"") ->  | AS98: =IF(Übertrag!A5>0,VLOOKUP(Übertrag!A5,#REF!,12,FALSE),"") -> 
A101: =IF(Übertrag!A4>0,VLOOKUP(Übertrag!A4,#REF!,5,FALSE),"") ->  | Y101: =IF(Übertrag!A5>0,VLOOKUP(Übertrag!A5,#REF!,5,FALSE),"") -> 
A105: =IF(Übertrag!A4>0,VLOOKUP(Übertrag!A4,#REF!,6,FALSE),"") ->  | Y105: =IF(Übertrag!A5>0,VLOOKUP(Übertrag!A5,#REF!,6,FALSE),"") -> 
A116: =IF(Übertrag!A4>0,VLOOKUP(Übertrag!A4,Datenbank[],7,FALSE),"") -> 2025-07-16 | Y116: =IF(Übertrag!A5>0,VLOOKUP(Übertrag!A5,Datenbank[],7,FALSE),"") -> 2025-07-16
A124: =IF(Übertrag!A6>0,VLOOKUP(Übertrag!A6,#REF!,2,FALSE),"") ->  | T124: =IF(Übertrag!A6>0,VLOOKUP(Übertrag!A6,#REF!,7,FALSE),"") ->  | Y124: =IF(Übertrag!A7>0,VLOOKUP(Übertrag!A7,#REF!,2,FALSE),"") ->  | AR124: =IF(Übertrag!A7>0,VLOOKUP(Übertrag!A7,#REF!,7,FALSE),"") -> 
A129: =IF(Übertrag!A6>0,VLOOKUP(Übertrag!A6,#REF!,3,FALSE),"") ->  | T129: =IF(Übertrag!A6>0,VLOOKUP(Übertrag!A6,#REF!,8,FALSE),"") ->  | Y129: =IF(Übertrag!A7>0,VLOOKUP(Übertrag!A7,#REF!,3,FALSE),"") ->  | AR129: =IF(Übertrag!A7>0,VLOOKUP(Übertrag!A7,#REF!,8,FALSE),"") -> 
A133: =_xlfn.IFS(Übertrag!A6="","",K155="1",VLOOKUP(Übertrag!A6,#REF!,17,FALSE),Übertrag!A6>0,VLOOKUP(Übertrag!A6,#REF!,16,FALSE)) ->  | L133: =IF(Übertrag!A6>0,VLOOKUP(Übertrag!A6,#REF!,13,FALSE),"") ->  | T133: =IF(Übertrag!A6>0,VLOOKUP(Übertrag!A6,#REF!,4,FALSE),"") ->  | Y133: =_xlfn.IFS(Übertrag!A7="","",AI155="1",VLOOKUP(Übertrag!A7,#REF!,17,FALSE),Übertrag!A7>0,VLOOKUP(Übertrag!A7,#REF!,16,FALSE)) ->  | AJ133: =IF(Übertrag!A7>0,VLOOKUP(Übertrag!A7,#REF!,13,FALSE),"") ->  | AR133: =IF(Übertrag!A7>0,VLOOKUP(Übertrag!A7,#REF!,4,FALSE),"") -> 
L137: =IF(Übertrag!A6>0,VLOOKUP(Übertrag!A6,#REF!,11,FALSE),"") ->  | AJ137: =IF(Übertrag!A7>0,VLOOKUP(Übertrag!A7,#REF!,11,FALSE),"") -> 
B155: =IF(Übertrag!A6>0,VLOOKUP(Übertrag!A6,#REF!,14,FALSE),"") ->  | K155: =IF(Übertrag!A6>0,VLOOKUP(Übertrag!A6,#REF!,15,FALSE),"") ->  | L155: =IF(N155="","","1kg=") ->  | N155: =IF(Q155=0,"",IF(T155="kg",SUM(L137/Q155),IF(T155="g",SUM(L137/Q155*1000),IF(T155="gr",SUM(L137/Q155*1000),"")))) ->  | Q155: =IF(Übertrag!A6>0,VLOOKUP(Übertrag!A6,#REF!,9,FALSE),"") ->  | T155: =IF(Übertrag!A6>0,VLOOKUP(Übertrag!A6,#REF!,10,FALSE),"") ->  | U155: =IF(Übertrag!A6>0,VLOOKUP(Übertrag!A6,#REF!,12,FALSE),"") ->  | Z155: =IF(Übertrag!A7>0,VLOOKUP(Übertrag!A7,#REF!,14,FALSE),"") ->  | AI155: =IF(Übertrag!A7>0,VLOOKUP(Übertrag!A7,#REF!,15,FALSE),"") ->  | AJ155: =IF(AL155="","","1kg=") ->  | AL155: =IF(AO155=0,"",IF(AR155="kg",SUM(AJ137/AO155),IF(AR155="g",SUM(AJ137/AO155*1000),IF(AR155="gr",SUM(AJ137/AO155*1000),"")))) ->  | AO155: =IF(Übertrag!A7>0,VLOOKUP(Übertrag!A7,#REF!,9,FALSE),"") ->  | AR155: =IF(Übertrag!A7>0,VLOOKUP(Übertrag!A7,#REF!,10,FALSE),"") ->  | AS155: =IF(Übertrag!A7>0,VLOOKUP(Übertrag!A7,#REF!,12,FALSE),"") -> 
A158: =IF(Übertrag!A6>0,VLOOKUP(Übertrag!A6,#REF!,5,FALSE),"") ->  | Y158: =IF(Übertrag!A7>0,VLOOKUP(Übertrag!A7,#REF!,5,FALSE),"") -> 
A162: =IF(Übertrag!A6>0,VLOOKUP(Übertrag!A6,#REF!,6,FALSE),"") ->  | Y162: =IF(Übertrag!A7>0,VLOOKUP(Übertrag!A7,#REF!,6,FALSE),"") -> 
A173: =IF(Übertrag!A6>0,VLOOKUP(Übertrag!A6,Datenbank[],7,FALSE),"") -> 2025-07-16 | Y173: =IF(Übertrag!A7>0,VLOOKUP(Übertrag!A7,Datenbank[],7,FALSE),"") -> 2025-07-16
A181: =IF(Übertrag!A8>0,VLOOKUP(Übertrag!A8,#REF!,2,FALSE),"") ->  | T181: =IF(Übertrag!A8>0,VLOOKUP(Übertrag!A8,#REF!,7,FALSE),"") ->  | Y181: =IF(Übertrag!A9>0,VLOOKUP(Übertrag!A9,#REF!,2,FALSE),"") ->  | AR181: =IF(Übertrag!A9>0,VLOOKUP(Übertrag!A9,#REF!,7,FALSE),"") -> 
A186: =IF(Übertrag!A8>0,VLOOKUP(Übertrag!A8,#REF!,3,FALSE),"") ->  | T186: =IF(Übertrag!A8>0,VLOOKUP(Übertrag!A8,#REF!,8,FALSE),"") ->  | Y186: =IF(Übertrag!A9>0,VLOOKUP(Übertrag!A9,#REF!,3,FALSE),"") ->  | AR186: =IF(Übertrag!A9>0,VLOOKUP(Übertrag!A9,#REF!,8,FALSE),"") -> 
A190: =_xlfn.IFS(Übertrag!A8="","",K212="1",VLOOKUP(Übertrag!A8,#REF!,17,FALSE),Übertrag!A8>0,VLOOKUP(Übertrag!A8,#REF!,16,FALSE)) ->  | L190: =IF(Übertrag!A8>0,VLOOKUP(Übertrag!A8,#REF!,13,FALSE),"") ->  | T190: =IF(Übertrag!A8>0,VLOOKUP(Übertrag!A8,#REF!,4,FALSE),"") ->  | Y190: =_xlfn.IFS(Übertrag!A9="","",AI212="1",VLOOKUP(Übertrag!A9,#REF!,17,FALSE),Übertrag!A9>0,VLOOKUP(Übertrag!A9,#REF!,16,FALSE)) ->  | AJ190: =IF(Übertrag!A9>0,VLOOKUP(Übertrag!A9,#REF!,13,FALSE),"") ->  | AR190: =IF(Übertrag!A9>0,VLOOKUP(Übertrag!A9,#REF!,4,FALSE),"") -> 
L194: =IF(Übertrag!A8>0,VLOOKUP(Übertrag!A8,#REF!,11,FALSE),"") ->  | AJ194: =IF(Übertrag!A9>0,VLOOKUP(Übertrag!A9,#REF!,11,FALSE),"") -> 
B212: =IF(Übertrag!A8>0,VLOOKUP(Übertrag!A8,#REF!,14,FALSE),"") ->  | K212: =IF(Übertrag!A8>0,VLOOKUP(Übertrag!A8,#REF!,15,FALSE),"") ->  | L212: =IF(N212="","","1kg=") ->  | N212: =IF(Q212=0,"",IF(T212="kg",SUM(L194/Q212),IF(T212="g",SUM(L194/Q212*1000),IF(T212="gr",SUM(L194/Q212*1000),"")))) ->  | Q212: =IF(Übertrag!A8>0,VLOOKUP(Übertrag!A8,#REF!,9,FALSE),"") ->  | T212: =IF(Übertrag!A8>0,VLOOKUP(Übertrag!A8,#REF!,10,FALSE),"") ->  | U212: =IF(Übertrag!A8>0,VLOOKUP(Übertrag!A8,#REF!,12,FALSE),"") ->  | Z212: =IF(Übertrag!A9>0,VLOOKUP(Übertrag!A9,#REF!,14,FALSE),"") ->  | AI212: =IF(Übertrag!A9>0,VLOOKUP(Übertrag!A9,#REF!,15,FALSE),"") ->  | AJ212: =IF(AL212="","","1kg=") ->  | AL212: =IF(AO212=0,"",IF(AR212="kg",SUM(AJ194/AO212),IF(AR212="g",SUM(AJ194/AO212*1000),IF(AR212="gr",SUM(AJ194/AO212*1000),"")))) ->  | AO212: =IF(Übertrag!A9>0,VLOOKUP(Übertrag!A9,#REF!,9,FALSE),"") ->  | AR212: =IF(Übertrag!A9>0,VLOOKUP(Übertrag!A9,#REF!,10,FALSE),"") ->  | AS212: =IF(Übertrag!A9>0,VLOOKUP(Übertrag!A9,#REF!,12,FALSE),"") -> 
A215: =IF(Übertrag!A8>0,VLOOKUP(Übertrag!A8,#REF!,5,FALSE),"") ->  | Y215: =IF(Übertrag!A9>0,VLOOKUP(Übertrag!A9,#REF!,5,FALSE),"") -> 
A219: =IF(Übertrag!A8>0,VLOOKUP(Übertrag!A8,#REF!,6,FALSE),"") ->  | Y219: =IF(Übertrag!A9>0,VLOOKUP(Übertrag!A9,#REF!,6,FALSE),"") -> 
A230: =IF(Übertrag!A8>0,VLOOKUP(Übertrag!A8,Datenbank[],7,FALSE),"") -> 2025-07-16 | Y230: =IF(Übertrag!A9>0,VLOOKUP(Übertrag!A9,Datenbank[],7,FALSE),"") -> 2025-07-16
A231: =IF(Übertrag!A10>0,VLOOKUP(Übertrag!A10,#REF!,2,FALSE),"") ->  | T231: =IF(Übertrag!A10>0,VLOOKUP(Übertrag!A10,#REF!,7,FALSE),"") ->  | Y231: =IF(Übertrag!A11>0,VLOOKUP(Übertrag!A11,#REF!,2,FALSE),"") ->  | AR231: =IF(Übertrag!A11>0,VLOOKUP(Übertrag!A11,#REF!,7,FALSE),"") -> 
A236: =IF(Übertrag!A10>0,VLOOKUP(Übertrag!A10,#REF!,3,FALSE),"") ->  | T236: =IF(Übertrag!A10>0,VLOOKUP(Übertrag!A10,#REF!,8,FALSE),"") ->  | Y236: =IF(Übertrag!A11>0,VLOOKUP(Übertrag!A11,#REF!,3,FALSE),"") ->  | AR236: =IF(Übertrag!A11>0,VLOOKUP(Übertrag!A11,#REF!,8,FALSE),"") -> 
A240: =_xlfn.IFS(Übertrag!A10="","",K262="1",VLOOKUP(Übertrag!A10,#REF!,17,FALSE),Übertrag!A10>0,VLOOKUP(Übertrag!A10,#REF!,16,FALSE)) ->  | L240: =IF(Übertrag!A10>0,VLOOKUP(Übertrag!A10,#REF!,13,FALSE),"") ->  | T240: =IF(Übertrag!A10>0,VLOOKUP(Übertrag!A10,#REF!,4,FALSE),"") ->  | Y240: =_xlfn.IFS(Übertrag!A11="","",AI262="1",VLOOKUP(Übertrag!A11,#REF!,17,FALSE),Übertrag!A11>0,VLOOKUP(Übertrag!A11,#REF!,16,FALSE)) ->  | AJ240: =IF(Übertrag!A11>0,VLOOKUP(Übertrag!A11,#REF!,13,FALSE),"") ->  | AR240: =IF(Übertrag!A11>0,VLOOKUP(Übertrag!A11,#REF!,4,FALSE),"") -> 
L244: =IF(Übertrag!A10>0,VLOOKUP(Übertrag!A10,#REF!,11,FALSE),"") ->  | AJ244: =IF(Übertrag!A11>0,VLOOKUP(Übertrag!A11,#REF!,11,FALSE),"") -> 
B262: =IF(Übertrag!A10>0,VLOOKUP(Übertrag!A10,#REF!,14,FALSE),"") ->  | K262: =IF(Übertrag!A10>0,VLOOKUP(Übertrag!A10,#REF!,15,FALSE),"") ->  | L262: =IF(N262="","","1kg=") ->  | N262: =IF(Q262=0,"",IF(T262="kg",SUM(L244/Q262),IF(T262="g",SUM(L244/Q262*1000),IF(T262="gr",SUM(L244/Q262*1000),"")))) ->  | Q262: =IF(Übertrag!A10>0,VLOOKUP(Übertrag!A10,#REF!,9,FALSE),"") ->  | T262: =IF(Übertrag!A10>0,VLOOKUP(Übertrag!A10,#REF!,10,FALSE),"") ->  | U262: =IF(Übertrag!A10>0,VLOOKUP(Übertrag!A10,#REF!,12,FALSE),"") ->  | Z262: =IF(Übertrag!A11>0,VLOOKUP(Übertrag!A11,#REF!,14,FALSE),"") ->  | AI262: =IF(Übertrag!A11>0,VLOOKUP(Übertrag!A11,#REF!,15,FALSE),"") ->  | AJ262: =IF(AL262="","","1kg=") ->  | AL262: =IF(AO262=0,"",IF(AR262="kg",SUM(AJ244/AO262),IF(AR262="g",SUM(AJ244/AO262*1000),IF(AR262="gr",SUM(AJ244/AO262*1000),"")))) ->  | AO262: =IF(Übertrag!A11>0,VLOOKUP(Übertrag!A11,#REF!,9,FALSE),"") ->  | AR262: =IF(Übertrag!A11>0,VLOOKUP(Übertrag!A11,#REF!,10,FALSE),"") ->  | AS262: =IF(Übertrag!A11>0,VLOOKUP(Übertrag!A11,#REF!,12,FALSE),"") -> 
A265: =IF(Übertrag!A10>0,VLOOKUP(Übertrag!A10,#REF!,5,FALSE),"") ->  | Y265: =IF(Übertrag!A11>0,VLOOKUP(Übertrag!A11,#REF!,5,FALSE),"") -> 
A269: =IF(Übertrag!A10>0,VLOOKUP(Übertrag!A10,#REF!,6,FALSE),"") ->  | Y269: =IF(Übertrag!A11>0,VLOOKUP(Übertrag!A11,#REF!,6,FALSE),"") -> 
A280: =IF(Übertrag!A10>0,VLOOKUP(Übertrag!A10,Datenbank[],7,FALSE),"") ->  | Y280: =IF(Übertrag!A11>0,VLOOKUP(Übertrag!A11,Datenbank[],7,FALSE),"") -> 
A288: =IF(Übertrag!A12>0,VLOOKUP(Übertrag!A12,#REF!,2,FALSE),"") ->  | T288: =IF(Übertrag!A12>0,VLOOKUP(Übertrag!A12,#REF!,7,FALSE),"") ->  | Y288: =IF(Übertrag!A13>0,VLOOKUP(Übertrag!A13,#REF!,2,FALSE),"") ->  | AR288: =IF(Übertrag!A13>0,VLOOKUP(Übertrag!A13,#REF!,7,FALSE),"") -> 
A293: =IF(Übertrag!A12>0,VLOOKUP(Übertrag!A12,#REF!,3,FALSE),"") ->  | T293: =IF(Übertrag!A12>0,VLOOKUP(Übertrag!A12,#REF!,8,FALSE),"") ->  | Y293: =IF(Übertrag!A13>0,VLOOKUP(Übertrag!A13,#REF!,3,FALSE),"") ->  | AR293: =IF(Übertrag!A13>0,VLOOKUP(Übertrag!A13,#REF!,8,FALSE),"") -> 
A297: =_xlfn.IFS(Übertrag!A12="","",K319="1",VLOOKUP(Übertrag!A12,#REF!,17,FALSE),Übertrag!A12>0,VLOOKUP(Übertrag!A12,#REF!,16,FALSE)) ->  | L297: =IF(Übertrag!A12>0,VLOOKUP(Übertrag!A12,#REF!,13,FALSE),"") ->  | T297: =IF(Übertrag!A12>0,VLOOKUP(Übertrag!A12,#REF!,4,FALSE),"") ->  | Y297: =_xlfn.IFS(Übertrag!A13="","",AI319="1",VLOOKUP(Übertrag!A13,#REF!,17,FALSE),Übertrag!A13>0,VLOOKUP(Übertrag!A13,#REF!,16,FALSE)) ->  | AJ297: =IF(Übertrag!A13>0,VLOOKUP(Übertrag!A13,#REF!,13,FALSE),"") ->  | AR297: =IF(Übertrag!A13>0,VLOOKUP(Übertrag!A13,#REF!,4,FALSE),"") -> 
L301: =IF(Übertrag!A12>0,VLOOKUP(Übertrag!A12,#REF!,11,FALSE),"") ->  | AJ301: =IF(Übertrag!A13>0,VLOOKUP(Übertrag!A13,#REF!,11,FALSE),"") -> 
B319: =IF(Übertrag!A12>0,VLOOKUP(Übertrag!A12,#REF!,14,FALSE),"") ->  | K319: =IF(Übertrag!A12>0,VLOOKUP(Übertrag!A12,#REF!,15,FALSE),"") ->  | L319: =IF(N319="","","1kg=") ->  | N319: =IF(Q319=0,"",IF(T319="kg",SUM(L301/Q319),IF(T319="g",SUM(L301/Q319*1000),IF(T319="gr",SUM(L301/Q319*1000),"")))) ->  | Q319: =IF(Übertrag!A12>0,VLOOKUP(Übertrag!A12,#REF!,9,FALSE),"") ->  | T319: =IF(Übertrag!A12>0,VLOOKUP(Übertrag!A12,#REF!,10,FALSE),"") ->  | U319: =IF(Übertrag!A12>0,VLOOKUP(Übertrag!A12,#REF!,12,FALSE),"") ->  | Z319: =IF(Übertrag!A13>0,VLOOKUP(Übertrag!A13,#REF!,14,FALSE),"") ->  | AI319: =IF(Übertrag!A13>0,VLOOKUP(Übertrag!A13,#REF!,15,FALSE),"") ->  | AJ319: =IF(AL319="","","1kg=") ->  | AL319: =IF(AO319=0,"",IF(AR319="kg",SUM(AJ301/AO319),IF(AR319="g",SUM(AJ301/AO319*1000),IF(AR319="gr",SUM(AJ301/AO319*1000),"")))) ->  | AO319: =IF(Übertrag!A13>0,VLOOKUP(Übertrag!A13,#REF!,9,FALSE),"") ->  | AR319: =IF(Übertrag!A13>0,VLOOKUP(Übertrag!A13,#REF!,10,FALSE),"") ->  | AS319: =IF(Übertrag!A13>0,VLOOKUP(Übertrag!A13,#REF!,12,FALSE),"") -> 
A322: =IF(Übertrag!A12>0,VLOOKUP(Übertrag!A12,#REF!,5,FALSE),"") ->  | Y322: =IF(Übertrag!A13>0,VLOOKUP(Übertrag!A13,#REF!,5,FALSE),"") -> 
A326: =IF(Übertrag!A12>0,VLOOKUP(Übertrag!A12,#REF!,6,FALSE),"") ->  | Y326: =IF(Übertrag!A13>0,VLOOKUP(Übertrag!A13,#REF!,6,FALSE),"") -> 
A337: =IF(Übertrag!A12>0,VLOOKUP(Übertrag!A12,Datenbank[],7,FALSE),"") ->  | Y337: =IF(Übertrag!A13>0,VLOOKUP(Übertrag!A13,Datenbank[],7,FALSE),"") -> 
A345: =IF(Übertrag!A14>0,VLOOKUP(Übertrag!A14,#REF!,2,FALSE),"") ->  | T345: =IF(Übertrag!A14>0,VLOOKUP(Übertrag!A14,#REF!,7,FALSE),"") ->  | Y345: =IF(Übertrag!A15>0,VLOOKUP(Übertrag!A15,#REF!,2,FALSE),"") ->  | AR345: =IF(Übertrag!A15>0,VLOOKUP(Übertrag!A15,#REF!,7,FALSE),"") -> 
A350: =IF(Übertrag!A14>0,VLOOKUP(Übertrag!A14,#REF!,3,FALSE),"") ->  | T350: =IF(Übertrag!A14>0,VLOOKUP(Übertrag!A14,#REF!,8,FALSE),"") ->  | Y350: =IF(Übertrag!A15>0,VLOOKUP(Übertrag!A15,#REF!,3,FALSE),"") ->  | AR350: =IF(Übertrag!A15>0,VLOOKUP(Übertrag!A15,#REF!,8,FALSE),"") -> 
A354: =_xlfn.IFS(Übertrag!A14="","",K376="1",VLOOKUP(Übertrag!A14,#REF!,17,FALSE),Übertrag!A14>0,VLOOKUP(Übertrag!A14,#REF!,16,FALSE)) ->  | L354: =IF(Übertrag!A14>0,VLOOKUP(Übertrag!A14,#REF!,13,FALSE),"") ->  | T354: =IF(Übertrag!A14>0,VLOOKUP(Übertrag!A14,#REF!,4,FALSE),"") ->  | Y354: =_xlfn.IFS(Übertrag!A15="","",AI376="1",VLOOKUP(Übertrag!A15,#REF!,17,FALSE),Übertrag!A15>0,VLOOKUP(Übertrag!A15,#REF!,16,FALSE)) ->  | AJ354: =IF(Übertrag!A15>0,VLOOKUP(Übertrag!A15,#REF!,13,FALSE),"") ->  | AR354: =IF(Übertrag!A15>0,VLOOKUP(Übertrag!A15,#REF!,4,FALSE),"") -> 
L358: =IF(Übertrag!A14>0,VLOOKUP(Übertrag!A14,#REF!,11,FALSE),"") ->  | AJ358: =IF(Übertrag!A15>0,VLOOKUP(Übertrag!A15,#REF!,11,FALSE),"") -> 
B376: =IF(Übertrag!A14>0,VLOOKUP(Übertrag!A14,#REF!,14,FALSE),"") ->  | K376: =IF(Übertrag!A14>0,VLOOKUP(Übertrag!A14,#REF!,15,FALSE),"") ->  | L376: =IF(N376="","","1kg=") ->  | N376: =IF(Q376=0,"",IF(T376="kg",SUM(L358/Q376),IF(T376="g",SUM(L358/Q376*1000),IF(T376="gr",SUM(L358/Q376*1000),"")))) ->  | Q376: =IF(Übertrag!A14>0,VLOOKUP(Übertrag!A14,#REF!,9,FALSE),"") ->  | T376: =IF(Übertrag!A14>0,VLOOKUP(Übertrag!A14,#REF!,10,FALSE),"") ->  | U376: =IF(Übertrag!A14>0,VLOOKUP(Übertrag!A14,#REF!,12,FALSE),"") ->  | Z376: =IF(Übertrag!A15>0,VLOOKUP(Übertrag!A15,#REF!,14,FALSE),"") ->  | AI376: =IF(Übertrag!A15>0,VLOOKUP(Übertrag!A15,#REF!,15,FALSE),"") ->  | AJ376: =IF(AL376="","","1kg=") ->  | AL376: =IF(AO376=0,"",IF(AR376="kg",SUM(AJ358/AO376),IF(AR376="g",SUM(AJ358/AO376*1000),IF(AR376="gr",SUM(AJ358/AO376*1000),"")))) ->  | AO376: =IF(Übertrag!A15>0,VLOOKUP(Übertrag!A15,#REF!,9,FALSE),"") ->  | AR376: =IF(Übertrag!A15>0,VLOOKUP(Übertrag!A15,#REF!,10,FALSE),"") ->  | AS376: =IF(Übertrag!A15>0,VLOOKUP(Übertrag!A15,#REF!,12,FALSE),"") -> 
A379: =IF(Übertrag!A14>0,VLOOKUP(Übertrag!A14,#REF!,5,FALSE),"") ->  | Y379: =IF(Übertrag!A15>0,VLOOKUP(Übertrag!A15,#REF!,5,FALSE),"") -> 
A383: =IF(Übertrag!A14>0,VLOOKUP(Übertrag!A14,#REF!,6,FALSE),"") ->  | Y383: =IF(Übertrag!A15>0,VLOOKUP(Übertrag!A15,#REF!,6,FALSE),"") -> 
A394: =IF(Übertrag!A14>0,VLOOKUP(Übertrag!A14,Datenbank[],7,FALSE),"") ->  | Y394: =IF(Übertrag!A15>0,VLOOKUP(Übertrag!A15,Datenbank[],7,FALSE),"") -> 
A402: =IF(Übertrag!A16>0,VLOOKUP(Übertrag!A16,#REF!,2,FALSE),"") ->  | T402: =IF(Übertrag!A16>0,VLOOKUP(Übertrag!A16,#REF!,7,FALSE),"") ->  | Y402: =IF(Übertrag!A17>0,VLOOKUP(Übertrag!A17,#REF!,2,FALSE),"") ->  | AR402: =IF(Übertrag!A17>0,VLOOKUP(Übertrag!A17,#REF!,7,FALSE),"") -> 
A407: =IF(Übertrag!A16>0,VLOOKUP(Übertrag!A16,#REF!,3,FALSE),"") ->  | T407: =IF(Übertrag!A16>0,VLOOKUP(Übertrag!A16,#REF!,8,FALSE),"") ->  | Y407: =IF(Übertrag!A17>0,VLOOKUP(Übertrag!A17,#REF!,3,FALSE),"") ->  | AR407: =IF(Übertrag!A17>0,VLOOKUP(Übertrag!A17,#REF!,8,FALSE),"") -> 
A411: =_xlfn.IFS(Übertrag!A16="","",K433="1",VLOOKUP(Übertrag!A16,#REF!,17,FALSE),Übertrag!A16>0,VLOOKUP(Übertrag!A16,#REF!,16,FALSE)) ->  | L411: =IF(Übertrag!A16>0,VLOOKUP(Übertrag!A16,#REF!,13,FALSE),"") ->  | T411: =IF(Übertrag!A16>0,VLOOKUP(Übertrag!A16,#REF!,4,FALSE),"") ->  | Y411: =_xlfn.IFS(Übertrag!A17="","",AI433="1",VLOOKUP(Übertrag!A17,#REF!,17,FALSE),Übertrag!A17>0,VLOOKUP(Übertrag!A17,#REF!,16,FALSE)) ->  | AJ411: =IF(Übertrag!A17>0,VLOOKUP(Übertrag!A17,#REF!,13,FALSE),"") ->  | AR411: =IF(Übertrag!A17>0,VLOOKUP(Übertrag!A17,#REF!,4,FALSE),"") -> 
L415: =IF(Übertrag!A16>0,VLOOKUP(Übertrag!A16,#REF!,11,FALSE),"") ->  | AJ415: =IF(Übertrag!A17>0,VLOOKUP(Übertrag!A17,#REF!,11,FALSE),"") -> 
B433: =IF(Übertrag!A16>0,VLOOKUP(Übertrag!A16,#REF!,14,FALSE),"") ->  | K433: =IF(Übertrag!A16>0,VLOOKUP(Übertrag!A16,#REF!,15,FALSE),"") ->  | L433: =IF(N433="","","1kg=") ->  | N433: =IF(Q433=0,"",IF(T433="kg",SUM(L415/Q433),IF(T433="g",SUM(L415/Q433*1000),IF(T433="gr",SUM(L415/Q433*1000),"")))) ->  | Q433: =IF(Übertrag!A16>0,VLOOKUP(Übertrag!A16,#REF!,9,FALSE),"") ->  | T433: =IF(Übertrag!A16>0,VLOOKUP(Übertrag!A16,#REF!,10,FALSE),"") ->  | U433: =IF(Übertrag!A16>0,VLOOKUP(Übertrag!A16,#REF!,12,FALSE),"") ->  | Z433: =IF(Übertrag!A17>0,VLOOKUP(Übertrag!A17,#REF!,14,FALSE),"") ->  | AI433: =IF(Übertrag!A17>0,VLOOKUP(Übertrag!A17,#REF!,15,FALSE),"") ->  | AJ433: =IF(AL433="","","1kg=") ->  | AL433: =IF(AO433=0,"",IF(AR433="kg",SUM(AJ415/AO433),IF(AR433="g",SUM(AJ415/AO433*1000),IF(AR433="gr",SUM(AJ415/AO433*1000),"")))) ->  | AO433: =IF(Übertrag!A17>0,VLOOKUP(Übertrag!A17,#REF!,9,FALSE),"") ->  | AR433: =IF(Übertrag!A17>0,VLOOKUP(Übertrag!A17,#REF!,10,FALSE),"") ->  | AS433: =IF(Übertrag!A17>0,VLOOKUP(Übertrag!A17,#REF!,12,FALSE),"") -> 
A436: =IF(Übertrag!A16>0,VLOOKUP(Übertrag!A16,#REF!,5,FALSE),"") ->  | Y436: =IF(Übertrag!A17>0,VLOOKUP(Übertrag!A17,#REF!,5,FALSE),"") -> 
A440: =IF(Übertrag!A16>0,VLOOKUP(Übertrag!A16,#REF!,6,FALSE),"") ->  | Y440: =IF(Übertrag!A17>0,VLOOKUP(Übertrag!A17,#REF!,6,FALSE),"") -> 
A451: =IF(Übertrag!A16>0,VLOOKUP(Übertrag!A16,Datenbank[],7,FALSE),"") ->  | Y451: =IF(Übertrag!A19>0,VLOOKUP(Übertrag!A19,Datenbank[],7,FALSE),"") -> 

Sheet Druck 24 Felder (hidden)
A10: =IF(Übertrag!A2>0,VLOOKUP(Übertrag!A2,#REF!,2,FALSE),"") ->  | T10: =IF(Übertrag!A2>0,VLOOKUP(Übertrag!A2,#REF!,7,FALSE),"") ->  | Y10: =IF(Übertrag!A3>0,VLOOKUP(Übertrag!A3,#REF!,2,FALSE),"") ->  | AR10: =IF(Übertrag!A3>0,VLOOKUP(Übertrag!A3,#REF!,7,FALSE),"") -> 
A15: =IF(Übertrag!A2>0,VLOOKUP(Übertrag!A2,#REF!,3,FALSE),"") ->  | T15: =IF(Übertrag!A2>0,VLOOKUP(Übertrag!A2,#REF!,8,FALSE),"") ->  | Y15: =IF(Übertrag!A3>0,VLOOKUP(Übertrag!A3,#REF!,3,FALSE),"") ->  | AR15: =IF(Übertrag!A3>0,VLOOKUP(Übertrag!A3,#REF!,8,FALSE),"") -> 
A19: =_xlfn.IFS(Übertrag!A2="","",K41="1",VLOOKUP(Übertrag!A2,#REF!,17,FALSE),Übertrag!A2>0,VLOOKUP(Übertrag!A2,#REF!,16,FALSE)) ->  | L19: =IF(Übertrag!A2>0,VLOOKUP(Übertrag!A2,#REF!,13,FALSE),"") ->  | T19: =IF(Übertrag!A2>0,VLOOKUP(Übertrag!A2,#REF!,4,FALSE),"") ->  | Y19: =_xlfn.IFS(Übertrag!A3="","",AI41="1",VLOOKUP(Übertrag!A3,#REF!,17,FALSE),Übertrag!A3>0,VLOOKUP(Übertrag!A3,#REF!,16,FALSE)) ->  | AJ19: =IF(Übertrag!A3>0,VLOOKUP(Übertrag!A3,#REF!,13,FALSE),"") ->  | AR19: =IF(Übertrag!A3>0,VLOOKUP(Übertrag!A3,#REF!,4,FALSE),"") -> 
L23: =IF(Übertrag!A2>0,VLOOKUP(Übertrag!A2,#REF!,11,FALSE),"") ->  | AJ23: =IF(Übertrag!A3>0,VLOOKUP(Übertrag!A3,#REF!,11,FALSE),"") -> 
B41: =IF(Übertrag!A2>0,VLOOKUP(Übertrag!A2,#REF!,14,FALSE),"") ->  | K41: =IF(Übertrag!A2>0,VLOOKUP(Übertrag!A2,#REF!,15,FALSE),"") ->  | L41: =IF(N41="","","1kg=") ->  | N41: =IF(Q41=0,"",IF(T41="kg",SUM(L23/Q41),IF(T41="g",SUM(L23/Q41*1000),IF(T41="gr",SUM(L23/Q41*1000),"")))) ->  | Q41: =IF(Übertrag!A2>0,VLOOKUP(Übertrag!A2,#REF!,9,FALSE),"") ->  | T41: =IF(Übertrag!A2>0,VLOOKUP(Übertrag!A2,#REF!,10,FALSE),"") ->  | U41: =IF(Übertrag!A2>0,VLOOKUP(Übertrag!A2,#REF!,12,FALSE),"") ->  | Z41: =IF(Übertrag!A3>0,VLOOKUP(Übertrag!A3,#REF!,14,FALSE),"") ->  | AI41: =IF(Übertrag!A3>0,VLOOKUP(Übertrag!A3,#REF!,15,FALSE),"") ->  | AJ41: =IF(AL41="","","1kg=") ->  | AL41: =IF(AO41=0,"",IF(AR41="kg",SUM(AJ23/AO41),IF(AR41="g",SUM(AJ23/AO41*1000),IF(AR41="gr",SUM(AJ23/AO41*1000),"")))) ->  | AO41: =IF(Übertrag!A3>0,VLOOKUP(Übertrag!A3,#REF!,9,FALSE),"") ->  | AR41: =IF(Übertrag!A3>0,VLOOKUP(Übertrag!A3,#REF!,10,FALSE),"") ->  | AS41: =IF(Übertrag!A3>0,VLOOKUP(Übertrag!A3,#REF!,12,FALSE),"") -> 
A44: =IF(Übertrag!A2>0,VLOOKUP(Übertrag!A2,#REF!,5,FALSE),"") ->  | Y44: =IF(Übertrag!A3>0,VLOOKUP(Übertrag!A3,#REF!,5,FALSE),"") -> 
A48: =IF(Übertrag!A2>0,VLOOKUP(Übertrag!A2,#REF!,6,FALSE),"") ->  | Y48: =IF(Übertrag!A3>0,VLOOKUP(Übertrag!A3,#REF!,6,FALSE),"") -> 
A59: =IF(Übertrag!A2>0,VLOOKUP(Übertrag!A2,Datenbank[],7,FALSE),"") -> 2025-07-16 | Y59: =IF(Übertrag!A3>0,VLOOKUP(Übertrag!A3,Datenbank[],7,FALSE),"") -> 2025-07-16
A67: =IF(Übertrag!A4>0,VLOOKUP(Übertrag!A4,#REF!,2,FALSE),"") ->  | T67: =IF(Übertrag!A4>0,VLOOKUP(Übertrag!A4,#REF!,7,FALSE),"") ->  | Y67: =IF(Übertrag!A5>0,VLOOKUP(Übertrag!A5,#REF!,2,FALSE),"") ->  | AR67: =IF(Übertrag!A5>0,VLOOKUP(Übertrag!A5,#REF!,7,FALSE),"") -> 
A72: =IF(Übertrag!A4>0,VLOOKUP(Übertrag!A4,#REF!,3,FALSE),"") ->  | T72: =IF(Übertrag!A4>0,VLOOKUP(Übertrag!A4,#REF!,8,FALSE),"") ->  | Y72: =IF(Übertrag!A5>0,VLOOKUP(Übertrag!A5,#REF!,3,FALSE),"") ->  | AR72: =IF(Übertrag!A5>0,VLOOKUP(Übertrag!A5,#REF!,8,FALSE),"") -> 
A76: =_xlfn.IFS(Übertrag!A4="","",K98="1",VLOOKUP(Übertrag!A4,#REF!,17,FALSE),Übertrag!A4>0,VLOOKUP(Übertrag!A4,#REF!,16,FALSE)) ->  | L76: =IF(Übertrag!A4>0,VLOOKUP(Übertrag!A4,#REF!,13,FALSE),"") ->  | T76: =IF(Übertrag!A4>0,VLOOKUP(Übertrag!A4,#REF!,4,FALSE),"") ->  | Y76: =_xlfn.IFS(Übertrag!A5="","",AI98="1",VLOOKUP(Übertrag!A5,#REF!,17,FALSE),Übertrag!A5>0,VLOOKUP(Übertrag!A5,#REF!,16,FALSE)) ->  | AJ76: =IF(Übertrag!A5>0,VLOOKUP(Übertrag!A5,#REF!,13,FALSE),"") ->  | AR76: =IF(Übertrag!A5>0,VLOOKUP(Übertrag!A5,#REF!,4,FALSE),"") -> 
L80: =IF(Übertrag!A4>0,VLOOKUP(Übertrag!A4,#REF!,11,FALSE),"") ->  | AJ80: =IF(Übertrag!A5>0,VLOOKUP(Übertrag!A5,#REF!,11,FALSE),"") -> 
B98: =IF(Übertrag!A4>0,VLOOKUP(Übertrag!A2,#REF!,14,FALSE),"") ->  | K98: =IF(Übertrag!A4>0,VLOOKUP(Übertrag!A4,#REF!,15,FALSE),"") ->  | L98: =IF(N98="","","1kg=") ->  | N98: =IF(Q98=0,"",IF(T98="kg",SUM(L80/Q98),IF(T98="g",SUM(L80/Q98*1000),IF(T98="gr",SUM(L80/Q98*1000),"")))) ->  | Q98: =IF(Übertrag!A4>0,VLOOKUP(Übertrag!A4,#REF!,9,FALSE),"") ->  | T98: =IF(Übertrag!A4>0,VLOOKUP(Übertrag!A4,#REF!,10,FALSE),"") ->  | U98: =IF(Übertrag!A4>0,VLOOKUP(Übertrag!A4,#REF!,12,FALSE),"") ->  | Z98: =IF(Übertrag!A5>0,VLOOKUP(Übertrag!A5,#REF!,14,FALSE),"") ->  | AI98: =IF(Übertrag!A5>0,VLOOKUP(Übertrag!A5,#REF!,15,FALSE),"") ->  | AJ98: =IF(AL98="","","1kg=") ->  | AL98: =IF(AO98=0,"",IF(AS98="lose","",IF(AR98="kg",SUM(AJ80/AO98),IF(AR98="g",SUM(AJ80/AO98*1000),IF(AR98="gr",SUM(AJ80/AO98*1000),""))))) ->  | AO98: =IF(Übertrag!A5>0,VLOOKUP(Übertrag!A5,#REF!,9,FALSE),"") ->  | AR98: =IF(Übertrag!A5>0,VLOOKUP(Übertrag!A5,#REF!,10,FALSE),"") ->  | AS98: =IF(Übertrag!A5>0,VLOOKUP(Übertrag!A5,#REF!,12,FALSE),"") -> 
A101: =IF(Übertrag!A4>0,VLOOKUP(Übertrag!A4,#REF!,5,FALSE),"") ->  | Y101: =IF(Übertrag!A5>0,VLOOKUP(Übertrag!A5,#REF!,5,FALSE),"") -> 
A105: =IF(Übertrag!A4>0,VLOOKUP(Übertrag!A4,#REF!,6,FALSE),"") ->  | Y105: =IF(Übertrag!A5>0,VLOOKUP(Übertrag!A5,#REF!,6,FALSE),"") -> 
A116: =IF(Übertrag!A4>0,VLOOKUP(Übertrag!A4,Datenbank[],7,FALSE),"") -> 2025-07-16 | Y116: =IF(Übertrag!A5>0,VLOOKUP(Übertrag!A5,Datenbank[],7,FALSE),"") -> 2025-07-16
A124: =IF(Übertrag!A6>0,VLOOKUP(Übertrag!A6,#REF!,2,FALSE),"") ->  | T124: =IF(Übertrag!A6>0,VLOOKUP(Übertrag!A6,#REF!,7,FALSE),"") ->  | Y124: =IF(Übertrag!A7>0,VLOOKUP(Übertrag!A7,#REF!,2,FALSE),"") ->  | AR124: =IF(Übertrag!A7>0,VLOOKUP(Übertrag!A7,#REF!,7,FALSE),"") -> 
A129: =IF(Übertrag!A6>0,VLOOKUP(Übertrag!A6,#REF!,3,FALSE),"") ->  | T129: =IF(Übertrag!A6>0,VLOOKUP(Übertrag!A6,#REF!,8,FALSE),"") ->  | Y129: =IF(Übertrag!A7>0,VLOOKUP(Übertrag!A7,#REF!,3,FALSE),"") ->  | AR129: =IF(Übertrag!A7>0,VLOOKUP(Übertrag!A7,#REF!,8,FALSE),"") -> 
A133: =_xlfn.IFS(Übertrag!A6="","",K155="1",VLOOKUP(Übertrag!A6,#REF!,17,FALSE),Übertrag!A6>0,VLOOKUP(Übertrag!A6,#REF!,16,FALSE)) ->  | L133: =IF(Übertrag!A6>0,VLOOKUP(Übertrag!A6,#REF!,13,FALSE),"") ->  | T133: =IF(Übertrag!A6>0,VLOOKUP(Übertrag!A6,#REF!,4,FALSE),"") ->  | Y133: =_xlfn.IFS(Übertrag!A7="","",AI155="1",VLOOKUP(Übertrag!A7,#REF!,17,FALSE),Übertrag!A7>0,VLOOKUP(Übertrag!A7,#REF!,16,FALSE)) ->  | AJ133: =IF(Übertrag!A7>0,VLOOKUP(Übertrag!A7,#REF!,13,FALSE),"") ->  | AR133: =IF(Übertrag!A7>0,VLOOKUP(Übertrag!A7,#REF!,4,FALSE),"") -> 
L137: =IF(Übertrag!A6>0,VLOOKUP(Übertrag!A6,#REF!,11,FALSE),"") ->  | AJ137: =IF(Übertrag!A7>0,VLOOKUP(Übertrag!A7,#REF!,11,FALSE),"") -> 
B155: =IF(Übertrag!A6>0,VLOOKUP(Übertrag!A6,#REF!,14,FALSE),"") ->  | K155: =IF(Übertrag!A6>0,VLOOKUP(Übertrag!A6,#REF!,15,FALSE),"") ->  | L155: =IF(N155="","","1kg=") ->  | N155: =IF(Q155=0,"",IF(T155="kg",SUM(L137/Q155),IF(T155="g",SUM(L137/Q155*1000),IF(T155="gr",SUM(L137/Q155*1000),"")))) ->  | Q155: =IF(Übertrag!A6>0,VLOOKUP(Übertrag!A6,#REF!,9,FALSE),"") ->  | T155: =IF(Übertrag!A6>0,VLOOKUP(Übertrag!A6,#REF!,10,FALSE),"") ->  | U155: =IF(Übertrag!A6>0,VLOOKUP(Übertrag!A6,#REF!,12,FALSE),"") ->  | Z155: =IF(Übertrag!A7>0,VLOOKUP(Übertrag!A7,#REF!,14,FALSE),"") ->  | AI155: =IF(Übertrag!A7>0,VLOOKUP(Übertrag!A7,#REF!,15,FALSE),"") ->  | AJ155: =IF(AL155="","","1kg=") ->  | AL155: =IF(AO155=0,"",IF(AR155="kg",SUM(AJ137/AO155),IF(AR155="g",SUM(AJ137/AO155*1000),IF(AR155="gr",SUM(AJ137/AO155*1000),"")))) ->  | AO155: =IF(Übertrag!A7>0,VLOOKUP(Übertrag!A7,#REF!,9,FALSE),"") ->  | AR155: =IF(Übertrag!A7>0,VLOOKUP(Übertrag!A7,#REF!,10,FALSE),"") ->  | AS155: =IF(Übertrag!A7>0,VLOOKUP(Übertrag!A7,#REF!,12,FALSE),"") -> 
A158: =IF(Übertrag!A6>0,VLOOKUP(Übertrag!A6,#REF!,5,FALSE),"") ->  | Y158: =IF(Übertrag!A7>0,VLOOKUP(Übertrag!A7,#REF!,5,FALSE),"") -> 
A162: =IF(Übertrag!A6>0,VLOOKUP(Übertrag!A6,#REF!,6,FALSE),"") ->  | Y162: =IF(Übertrag!A7>0,VLOOKUP(Übertrag!A7,#REF!,6,FALSE),"") -> 
A173: =IF(Übertrag!A6>0,VLOOKUP(Übertrag!A6,Datenbank[],7,FALSE),"") -> 2025-07-16 | Y173: =IF(Übertrag!A7>0,VLOOKUP(Übertrag!A7,Datenbank[],7,FALSE),"") -> 2025-07-16
A181: =IF(Übertrag!A8>0,VLOOKUP(Übertrag!A8,#REF!,2,FALSE),"") ->  | T181: =IF(Übertrag!A8>0,VLOOKUP(Übertrag!A8,#REF!,7,FALSE),"") ->  | Y181: =IF(Übertrag!A9>0,VLOOKUP(Übertrag!A9,#REF!,2,FALSE),"") ->  | AR181: =IF(Übertrag!A9>0,VLOOKUP(Übertrag!A9,#REF!,7,FALSE),"") -> 
A186: =IF(Übertrag!A8>0,VLOOKUP(Übertrag!A8,#REF!,3,FALSE),"") ->  | T186: =IF(Übertrag!A8>0,VLOOKUP(Übertrag!A8,#REF!,8,FALSE),"") ->  | Y186: =IF(Übertrag!A9>0,VLOOKUP(Übertrag!A9,#REF!,3,FALSE),"") ->  | AR186: =IF(Übertrag!A9>0,VLOOKUP(Übertrag!A9,#REF!,8,FALSE),"") -> 
A190: =_xlfn.IFS(Übertrag!A8="","",K212="1",VLOOKUP(Übertrag!A8,#REF!,17,FALSE),Übertrag!A8>0,VLOOKUP(Übertrag!A8,#REF!,16,FALSE)) ->  | L190: =IF(Übertrag!A8>0,VLOOKUP(Übertrag!A8,#REF!,13,FALSE),"") ->  | T190: =IF(Übertrag!A8>0,VLOOKUP(Übertrag!A8,#REF!,4,FALSE),"") ->  | Y190: =_xlfn.IFS(Übertrag!A9="","",AI212="1",VLOOKUP(Übertrag!A9,#REF!,17,FALSE),Übertrag!A9>0,VLOOKUP(Übertrag!A9,#REF!,16,FALSE)) ->  | AJ190: =IF(Übertrag!A9>0,VLOOKUP(Übertrag!A9,#REF!,13,FALSE),"") ->  | AR190: =IF(Übertrag!A9>0,VLOOKUP(Übertrag!A9,#REF!,4,FALSE),"") -> 
L194: =IF(Übertrag!A8>0,VLOOKUP(Übertrag!A8,#REF!,11,FALSE),"") ->  | AJ194: =IF(Übertrag!A9>0,VLOOKUP(Übertrag!A9,#REF!,11,FALSE),"") -> 
B212: =IF(Übertrag!A8>0,VLOOKUP(Übertrag!A8,#REF!,14,FALSE),"") ->  | K212: =IF(Übertrag!A8>0,VLOOKUP(Übertrag!A8,#REF!,15,FALSE),"") ->  | L212: =IF(N212="","","1kg=") ->  | N212: =IF(Q212=0,"",IF(T212="kg",SUM(L194/Q212),IF(T212="g",SUM(L194/Q212*1000),IF(T212="gr",SUM(L194/Q212*1000),"")))) ->  | Q212: =IF(Übertrag!A8>0,VLOOKUP(Übertrag!A8,#REF!,9,FALSE),"") ->  | T212: =IF(Übertrag!A8>0,VLOOKUP(Übertrag!A8,#REF!,10,FALSE),"") ->  | U212: =IF(Übertrag!A8>0,VLOOKUP(Übertrag!A8,#REF!,12,FALSE),"") ->  | Z212: =IF(Übertrag!A9>0,VLOOKUP(Übertrag!A9,#REF!,14,FALSE),"") ->  | AI212: =IF(Übertrag!A9>0,VLOOKUP(Übertrag!A9,#REF!,15,FALSE),"") ->  | AJ212: =IF(AL212="","","1kg=") ->  | AL212: =IF(AO212=0,"",IF(AR212="kg",SUM(AJ194/AO212),IF(AR212="g",SUM(AJ194/AO212*1000),IF(AR212="gr",SUM(AJ194/AO212*1000),"")))) ->  | AO212: =IF(Übertrag!A9>0,VLOOKUP(Übertrag!A9,#REF!,9,FALSE),"") ->  | AR212: =IF(Übertrag!A9>0,VLOOKUP(Übertrag!A9,#REF!,10,FALSE),"") ->  | AS212: =IF(Übertrag!A9>0,VLOOKUP(Übertrag!A9,#REF!,12,FALSE),"") -> 
A215: =IF(Übertrag!A8>0,VLOOKUP(Übertrag!A8,#REF!,5,FALSE),"") ->  | Y215: =IF(Übertrag!A9>0,VLOOKUP(Übertrag!A9,#REF!,5,FALSE),"") -> 
A219: =IF(Übertrag!A8>0,VLOOKUP(Übertrag!A8,#REF!,6,FALSE),"") ->  | Y219: =IF(Übertrag!A9>0,VLOOKUP(Übertrag!A9,#REF!,6,FALSE),"") -> 
A230: =IF(Übertrag!A8>0,VLOOKUP(Übertrag!A8,Datenbank[],7,FALSE),"") -> 2025-07-16 | Y230: =IF(Übertrag!A9>0,VLOOKUP(Übertrag!A9,Datenbank[],7,FALSE),"") -> 2025-07-16
A231: =IF(Übertrag!A10>0,VLOOKUP(Übertrag!A10,#REF!,2,FALSE),"") ->  | T231: =IF(Übertrag!A10>0,VLOOKUP(Übertrag!A10,#REF!,7,FALSE),"") ->  | Y231: =IF(Übertrag!A11>0,VLOOKUP(Übertrag!A11,#REF!,2,FALSE),"") ->  | AR231: =IF(Übertrag!A11>0,VLOOKUP(Übertrag!A11,#REF!,7,FALSE),"") -> 
A236: =IF(Übertrag!A10>0,VLOOKUP(Übertrag!A10,#REF!,3,FALSE),"") ->  | T236: =IF(Übertrag!A10>0,VLOOKUP(Übertrag!A10,#REF!,8,FALSE),"") ->  | Y236: =IF(Übertrag!A11>0,VLOOKUP(Übertrag!A11,#REF!,3,FALSE),"") ->  | AR236: =IF(Übertrag!A11>0,VLOOKUP(Übertrag!A11,#REF!,8,FALSE),"") -> 
A240: =_xlfn.IFS(Übertrag!A10="","",K262="1",VLOOKUP(Übertrag!A10,#REF!,17,FALSE),Übertrag!A10>0,VLOOKUP(Übertrag!A10,#REF!,16,FALSE)) ->  | L240: =IF(Übertrag!A10>0,VLOOKUP(Übertrag!A10,#REF!,13,FALSE),"") ->  | T240: =IF(Übertrag!A10>0,VLOOKUP(Übertrag!A10,#REF!,4,FALSE),"") ->  | Y240: =_xlfn.IFS(Übertrag!A11="","",AI262="1",VLOOKUP(Übertrag!A11,#REF!,17,FALSE),Übertrag!A11>0,VLOOKUP(Übertrag!A11,#REF!,16,FALSE)) ->  | AJ240: =IF(Übertrag!A11>0,VLOOKUP(Übertrag!A11,#REF!,13,FALSE),"") ->  | AR240: =IF(Übertrag!A11>0,VLOOKUP(Übertrag!A11,#REF!,4,FALSE),"") -> 
L244: =IF(Übertrag!A10>0,VLOOKUP(Übertrag!A10,#REF!,11,FALSE),"") ->  | AJ244: =IF(Übertrag!A11>0,VLOOKUP(Übertrag!A11,#REF!,11,FALSE),"") -> 
B262: =IF(Übertrag!A10>0,VLOOKUP(Übertrag!A10,#REF!,14,FALSE),"") ->  | K262: =IF(Übertrag!A10>0,VLOOKUP(Übertrag!A10,#REF!,15,FALSE),"") ->  | L262: =IF(N262="","","1kg=") ->  | N262: =IF(Q262=0,"",IF(T262="kg",SUM(L244/Q262),IF(T262="g",SUM(L244/Q262*1000),IF(T262="gr",SUM(L244/Q262*1000),"")))) ->  | Q262: =IF(Übertrag!A10>0,VLOOKUP(Übertrag!A10,#REF!,9,FALSE),"") ->  | T262: =IF(Übertrag!A10>0,VLOOKUP(Übertrag!A10,#REF!,10,FALSE),"") ->  | U262: =IF(Übertrag!A10>0,VLOOKUP(Übertrag!A10,#REF!,12,FALSE),"") ->  | Z262: =IF(Übertrag!A11>0,VLOOKUP(Übertrag!A11,#REF!,14,FALSE),"") ->  | AI262: =IF(Übertrag!A11>0,VLOOKUP(Übertrag!A11,#REF!,15,FALSE),"") ->  | AJ262: =IF(AL262="","","1kg=") ->  | AL262: =IF(AO262=0,"",IF(AR262="kg",SUM(AJ244/AO262),IF(AR262="g",SUM(AJ244/AO262*1000),IF(AR262="gr",SUM(AJ244/AO262*1000),"")))) ->  | AO262: =IF(Übertrag!A11>0,VLOOKUP(Übertrag!A11,#REF!,9,FALSE),"") ->  | AR262: =IF(Übertrag!A11>0,VLOOKUP(Übertrag!A11,#REF!,10,FALSE),"") ->  | AS262: =IF(Übertrag!A11>0,VLOOKUP(Übertrag!A11,#REF!,12,FALSE),"") -> 
A265: =IF(Übertrag!A10>0,VLOOKUP(Übertrag!A10,#REF!,5,FALSE),"") ->  | Y265: =IF(Übertrag!A11>0,VLOOKUP(Übertrag!A11,#REF!,5,FALSE),"") -> 
A269: =IF(Übertrag!A10>0,VLOOKUP(Übertrag!A10,#REF!,6,FALSE),"") ->  | Y269: =IF(Übertrag!A11>0,VLOOKUP(Übertrag!A11,#REF!,6,FALSE),"") -> 
A288: =IF(Übertrag!A12>0,VLOOKUP(Übertrag!A12,#REF!,2,FALSE),"") ->  | T288: =IF(Übertrag!A12>0,VLOOKUP(Übertrag!A12,#REF!,7,FALSE),"") ->  | Y288: =IF(Übertrag!A13>0,VLOOKUP(Übertrag!A13,#REF!,2,FALSE),"") ->  | AR288: =IF(Übertrag!A13>0,VLOOKUP(Übertrag!A13,#REF!,7,FALSE),"") -> 
A293: =IF(Übertrag!A12>0,VLOOKUP(Übertrag!A12,#REF!,3,FALSE),"") ->  | T293: =IF(Übertrag!A12>0,VLOOKUP(Übertrag!A12,#REF!,8,FALSE),"") ->  | Y293: =IF(Übertrag!A13>0,VLOOKUP(Übertrag!A13,#REF!,3,FALSE),"") ->  | AR293: =IF(Übertrag!A13>0,VLOOKUP(Übertrag!A13,#REF!,8,FALSE),"") -> 
A297: =_xlfn.IFS(Übertrag!A12="","",K319="1",VLOOKUP(Übertrag!A12,#REF!,17,FALSE),Übertrag!A12>0,VLOOKUP(Übertrag!A12,#REF!,16,FALSE)) ->  | L297: =IF(Übertrag!A12>0,VLOOKUP(Übertrag!A12,#REF!,13,FALSE),"") ->  | T297: =IF(Übertrag!A12>0,VLOOKUP(Übertrag!A12,#REF!,4,FALSE),"") ->  | Y297: =_xlfn.IFS(Übertrag!A13="","",AI319="1",VLOOKUP(Übertrag!A13,#REF!,17,FALSE),Übertrag!A13>0,VLOOKUP(Übertrag!A13,#REF!,16,FALSE)) ->  | AJ297: =IF(Übertrag!A13>0,VLOOKUP(Übertrag!A13,#REF!,13,FALSE),"") ->  | AR297: =IF(Übertrag!A13>0,VLOOKUP(Übertrag!A13,#REF!,4,FALSE),"") -> 
L301: =IF(Übertrag!A12>0,VLOOKUP(Übertrag!A12,#REF!,11,FALSE),"") ->  | AJ301: =IF(Übertrag!A13>0,VLOOKUP(Übertrag!A13,#REF!,11,FALSE),"") -> 
B319: =IF(Übertrag!A12>0,VLOOKUP(Übertrag!A12,#REF!,14,FALSE),"") ->  | K319: =IF(Übertrag!A12>0,VLOOKUP(Übertrag!A12,#REF!,15,FALSE),"") ->  | L319: =IF(N319="","","1kg=") ->  | N319: =IF(Q319=0,"",IF(T319="kg",SUM(L301/Q319),IF(T319="g",SUM(L301/Q319*1000),IF(T319="gr",SUM(L301/Q319*1000),"")))) ->  | Q319: =IF(Übertrag!A12>0,VLOOKUP(Übertrag!A12,#REF!,9,FALSE),"") ->  | T319: =IF(Übertrag!A12>0,VLOOKUP(Übertrag!A12,#REF!,10,FALSE),"") ->  | U319: =IF(Übertrag!A12>0,VLOOKUP(Übertrag!A12,#REF!,12,FALSE),"") ->  | Z319: =IF(Übertrag!A13>0,VLOOKUP(Übertrag!A13,#REF!,14,FALSE),"") ->  | AI319: =IF(Übertrag!A13>0,VLOOKUP(Übertrag!A13,#REF!,15,FALSE),"") ->  | AJ319: =IF(AL319="","","1kg=") ->  | AL319: =IF(AO319=0,"",IF(AR319="kg",SUM(AJ301/AO319),IF(AR319="g",SUM(AJ301/AO319*1000),IF(AR319="gr",SUM(AJ301/AO319*1000),"")))) ->  | AO319: =IF(Übertrag!A13>0,VLOOKUP(Übertrag!A13,#REF!,9,FALSE),"") ->  | AR319: =IF(Übertrag!A13>0,VLOOKUP(Übertrag!A13,#REF!,10,FALSE),"") ->  | AS319: =IF(Übertrag!A13>0,VLOOKUP(Übertrag!A13,#REF!,12,FALSE),"") -> 
A322: =IF(Übertrag!A12>0,VLOOKUP(Übertrag!A12,#REF!,5,FALSE),"") ->  | Y322: =IF(Übertrag!A13>0,VLOOKUP(Übertrag!A13,#REF!,5,FALSE),"") -> 
A326: =IF(Übertrag!A12>0,VLOOKUP(Übertrag!A12,#REF!,6,FALSE),"") ->  | Y326: =IF(Übertrag!A13>0,VLOOKUP(Übertrag!A13,#REF!,6,FALSE),"") -> 
A345: =IF(Übertrag!A14>0,VLOOKUP(Übertrag!A14,#REF!,2,FALSE),"") ->  | T345: =IF(Übertrag!A14>0,VLOOKUP(Übertrag!A14,#REF!,7,FALSE),"") ->  | Y345: =IF(Übertrag!A15>0,VLOOKUP(Übertrag!A15,#REF!,2,FALSE),"") ->  | AR345: =IF(Übertrag!A15>0,VLOOKUP(Übertrag!A15,#REF!,7,FALSE),"") -> 
A350: =IF(Übertrag!A14>0,VLOOKUP(Übertrag!A14,#REF!,3,FALSE),"") ->  | T350: =IF(Übertrag!A14>0,VLOOKUP(Übertrag!A14,#REF!,8,FALSE),"") ->  | Y350: =IF(Übertrag!A15>0,VLOOKUP(Übertrag!A15,#REF!,3,FALSE),"") ->  | AR350: =IF(Übertrag!A15>0,VLOOKUP(Übertrag!A15,#REF!,8,FALSE),"") -> 
A354: =_xlfn.IFS(Übertrag!A14="","",K376="1",VLOOKUP(Übertrag!A14,#REF!,17,FALSE),Übertrag!A14>0,VLOOKUP(Übertrag!A14,#REF!,16,FALSE)) ->  | L354: =IF(Übertrag!A14>0,VLOOKUP(Übertrag!A14,#REF!,13,FALSE),"") ->  | T354: =IF(Übertrag!A14>0,VLOOKUP(Übertrag!A14,#REF!,4,FALSE),"") ->  | Y354: =_xlfn.IFS(Übertrag!A15="","",AI376="1",VLOOKUP(Übertrag!A15,#REF!,17,FALSE),Übertrag!A15>0,VLOOKUP(Übertrag!A15,#REF!,16,FALSE)) ->  | AJ354: =IF(Übertrag!A15>0,VLOOKUP(Übertrag!A15,#REF!,13,FALSE),"") ->  | AR354: =IF(Übertrag!A15>0,VLOOKUP(Übertrag!A15,#REF!,4,FALSE),"") -> 
L358: =IF(Übertrag!A14>0,VLOOKUP(Übertrag!A14,#REF!,11,FALSE),"") ->  | AJ358: =IF(Übertrag!A15>0,VLOOKUP(Übertrag!A15,#REF!,11,FALSE),"") -> 
B376: =IF(Übertrag!A14>0,VLOOKUP(Übertrag!A14,#REF!,14,FALSE),"") ->  | K376: =IF(Übertrag!A14>0,VLOOKUP(Übertrag!A14,#REF!,15,FALSE),"") ->  | L376: =IF(N376="","","1kg=") ->  | N376: =IF(Q376=0,"",IF(T376="kg",SUM(L358/Q376),IF(T376="g",SUM(L358/Q376*1000),IF(T376="gr",SUM(L358/Q376*1000),"")))) ->  | Q376: =IF(Übertrag!A14>0,VLOOKUP(Übertrag!A14,#REF!,9,FALSE),"") ->  | T376: =IF(Übertrag!A14>0,VLOOKUP(Übertrag!A14,#REF!,10,FALSE),"") ->  | U376: =IF(Übertrag!A14>0,VLOOKUP(Übertrag!A14,#REF!,12,FALSE),"") ->  | Z376: =IF(Übertrag!A15>0,VLOOKUP(Übertrag!A15,#REF!,14,FALSE),"") ->  | AI376: =IF(Übertrag!A15>0,VLOOKUP(Übertrag!A15,#REF!,15,FALSE),"") ->  | AJ376: =IF(AL376="","","1kg=") ->  | AL376: =IF(AO376=0,"",IF(AR376="kg",SUM(AJ358/AO376),IF(AR376="g",SUM(AJ358/AO376*1000),IF(AR376="gr",SUM(AJ358/AO376*1000),"")))) ->  | AO376: =IF(Übertrag!A15>0,VLOOKUP(Übertrag!A15,#REF!,9,FALSE),"") ->  | AR376: =IF(Übertrag!A15>0,VLOOKUP(Übertrag!A15,#REF!,10,FALSE),"") ->  | AS376: =IF(Übertrag!A15>0,VLOOKUP(Übertrag!A15,#REF!,12,FALSE),"") -> 
A379: =IF(Übertrag!A14>0,VLOOKUP(Übertrag!A14,#REF!,5,FALSE),"") ->  | Y379: =IF(Übertrag!A15>0,VLOOKUP(Übertrag!A15,#REF!,5,FALSE),"") -> 
A383: =IF(Übertrag!A14>0,VLOOKUP(Übertrag!A14,#REF!,6,FALSE),"") ->  | Y383: =IF(Übertrag!A15>0,VLOOKUP(Übertrag!A15,#REF!,6,FALSE),"") -> 
A402: =IF(Übertrag!A16>0,VLOOKUP(Übertrag!A16,#REF!,2,FALSE),"") ->  | T402: =IF(Übertrag!A16>0,VLOOKUP(Übertrag!A16,#REF!,7,FALSE),"") ->  | Y402: =IF(Übertrag!A17>0,VLOOKUP(Übertrag!A17,#REF!,2,FALSE),"") ->  | AR402: =IF(Übertrag!A17>0,VLOOKUP(Übertrag!A17,#REF!,7,FALSE),"") -> 
A407: =IF(Übertrag!A16>0,VLOOKUP(Übertrag!A16,#REF!,3,FALSE),"") ->  | T407: =IF(Übertrag!A16>0,VLOOKUP(Übertrag!A16,#REF!,8,FALSE),"") ->  | Y407: =IF(Übertrag!A17>0,VLOOKUP(Übertrag!A17,#REF!,3,FALSE),"") ->  | AR407: =IF(Übertrag!A17>0,VLOOKUP(Übertrag!A17,#REF!,8,FALSE),"") -> 
A411: =_xlfn.IFS(Übertrag!A16="","",K433="1",VLOOKUP(Übertrag!A16,#REF!,17,FALSE),Übertrag!A16>0,VLOOKUP(Übertrag!A16,#REF!,16,FALSE)) ->  | L411: =IF(Übertrag!A16>0,VLOOKUP(Übertrag!A16,#REF!,13,FALSE),"") ->  | T411: =IF(Übertrag!A16>0,VLOOKUP(Übertrag!A16,#REF!,4,FALSE),"") ->  | Y411: =_xlfn.IFS(Übertrag!A17="","",AI433="1",VLOOKUP(Übertrag!A17,#REF!,17,FALSE),Übertrag!A17>0,VLOOKUP(Übertrag!A17,#REF!,16,FALSE)) ->  | AJ411: =IF(Übertrag!A17>0,VLOOKUP(Übertrag!A17,#REF!,13,FALSE),"") ->  | AR411: =IF(Übertrag!A17>0,VLOOKUP(Übertrag!A17,#REF!,4,FALSE),"") -> 
L415: =IF(Übertrag!A16>0,VLOOKUP(Übertrag!A16,#REF!,11,FALSE),"") ->  | AJ415: =IF(Übertrag!A17>0,VLOOKUP(Übertrag!A17,#REF!,11,FALSE),"") -> 
B433: =IF(Übertrag!A16>0,VLOOKUP(Übertrag!A16,#REF!,14,FALSE),"") ->  | K433: =IF(Übertrag!A16>0,VLOOKUP(Übertrag!A16,#REF!,15,FALSE),"") ->  | L433: =IF(N433="","","1kg=") ->  | N433: =IF(Q433=0,"",IF(T433="kg",SUM(L415/Q433),IF(T433="g",SUM(L415/Q433*1000),IF(T433="gr",SUM(L415/Q433*1000),"")))) ->  | Q433: =IF(Übertrag!A16>0,VLOOKUP(Übertrag!A16,#REF!,9,FALSE),"") ->  | T433: =IF(Übertrag!A16>0,VLOOKUP(Übertrag!A16,#REF!,10,FALSE),"") ->  | U433: =IF(Übertrag!A16>0,VLOOKUP(Übertrag!A16,#REF!,12,FALSE),"") ->  | Z433: =IF(Übertrag!A17>0,VLOOKUP(Übertrag!A17,#REF!,14,FALSE),"") ->  | AI433: =IF(Übertrag!A17>0,VLOOKUP(Übertrag!A17,#REF!,15,FALSE),"") ->  | AJ433: =IF(AL433="","","1kg=") ->  | AL433: =IF(AO433=0,"",IF(AR433="kg",SUM(AJ415/AO433),IF(AR433="g",SUM(AJ415/AO433*1000),IF(AR433="gr",SUM(AJ415/AO433*1000),"")))) ->  | AO433: =IF(Übertrag!A17>0,VLOOKUP(Übertrag!A17,#REF!,9,FALSE),"") ->  | AR433: =IF(Übertrag!A17>0,VLOOKUP(Übertrag!A17,#REF!,10,FALSE),"") ->  | AS433: =IF(Übertrag!A17>0,VLOOKUP(Übertrag!A17,#REF!,12,FALSE),"") -> 
A436: =IF(Übertrag!A16>0,VLOOKUP(Übertrag!A16,#REF!,5,FALSE),"") ->  | Y436: =IF(Übertrag!A17>0,VLOOKUP(Übertrag!A17,#REF!,5,FALSE),"") -> 
A440: =IF(Übertrag!A16>0,VLOOKUP(Übertrag!A16,#REF!,6,FALSE),"") ->  | Y440: =IF(Übertrag!A17>0,VLOOKUP(Übertrag!A17,#REF!,6,FALSE),"") -> 
A452: =IF(Übertrag!A18>0,VLOOKUP(Übertrag!A18,#REF!,2,FALSE),"") ->  | T452: =IF(Übertrag!A18>0,VLOOKUP(Übertrag!A18,#REF!,7,FALSE),"") ->  | Y452: =IF(Übertrag!A19>0,VLOOKUP(Übertrag!A19,#REF!,2,FALSE),"") ->  | AR452: =IF(Übertrag!A19>0,VLOOKUP(Übertrag!A19,#REF!,7,FALSE),"") -> 
A457: =IF(Übertrag!A18>0,VLOOKUP(Übertrag!A18,#REF!,3,FALSE),"") ->  | T457: =IF(Übertrag!A18>0,VLOOKUP(Übertrag!A18,#REF!,8,FALSE),"") ->  | Y457: =IF(Übertrag!A19>0,VLOOKUP(Übertrag!A19,#REF!,3,FALSE),"") ->  | AR457: =IF(Übertrag!A19>0,VLOOKUP(Übertrag!A19,#REF!,8,FALSE),"") -> 
A461: =_xlfn.IFS(Übertrag!A18="","",K483="1",VLOOKUP(Übertrag!A18,#REF!,17,FALSE),Übertrag!A18>0,VLOOKUP(Übertrag!A18,#REF!,16,FALSE)) ->  | L461: =IF(Übertrag!A18>0,VLOOKUP(Übertrag!A18,#REF!,13,FALSE),"") ->  | T461: =IF(Übertrag!A18>0,VLOOKUP(Übertrag!A18,#REF!,4,FALSE),"") ->  | Y461: =_xlfn.IFS(Übertrag!A19="","",AI483="1",VLOOKUP(Übertrag!A19,#REF!,17,FALSE),Übertrag!A19>0,VLOOKUP(Übertrag!A19,#REF!,16,FALSE)) ->  | AJ461: =IF(Übertrag!A19>0,VLOOKUP(Übertrag!A19,#REF!,13,FALSE),"") ->  | AR461: =IF(Übertrag!A19>0,VLOOKUP(Übertrag!A19,#REF!,4,FALSE),"") -> 
L465: =IF(Übertrag!A18>0,VLOOKUP(Übertrag!A18,#REF!,11,FALSE),"") ->  | AJ465: =IF(Übertrag!A19>0,VLOOKUP(Übertrag!A19,#REF!,11,FALSE),"") -> 
B483: =IF(Übertrag!A18>0,VLOOKUP(Übertrag!A18,#REF!,14,FALSE),"") ->  | K483: =IF(Übertrag!A18>0,VLOOKUP(Übertrag!A18,#REF!,15,FALSE),"") ->  | L483: =IF(N483="","","1kg=") ->  | N483: =IF(Q483=0,"",IF(T483="kg",SUM(L465/Q483),IF(T483="g",SUM(L465/Q483*1000),IF(T483="gr",SUM(L465/Q483*1000),"")))) ->  | Q483: =IF(Übertrag!A18>0,VLOOKUP(Übertrag!A18,#REF!,9,FALSE),"") ->  | T483: =IF(Übertrag!A18>0,VLOOKUP(Übertrag!A18,#REF!,10,FALSE),"") ->  | U483: =IF(Übertrag!A18>0,VLOOKUP(Übertrag!A18,#REF!,12,FALSE),"") ->  | Z483: =IF(Übertrag!A19>0,VLOOKUP(Übertrag!A19,#REF!,14,FALSE),"") ->  | AI483: =IF(Übertrag!A19>0,VLOOKUP(Übertrag!A19,#REF!,15,FALSE),"") ->  | AJ483: =IF(AL483="","","1kg=") ->  | AL483: =IF(AO483=0,"",IF(AR483="kg",SUM(AJ465/AO483),IF(AR483="g",SUM(AJ465/AO483*1000),IF(AR483="gr",SUM(AJ465/AO483*1000),"")))) ->  | AO483: =IF(Übertrag!A19>0,VLOOKUP(Übertrag!A19,#REF!,9,FALSE),"") ->  | AR483: =IF(Übertrag!A19>0,VLOOKUP(Übertrag!A19,#REF!,10,FALSE),"") ->  | AS483: =IF(Übertrag!A19>0,VLOOKUP(Übertrag!A19,#REF!,12,FALSE),"") -> 
A486: =IF(Übertrag!A18>0,VLOOKUP(Übertrag!A18,#REF!,5,FALSE),"") ->  | Y486: =IF(Übertrag!A19>0,VLOOKUP(Übertrag!A19,#REF!,5,FALSE),"") -> 
A490: =IF(Übertrag!A18>0,VLOOKUP(Übertrag!A18,#REF!,6,FALSE),"") ->  | Y490: =IF(Übertrag!A19>0,VLOOKUP(Übertrag!A19,#REF!,6,FALSE),"") -> 
A509: =IF(Übertrag!A20>0,VLOOKUP(Übertrag!A20,#REF!,2,FALSE),"") ->  | T509: =IF(Übertrag!A20>0,VLOOKUP(Übertrag!A20,#REF!,7,FALSE),"") ->  | Y509: =IF(Übertrag!A21>0,VLOOKUP(Übertrag!A21,#REF!,2,FALSE),"") ->  | AR509: =IF(Übertrag!A21>0,VLOOKUP(Übertrag!A21,#REF!,7,FALSE),"") -> 
A514: =IF(Übertrag!A20>0,VLOOKUP(Übertrag!A20,#REF!,3,FALSE),"") ->  | T514: =IF(Übertrag!A20>0,VLOOKUP(Übertrag!A20,#REF!,8,FALSE),"") ->  | Y514: =IF(Übertrag!A234>0,VLOOKUP(Übertrag!A234,#REF!,3,FALSE),"") ->  | AR514: =IF(Übertrag!A21>0,VLOOKUP(Übertrag!A21,#REF!,8,FALSE),"") -> 
A518: =_xlfn.IFS(Übertrag!A20="","",K540="1",VLOOKUP(Übertrag!A20,#REF!,17,FALSE),Übertrag!A20>0,VLOOKUP(Übertrag!A20,#REF!,16,FALSE)) ->  | L518: =IF(Übertrag!A20>0,VLOOKUP(Übertrag!A20,#REF!,13,FALSE),"") ->  | T518: =IF(Übertrag!A20>0,VLOOKUP(Übertrag!A20,#REF!,4,FALSE),"") ->  | Y518: =_xlfn.IFS(Übertrag!A21="","",AI540="1",VLOOKUP(Übertrag!A21,#REF!,17,FALSE),Übertrag!A21>0,VLOOKUP(Übertrag!A21,#REF!,16,FALSE)) ->  | AJ518: =IF(Übertrag!A21>0,VLOOKUP(Übertrag!A21,#REF!,13,FALSE),"") ->  | AR518: =IF(Übertrag!A21>0,VLOOKUP(Übertrag!A21,#REF!,4,FALSE),"") -> 
L522: =IF(Übertrag!A20>0,VLOOKUP(Übertrag!A20,#REF!,11,FALSE),"") ->  | AJ522: =IF(Übertrag!A21>0,VLOOKUP(Übertrag!A21,#REF!,11,FALSE),"") -> 
B540: =IF(Übertrag!A20>0,VLOOKUP(Übertrag!A20,#REF!,14,FALSE),"") ->  | K540: =IF(Übertrag!A20>0,VLOOKUP(Übertrag!A20,#REF!,15,FALSE),"") ->  | L540: =IF(N540="","","1kg=") ->  | N540: =IF(Q540=0,"",IF(T540="kg",SUM(L522/Q540),IF(T540="g",SUM(L522/Q540*1000),IF(T540="gr",SUM(L522/Q540*1000),"")))) ->  | Q540: =IF(Übertrag!A20>0,VLOOKUP(Übertrag!A20,#REF!,9,FALSE),"") ->  | T540: =IF(Übertrag!A20>0,VLOOKUP(Übertrag!A20,#REF!,10,FALSE),"") ->  | U540: =IF(Übertrag!A20>0,VLOOKUP(Übertrag!A20,#REF!,12,FALSE),"") ->  | Z540: =IF(Übertrag!A234>0,VLOOKUP(Übertrag!A234,#REF!,14,FALSE),"") ->  | AI540: =IF(Übertrag!A234>0,VLOOKUP(Übertrag!A234,#REF!,15,FALSE),"") ->  | AJ540: =IF(AL540="","","1kg=") ->  | AL540: =IF(AO540=0,"",IF(AR540="kg",SUM(AJ522/AO540),IF(AR540="g",SUM(AJ522/AO540*1000),IF(AR540="gr",SUM(AJ522/AO540*1000),"")))) ->  | AO540: =IF(Übertrag!A234>0,VLOOKUP(Übertrag!A234,#REF!,9,FALSE),"") ->  | AR540: =IF(Übertrag!A234>0,VLOOKUP(Übertrag!A234,#REF!,10,FALSE),"") ->  | AS540: =IF(Übertrag!A234>0,VLOOKUP(Übertrag!A234,#REF!,12,FALSE),"") -> 
A543: =IF(Übertrag!A20>0,VLOOKUP(Übertrag!A20,#REF!,5,FALSE),"") ->  | Y543: =IF(Übertrag!A21>0,VLOOKUP(Übertrag!A21,#REF!,5,FALSE),"") -> 
A547: =IF(Übertrag!A20>0,VLOOKUP(Übertrag!A20,#REF!,6,FALSE),"") ->  | Y547: =IF(Übertrag!A21>0,VLOOKUP(Übertrag!A21,#REF!,6,FALSE),"") -> 
A566: =IF(Übertrag!A22>0,VLOOKUP(Übertrag!A22,#REF!,2,FALSE),"") ->  | T566: =IF(Übertrag!A22>0,VLOOKUP(Übertrag!A22,#REF!,7,FALSE),"") ->  | Y566: =IF(Übertrag!A23>0,VLOOKUP(Übertrag!A23,#REF!,2,FALSE),"") ->  | AR566: =IF(Übertrag!A23>0,VLOOKUP(Übertrag!A23,#REF!,7,FALSE),"") -> 
A571: =IF(Übertrag!A22>0,VLOOKUP(Übertrag!A22,#REF!,3,FALSE),"") ->  | T571: =IF(Übertrag!A22>0,VLOOKUP(Übertrag!A22,#REF!,8,FALSE),"") ->  | Y571: =IF(Übertrag!A23>0,VLOOKUP(Übertrag!A23,#REF!,3,FALSE),"") ->  | AR571: =IF(Übertrag!A23>0,VLOOKUP(Übertrag!A23,#REF!,8,FALSE),"") -> 
A575: =_xlfn.IFS(Übertrag!A22="","",K597="1",VLOOKUP(Übertrag!A22,#REF!,17,FALSE),Übertrag!A22>0,VLOOKUP(Übertrag!A22,#REF!,16,FALSE)) ->  | L575: =IF(Übertrag!A22>0,VLOOKUP(Übertrag!A22,#REF!,13,FALSE),"") ->  | T575: =IF(Übertrag!A235>0,VLOOKUP(Übertrag!A235,#REF!,4,FALSE),"") ->  | Y575: =_xlfn.IFS(Übertrag!A23="","",AI597="1",VLOOKUP(Übertrag!A23,#REF!,17,FALSE),Übertrag!A23>0,VLOOKUP(Übertrag!A23,#REF!,16,FALSE)) ->  | AJ575: =IF(Übertrag!A23>0,VLOOKUP(Übertrag!A23,#REF!,13,FALSE),"") ->  | AR575: =IF(Übertrag!A23>0,VLOOKUP(Übertrag!A23,#REF!,4,FALSE),"") -> 
L579: =IF(Übertrag!A22>0,VLOOKUP(Übertrag!A22,#REF!,11,FALSE),"") ->  | AJ579: =IF(Übertrag!A23>0,VLOOKUP(Übertrag!A23,#REF!,11,FALSE),"") -> 
B597: =IF(Übertrag!A22>0,VLOOKUP(Übertrag!A22,#REF!,14,FALSE),"") ->  | K597: =IF(Übertrag!A22>0,VLOOKUP(Übertrag!A22,#REF!,15,FALSE),"") ->  | L597: =IF(N597="","","1kg=") ->  | N597: =IF(Q597=0,"",IF(T597="kg",SUM(L579/Q597),IF(T597="g",SUM(L579/Q597*1000),IF(T597="gr",SUM(L579/Q597*1000),"")))) ->  | Q597: =IF(Übertrag!A22>0,VLOOKUP(Übertrag!A22,#REF!,9,FALSE),"") ->  | T597: =IF(Übertrag!A22>0,VLOOKUP(Übertrag!A22,#REF!,10,FALSE),"") ->  | U597: =IF(Übertrag!A22>0,VLOOKUP(Übertrag!A22,#REF!,12,FALSE),"") ->  | Z597: =IF(Übertrag!A23>0,VLOOKUP(Übertrag!A23,#REF!,14,FALSE),"") ->  | AI597: =IF(Übertrag!A23>0,VLOOKUP(Übertrag!A23,#REF!,15,FALSE),"") ->  | AJ597: =IF(AL597="","","1kg=") ->  | AL597: =IF(AO597=0,"",IF(AR597="kg",SUM(AJ579/AO597),IF(AR597="g",SUM(AJ579/AO597*1000),IF(AR597="gr",SUM(AJ579/AO597*1000),"")))) ->  | AO597: =IF(Übertrag!A23>0,VLOOKUP(Übertrag!A23,#REF!,9,FALSE),"") ->  | AR597: =IF(Übertrag!A23>0,VLOOKUP(Übertrag!A23,#REF!,10,FALSE),"") ->  | AS597: =IF(Übertrag!A23>0,VLOOKUP(Übertrag!A23,#REF!,12,FALSE),"") -> 
A600: =IF(Übertrag!A22>0,VLOOKUP(Übertrag!A22,#REF!,5,FALSE),"") ->  | Y600: =IF(Übertrag!A23>0,VLOOKUP(Übertrag!A23,#REF!,5,FALSE),"") -> 
A604: =IF(Übertrag!A22>0,VLOOKUP(Übertrag!A22,#REF!,6,FALSE),"") ->  | Y604: =IF(Übertrag!A23>0,VLOOKUP(Übertrag!A23,#REF!,6,FALSE),"") -> 
A623: =IF(Übertrag!A24>0,VLOOKUP(Übertrag!A24,#REF!,2,FALSE),"") ->  | T623: =IF(Übertrag!A24>0,VLOOKUP(Übertrag!A24,#REF!,7,FALSE),"") ->  | Y623: =IF(Übertrag!A25>0,VLOOKUP(Übertrag!A25,#REF!,2,FALSE),"") ->  | AR623: =IF(Übertrag!A25>0,VLOOKUP(Übertrag!A25,#REF!,7,FALSE),"") -> 
A628: =IF(Übertrag!A24>0,VLOOKUP(Übertrag!A24,#REF!,3,FALSE),"") ->  | T628: =IF(Übertrag!A24>0,VLOOKUP(Übertrag!A24,#REF!,8,FALSE),"") ->  | Y628: =IF(Übertrag!A25>0,VLOOKUP(Übertrag!A25,#REF!,3,FALSE),"") ->  | AR628: =IF(Übertrag!A25>0,VLOOKUP(Übertrag!A25,#REF!,8,FALSE),"") -> 
A632: =_xlfn.IFS(Übertrag!A24="","",K654="1",VLOOKUP(Übertrag!A24,#REF!,17,FALSE),Übertrag!A24>0,VLOOKUP(Übertrag!A24,#REF!,16,FALSE)) ->  | L632: =IF(Übertrag!A24>0,VLOOKUP(Übertrag!A24,#REF!,13,FALSE),"") ->  | T632: =IF(Übertrag!A24>0,VLOOKUP(Übertrag!A24,#REF!,4,FALSE),"") ->  | Y632: =_xlfn.IFS(Übertrag!A25="","",AI654="1",VLOOKUP(Übertrag!A25,#REF!,17,FALSE),Übertrag!A25>0,VLOOKUP(Übertrag!A25,#REF!,16,FALSE)) ->  | AJ632: =IF(Übertrag!A25>0,VLOOKUP(Übertrag!A25,#REF!,13,FALSE),"") ->  | AR632: =IF(Übertrag!A25>0,VLOOKUP(Übertrag!A25,#REF!,4,FALSE),"") -> 
L636: =IF(Übertrag!A24>0,VLOOKUP(Übertrag!A24,#REF!,11,FALSE),"") ->  | AJ636: =IF(Übertrag!A25>0,VLOOKUP(Übertrag!A25,#REF!,11,FALSE),"") -> 
B654: =IF(Übertrag!A24>0,VLOOKUP(Übertrag!A24,#REF!,14,FALSE),"") ->  | K654: =IF(Übertrag!A24>0,VLOOKUP(Übertrag!A24,#REF!,15,FALSE),"") ->  | L654: =IF(N654="","","1kg=") ->  | N654: =IF(Q654=0,"",IF(T654="kg",SUM(L636/Q654),IF(T654="g",SUM(L636/Q654*1000),IF(T654="gr",SUM(L636/Q654*1000),"")))) ->  | Q654: =IF(Übertrag!A24>0,VLOOKUP(Übertrag!A24,#REF!,9,FALSE),"") ->  | T654: =IF(Übertrag!A24>0,VLOOKUP(Übertrag!A24,#REF!,10,FALSE),"") ->  | U654: =IF(Übertrag!A24>0,VLOOKUP(Übertrag!A24,#REF!,12,FALSE),"") ->  | Z654: =IF(Übertrag!A25>0,VLOOKUP(Übertrag!A25,#REF!,14,FALSE),"") ->  | AI654: =IF(Übertrag!A25>0,VLOOKUP(Übertrag!A25,#REF!,15,FALSE),"") ->  | AJ654: =IF(AL654="","","1kg=") ->  | AL654: =IF(AO654=0,"",IF(AR654="kg",SUM(AJ636/AO654),IF(AR654="g",SUM(AJ636/AO654*1000),IF(AR654="gr",SUM(AJ636/AO654*1000),"")))) ->  | AO654: =IF(Übertrag!A25>0,VLOOKUP(Übertrag!A25,#REF!,9,FALSE),"") ->  | AR654: =IF(Übertrag!A25>0,VLOOKUP(Übertrag!A25,#REF!,10,FALSE),"") ->  | AS654: =IF(Übertrag!A25>0,VLOOKUP(Übertrag!A25,#REF!,12,FALSE),"") -> 
A657: =IF(Übertrag!A24>0,VLOOKUP(Übertrag!A24,#REF!,5,FALSE),"") ->  | Y657: =IF(Übertrag!A25>0,VLOOKUP(Übertrag!A25,#REF!,5,FALSE),"") -> 
A661: =IF(Übertrag!A24>0,VLOOKUP(Übertrag!A24,#REF!,6,FALSE),"") ->  | Y661: =IF(Übertrag!A25>0,VLOOKUP(Übertrag!A25,#REF!,6,FALSE),"") -> 

Sheet Druck 32 Felder (hidden)
A10: =IF(Übertrag!A2>0,VLOOKUP(Übertrag!A2,#REF!,2,FALSE),"") ->  | T10: =IF(Übertrag!A2>0,VLOOKUP(Übertrag!A2,#REF!,7,FALSE),"") ->  | Y10: =IF(Übertrag!A3>0,VLOOKUP(Übertrag!A3,#REF!,2,FALSE),"") ->  | AR10: =IF(Übertrag!A3>0,VLOOKUP(Übertrag!A3,#REF!,7,FALSE),"") -> 
A15: =IF(Übertrag!A2>0,VLOOKUP(Übertrag!A2,#REF!,3,FALSE),"") ->  | T15: =IF(Übertrag!A2>0,VLOOKUP(Übertrag!A2,#REF!,8,FALSE),"") ->  | Y15: =IF(Übertrag!A3>0,VLOOKUP(Übertrag!A3,#REF!,3,FALSE),"") ->  | AR15: =IF(Übertrag!A3>0,VLOOKUP(Übertrag!A3,#REF!,8,FALSE),"") -> 
A19: =_xlfn.IFS(Übertrag!A2="","",K41="1",VLOOKUP(Übertrag!A2,#REF!,17,FALSE),Übertrag!A2>0,VLOOKUP(Übertrag!A2,#REF!,16,FALSE)) ->  | L19: =IF(Übertrag!A2>0,VLOOKUP(Übertrag!A2,#REF!,13,FALSE),"") ->  | T19: =IF(Übertrag!A2>0,VLOOKUP(Übertrag!A2,#REF!,4,FALSE),"") ->  | Y19: =_xlfn.IFS(Übertrag!A3="","",AI41="1",VLOOKUP(Übertrag!A3,#REF!,17,FALSE),Übertrag!A3>0,VLOOKUP(Übertrag!A3,#REF!,16,FALSE)) ->  | AJ19: =IF(Übertrag!A3>0,VLOOKUP(Übertrag!A3,#REF!,13,FALSE),"") ->  | AR19: =IF(Übertrag!A3>0,VLOOKUP(Übertrag!A3,#REF!,4,FALSE),"") -> 
L23: =IF(Übertrag!A2>0,VLOOKUP(Übertrag!A2,#REF!,11,FALSE),"") ->  | AJ23: =IF(Übertrag!A3>0,VLOOKUP(Übertrag!A3,#REF!,11,FALSE),"") -> 
B41: =IF(Übertrag!A2>0,VLOOKUP(Übertrag!A2,#REF!,14,FALSE),"") ->  | K41: =IF(Übertrag!A2>0,VLOOKUP(Übertrag!A2,#REF!,15,FALSE),"") ->  | L41: =IF(N41="","","1kg=") ->  | N41: =IF(Q41=0,"",IF(T41="kg",SUM(L23/Q41),IF(T41="g",SUM(L23/Q41*1000),IF(T41="gr",SUM(L23/Q41*1000),"")))) ->  | Q41: =IF(Übertrag!A2>0,VLOOKUP(Übertrag!A2,#REF!,9,FALSE),"") ->  | T41: =IF(Übertrag!A2>0,VLOOKUP(Übertrag!A2,#REF!,10,FALSE),"") ->  | U41: =IF(Übertrag!A2>0,VLOOKUP(Übertrag!A2,#REF!,12,FALSE),"") ->  | Z41: =IF(Übertrag!A3>0,VLOOKUP(Übertrag!A3,#REF!,14,FALSE),"") ->  | AI41: =IF(Übertrag!A3>0,VLOOKUP(Übertrag!A3,#REF!,15,FALSE),"") ->  | AJ41: =IF(AL41="","","1kg=") ->  | AL41: =IF(AO41=0,"",IF(AR41="kg",SUM(AJ23/AO41),IF(AR41="g",SUM(AJ23/AO41*1000),IF(AR41="gr",SUM(AJ23/AO41*1000),"")))) ->  | AO41: =IF(Übertrag!A3>0,VLOOKUP(Übertrag!A3,#REF!,9,FALSE),"") ->  | AR41: =IF(Übertrag!A3>0,VLOOKUP(Übertrag!A3,#REF!,10,FALSE),"") ->  | AS41: =IF(Übertrag!A3>0,VLOOKUP(Übertrag!A3,#REF!,12,FALSE),"") -> 
A44: =IF(Übertrag!A2>0,VLOOKUP(Übertrag!A2,#REF!,5,FALSE),"") ->  | Y44: =IF(Übertrag!A3>0,VLOOKUP(Übertrag!A3,#REF!,5,FALSE),"") -> 
A48: =IF(Übertrag!A2>0,VLOOKUP(Übertrag!A2,#REF!,6,FALSE),"") ->  | Y48: =IF(Übertrag!A3>0,VLOOKUP(Übertrag!A3,#REF!,6,FALSE),"") -> 
A59: =IF(Übertrag!A2>0,VLOOKUP(Übertrag!A2,Datenbank[],7,FALSE),"") -> 2025-07-16 | Y59: =IF(Übertrag!A3>0,VLOOKUP(Übertrag!A3,Datenbank[],7,FALSE),"") -> 2025-07-16
A67: =IF(Übertrag!A4>0,VLOOKUP(Übertrag!A4,#REF!,2,FALSE),"") ->  | T67: =IF(Übertrag!A4>0,VLOOKUP(Übertrag!A4,#REF!,7,FALSE),"") ->  | Y67: =IF(Übertrag!A5>0,VLOOKUP(Übertrag!A5,#REF!,2,FALSE),"") ->  | AR67: =IF(Übertrag!A5>0,VLOOKUP(Übertrag!A5,#REF!,7,FALSE),"") -> 
A72: =IF(Übertrag!A4>0,VLOOKUP(Übertrag!A4,#REF!,3,FALSE),"") ->  | T72: =IF(Übertrag!A4>0,VLOOKUP(Übertrag!A4,#REF!,8,FALSE),"") ->  | Y72: =IF(Übertrag!A5>0,VLOOKUP(Übertrag!A5,#REF!,3,FALSE),"") ->  | AR72: =IF(Übertrag!A5>0,VLOOKUP(Übertrag!A5,#REF!,8,FALSE),"") -> 
A76: =_xlfn.IFS(Übertrag!A4="","",K98="1",VLOOKUP(Übertrag!A4,#REF!,17,FALSE),Übertrag!A4>0,VLOOKUP(Übertrag!A4,#REF!,16,FALSE)) ->  | L76: =IF(Übertrag!A4>0,VLOOKUP(Übertrag!A4,#REF!,13,FALSE),"") ->  | T76: =IF(Übertrag!A4>0,VLOOKUP(Übertrag!A4,#REF!,4,FALSE),"") ->  | Y76: =_xlfn.IFS(Übertrag!A5="","",AI98="1",VLOOKUP(Übertrag!A5,#REF!,17,FALSE),Übertrag!A5>0,VLOOKUP(Übertrag!A5,#REF!,16,FALSE)) ->  | AJ76: =IF(Übertrag!A5>0,VLOOKUP(Übertrag!A5,#REF!,13,FALSE),"") ->  | AR76: =IF(Übertrag!A5>0,VLOOKUP(Übertrag!A5,#REF!,4,FALSE),"") -> 
L80: =IF(Übertrag!A4>0,VLOOKUP(Übertrag!A4,#REF!,11,FALSE),"") ->  | AJ80: =IF(Übertrag!A5>0,VLOOKUP(Übertrag!A5,#REF!,11,FALSE),"") -> 
B98: =IF(Übertrag!A4>0,VLOOKUP(Übertrag!A2,#REF!,14,FALSE),"") ->  | K98: =IF(Übertrag!A4>0,VLOOKUP(Übertrag!A4,#REF!,15,FALSE),"") ->  | L98: =IF(N98="","","1kg=") ->  | N98: =IF(Q98=0,"",IF(T98="kg",SUM(L80/Q98),IF(T98="g",SUM(L80/Q98*1000),IF(T98="gr",SUM(L80/Q98*1000),"")))) ->  | Q98: =IF(Übertrag!A4>0,VLOOKUP(Übertrag!A4,#REF!,9,FALSE),"") ->  | T98: =IF(Übertrag!A4>0,VLOOKUP(Übertrag!A4,#REF!,10,FALSE),"") ->  | U98: =IF(Übertrag!A4>0,VLOOKUP(Übertrag!A4,#REF!,12,FALSE),"") ->  | Z98: =IF(Übertrag!A5>0,VLOOKUP(Übertrag!A5,#REF!,14,FALSE),"") ->  | AI98: =IF(Übertrag!A5>0,VLOOKUP(Übertrag!A5,#REF!,15,FALSE),"") ->  | AJ98: =IF(AL98="","","1kg=") ->  | AL98: =IF(AO98=0,"",IF(AS98="lose","",IF(AR98="kg",SUM(AJ80/AO98),IF(AR98="g",SUM(AJ80/AO98*1000),IF(AR98="gr",SUM(AJ80/AO98*1000),""))))) ->  | AO98: =IF(Übertrag!A5>0,VLOOKUP(Übertrag!A5,#REF!,9,FALSE),"") ->  | AR98: =IF(Übertrag!A5>0,VLOOKUP(Übertrag!A5,#REF!,10,FALSE),"") ->  | AS98: =IF(Übertrag!A5>0,VLOOKUP(Übertrag!A5,#REF!,12,FALSE),"") -> 
A101: =IF(Übertrag!A4>0,VLOOKUP(Übertrag!A4,#REF!,5,FALSE),"") ->  | Y101: =IF(Übertrag!A5>0,VLOOKUP(Übertrag!A5,#REF!,5,FALSE),"") -> 
A105: =IF(Übertrag!A4>0,VLOOKUP(Übertrag!A4,#REF!,6,FALSE),"") ->  | Y105: =IF(Übertrag!A5>0,VLOOKUP(Übertrag!A5,#REF!,6,FALSE),"") -> 
A116: =IF(Übertrag!A4>0,VLOOKUP(Übertrag!A4,Datenbank[],7,FALSE),"") -> 2025-07-16 | Y116: =IF(Übertrag!A5>0,VLOOKUP(Übertrag!A4,Datenbank[],7,FALSE),"") -> 2025-07-16
A124: =IF(Übertrag!A6>0,VLOOKUP(Übertrag!A6,#REF!,2,FALSE),"") ->  | T124: =IF(Übertrag!A6>0,VLOOKUP(Übertrag!A6,#REF!,7,FALSE),"") ->  | Y124: =IF(Übertrag!A7>0,VLOOKUP(Übertrag!A7,#REF!,2,FALSE),"") ->  | AR124: =IF(Übertrag!A7>0,VLOOKUP(Übertrag!A7,#REF!,7,FALSE),"") -> 
A129: =IF(Übertrag!A6>0,VLOOKUP(Übertrag!A6,#REF!,3,FALSE),"") ->  | T129: =IF(Übertrag!A6>0,VLOOKUP(Übertrag!A6,#REF!,8,FALSE),"") ->  | Y129: =IF(Übertrag!A7>0,VLOOKUP(Übertrag!A7,#REF!,3,FALSE),"") ->  | AR129: =IF(Übertrag!A7>0,VLOOKUP(Übertrag!A7,#REF!,8,FALSE),"") -> 
A133: =_xlfn.IFS(Übertrag!A6="","",K155="1",VLOOKUP(Übertrag!A6,#REF!,17,FALSE),Übertrag!A6>0,VLOOKUP(Übertrag!A6,#REF!,16,FALSE)) ->  | L133: =IF(Übertrag!A6>0,VLOOKUP(Übertrag!A6,#REF!,13,FALSE),"") ->  | T133: =IF(Übertrag!A6>0,VLOOKUP(Übertrag!A6,#REF!,4,FALSE),"") ->  | Y133: =_xlfn.IFS(Übertrag!A7="","",AI155="1",VLOOKUP(Übertrag!A7,#REF!,17,FALSE),Übertrag!A7>0,VLOOKUP(Übertrag!A7,#REF!,16,FALSE)) ->  | AJ133: =IF(Übertrag!A7>0,VLOOKUP(Übertrag!A7,#REF!,13,FALSE),"") ->  | AR133: =IF(Übertrag!A7>0,VLOOKUP(Übertrag!A7,#REF!,4,FALSE),"") -> 
L137: =IF(Übertrag!A6>0,VLOOKUP(Übertrag!A6,#REF!,11,FALSE),"") ->  | AJ137: =IF(Übertrag!A7>0,VLOOKUP(Übertrag!A7,#REF!,11,FALSE),"") -> 
B155: =IF(Übertrag!A6>0,VLOOKUP(Übertrag!A6,#REF!,14,FALSE),"") ->  | K155: =IF(Übertrag!A6>0,VLOOKUP(Übertrag!A6,#REF!,15,FALSE),"") ->  | L155: =IF(N155="","","1kg=") ->  | N155: =IF(Q155=0,"",IF(T155="kg",SUM(L137/Q155),IF(T155="g",SUM(L137/Q155*1000),IF(T155="gr",SUM(L137/Q155*1000),"")))) ->  | Q155: =IF(Übertrag!A6>0,VLOOKUP(Übertrag!A6,#REF!,9,FALSE),"") ->  | T155: =IF(Übertrag!A6>0,VLOOKUP(Übertrag!A6,#REF!,10,FALSE),"") ->  | U155: =IF(Übertrag!A6>0,VLOOKUP(Übertrag!A6,#REF!,12,FALSE),"") ->  | Z155: =IF(Übertrag!A7>0,VLOOKUP(Übertrag!A7,#REF!,14,FALSE),"") ->  | AI155: =IF(Übertrag!A7>0,VLOOKUP(Übertrag!A7,#REF!,15,FALSE),"") ->  | AJ155: =IF(AL155="","","1kg=") ->  | AL155: =IF(AO155=0,"",IF(AR155="kg",SUM(AJ137/AO155),IF(AR155="g",SUM(AJ137/AO155*1000),IF(AR155="gr",SUM(AJ137/AO155*1000),"")))) ->  | AO155: =IF(Übertrag!A7>0,VLOOKUP(Übertrag!A7,#REF!,9,FALSE),"") ->  | AR155: =IF(Übertrag!A7>0,VLOOKUP(Übertrag!A7,#REF!,10,FALSE),"") ->  | AS155: =IF(Übertrag!A7>0,VLOOKUP(Übertrag!A7,#REF!,12,FALSE),"") -> 
A158: =IF(Übertrag!A6>0,VLOOKUP(Übertrag!A6,#REF!,5,FALSE),"") ->  | Y158: =IF(Übertrag!A7>0,VLOOKUP(Übertrag!A7,#REF!,5,FALSE),"") -> 
A162: =IF(Übertrag!A6>0,VLOOKUP(Übertrag!A6,#REF!,6,FALSE),"") ->  | Y162: =IF(Übertrag!A7>0,VLOOKUP(Übertrag!A7,#REF!,6,FALSE),"") -> 
A173: =IF(Übertrag!A6>0,VLOOKUP(Übertrag!A6,Datenbank[],7,FALSE),"") -> 2025-07-16 | Y173: =IF(Übertrag!A7>0,VLOOKUP(Übertrag!A7,Datenbank[],7,FALSE),"") -> 2025-07-16
A181: =IF(Übertrag!A8>0,VLOOKUP(Übertrag!A8,#REF!,2,FALSE),"") ->  | T181: =IF(Übertrag!A8>0,VLOOKUP(Übertrag!A8,#REF!,7,FALSE),"") ->  | Y181: =IF(Übertrag!A9>0,VLOOKUP(Übertrag!A9,#REF!,2,FALSE),"") ->  | AR181: =IF(Übertrag!A9>0,VLOOKUP(Übertrag!A9,#REF!,7,FALSE),"") -> 
A186: =IF(Übertrag!A8>0,VLOOKUP(Übertrag!A8,#REF!,3,FALSE),"") ->  | T186: =IF(Übertrag!A8>0,VLOOKUP(Übertrag!A8,#REF!,8,FALSE),"") ->  | Y186: =IF(Übertrag!A9>0,VLOOKUP(Übertrag!A9,#REF!,3,FALSE),"") ->  | AR186: =IF(Übertrag!A9>0,VLOOKUP(Übertrag!A9,#REF!,8,FALSE),"") -> 
A190: =_xlfn.IFS(Übertrag!A8="","",K212="1",VLOOKUP(Übertrag!A8,#REF!,17,FALSE),Übertrag!A8>0,VLOOKUP(Übertrag!A8,#REF!,16,FALSE)) ->  | L190: =IF(Übertrag!A8>0,VLOOKUP(Übertrag!A8,#REF!,13,FALSE),"") ->  | T190: =IF(Übertrag!A8>0,VLOOKUP(Übertrag!A8,#REF!,4,FALSE),"") ->  | Y190: =_xlfn.IFS(Übertrag!A9="","",AI212="1",VLOOKUP(Übertrag!A9,#REF!,17,FALSE),Übertrag!A9>0,VLOOKUP(Übertrag!A9,#REF!,16,FALSE)) ->  | AJ190: =IF(Übertrag!A9>0,VLOOKUP(Übertrag!A9,#REF!,13,FALSE),"") ->  | AR190: =IF(Übertrag!A9>0,VLOOKUP(Übertrag!A9,#REF!,4,FALSE),"") -> 
L194: =IF(Übertrag!A8>0,VLOOKUP(Übertrag!A8,#REF!,11,FALSE),"") ->  | AJ194: =IF(Übertrag!A9>0,VLOOKUP(Übertrag!A9,#REF!,11,FALSE),"") -> 
B212: =IF(Übertrag!A8>0,VLOOKUP(Übertrag!A8,#REF!,14,FALSE),"") ->  | K212: =IF(Übertrag!A8>0,VLOOKUP(Übertrag!A8,#REF!,15,FALSE),"") ->  | L212: =IF(N212="","","1kg=") ->  | N212: =IF(Q212=0,"",IF(T212="kg",SUM(L194/Q212),IF(T212="g",SUM(L194/Q212*1000),IF(T212="gr",SUM(L194/Q212*1000),"")))) ->  | Q212: =IF(Übertrag!A8>0,VLOOKUP(Übertrag!A8,#REF!,9,FALSE),"") ->  | T212: =IF(Übertrag!A8>0,VLOOKUP(Übertrag!A8,#REF!,10,FALSE),"") ->  | U212: =IF(Übertrag!A8>0,VLOOKUP(Übertrag!A8,#REF!,12,FALSE),"") ->  | Z212: =IF(Übertrag!A9>0,VLOOKUP(Übertrag!A9,#REF!,14,FALSE),"") ->  | AI212: =IF(Übertrag!A9>0,VLOOKUP(Übertrag!A9,#REF!,15,FALSE),"") ->  | AJ212: =IF(AL212="","","1kg=") ->  | AL212: =IF(AO212=0,"",IF(AR212="kg",SUM(AJ194/AO212),IF(AR212="g",SUM(AJ194/AO212*1000),IF(AR212="gr",SUM(AJ194/AO212*1000),"")))) ->  | AO212: =IF(Übertrag!A9>0,VLOOKUP(Übertrag!A9,#REF!,9,FALSE),"") ->  | AR212: =IF(Übertrag!A9>0,VLOOKUP(Übertrag!A9,#REF!,10,FALSE),"") ->  | AS212: =IF(Übertrag!A9>0,VLOOKUP(Übertrag!A9,#REF!,12,FALSE),"") -> 
A215: =IF(Übertrag!A8>0,VLOOKUP(Übertrag!A8,#REF!,5,FALSE),"") ->  | Y215: =IF(Übertrag!A9>0,VLOOKUP(Übertrag!A9,#REF!,5,FALSE),"") -> 
A219: =IF(Übertrag!A8>0,VLOOKUP(Übertrag!A8,#REF!,6,FALSE),"") ->  | Y219: =IF(Übertrag!A9>0,VLOOKUP(Übertrag!A9,#REF!,6,FALSE),"") -> 
A230: =IF(Übertrag!A8>0,VLOOKUP(Übertrag!A8,Datenbank[],7,FALSE),"") -> 2025-07-16 | Y230: =IF(Übertrag!A9>0,VLOOKUP(Übertrag!A9,Datenbank[],7,FALSE),"") -> 2025-07-16
A231: =IF(Übertrag!A10>0,VLOOKUP(Übertrag!A10,#REF!,2,FALSE),"") ->  | T231: =IF(Übertrag!A10>0,VLOOKUP(Übertrag!A10,#REF!,7,FALSE),"") ->  | Y231: =IF(Übertrag!A11>0,VLOOKUP(Übertrag!A11,#REF!,2,FALSE),"") ->  | AR231: =IF(Übertrag!A11>0,VLOOKUP(Übertrag!A11,#REF!,7,FALSE),"") -> 
A236: =IF(Übertrag!A10>0,VLOOKUP(Übertrag!A10,#REF!,3,FALSE),"") ->  | T236: =IF(Übertrag!A10>0,VLOOKUP(Übertrag!A10,#REF!,8,FALSE),"") ->  | Y236: =IF(Übertrag!A11>0,VLOOKUP(Übertrag!A11,#REF!,3,FALSE),"") ->  | AR236: =IF(Übertrag!A11>0,VLOOKUP(Übertrag!A11,#REF!,8,FALSE),"") -> 
A240: =_xlfn.IFS(Übertrag!A10="","",K262="1",VLOOKUP(Übertrag!A10,#REF!,17,FALSE),Übertrag!A10>0,VLOOKUP(Übertrag!A10,#REF!,16,FALSE)) ->  | L240: =IF(Übertrag!A10>0,VLOOKUP(Übertrag!A10,#REF!,13,FALSE),"") ->  | T240: =IF(Übertrag!A10>0,VLOOKUP(Übertrag!A10,#REF!,4,FALSE),"") ->  | Y240: =_xlfn.IFS(Übertrag!A11="","",AI262="1",VLOOKUP(Übertrag!A11,#REF!,17,FALSE),Übertrag!A11>0,VLOOKUP(Übertrag!A11,#REF!,16,FALSE)) ->  | AJ240: =IF(Übertrag!A11>0,VLOOKUP(Übertrag!A11,#REF!,13,FALSE),"") ->  | AR240: =IF(Übertrag!A11>0,VLOOKUP(Übertrag!A11,#REF!,4,FALSE),"") -> 
L244: =IF(Übertrag!A10>0,VLOOKUP(Übertrag!A10,#REF!,11,FALSE),"") ->  | AJ244: =IF(Übertrag!A11>0,VLOOKUP(Übertrag!A11,#REF!,11,FALSE),"") -> 
B262: =IF(Übertrag!A10>0,VLOOKUP(Übertrag!A10,#REF!,14,FALSE),"") ->  | K262: =IF(Übertrag!A10>0,VLOOKUP(Übertrag!A10,#REF!,15,FALSE),"") ->  | L262: =IF(N262="","","1kg=") ->  | N262: =IF(Q262=0,"",IF(T262="kg",SUM(L244/Q262),IF(T262="g",SUM(L244/Q262*1000),IF(T262="gr",SUM(L244/Q262*1000),"")))) ->  | Q262: =IF(Übertrag!A10>0,VLOOKUP(Übertrag!A10,#REF!,9,FALSE),"") ->  | T262: =IF(Übertrag!A10>0,VLOOKUP(Übertrag!A10,#REF!,10,FALSE),"") ->  | U262: =IF(Übertrag!A10>0,VLOOKUP(Übertrag!A10,#REF!,12,FALSE),"") ->  | Z262: =IF(Übertrag!A11>0,VLOOKUP(Übertrag!A11,#REF!,14,FALSE),"") ->  | AI262: =IF(Übertrag!A11>0,VLOOKUP(Übertrag!A11,#REF!,15,FALSE),"") ->  | AJ262: =IF(AL262="","","1kg=") ->  | AL262: =IF(AO262=0,"",IF(AR262="kg",SUM(AJ244/AO262),IF(AR262="g",SUM(AJ244/AO262*1000),IF(AR262="gr",SUM(AJ244/AO262*1000),"")))) ->  | AO262: =IF(Übertrag!A11>0,VLOOKUP(Übertrag!A11,#REF!,9,FALSE),"") ->  | AR262: =IF(Übertrag!A11>0,VLOOKUP(Übertrag!A11,#REF!,10,FALSE),"") ->  | AS262: =IF(Übertrag!A11>0,VLOOKUP(Übertrag!A11,#REF!,12,FALSE),"") -> 
A265: =IF(Übertrag!A10>0,VLOOKUP(Übertrag!A10,#REF!,5,FALSE),"") ->  | Y265: =IF(Übertrag!A11>0,VLOOKUP(Übertrag!A11,#REF!,5,FALSE),"") -> 
A269: =IF(Übertrag!A10>0,VLOOKUP(Übertrag!A10,#REF!,6,FALSE),"") ->  | Y269: =IF(Übertrag!A11>0,VLOOKUP(Übertrag!A11,#REF!,6,FALSE),"") -> 
A288: =IF(Übertrag!A12>0,VLOOKUP(Übertrag!A12,#REF!,2,FALSE),"") ->  | T288: =IF(Übertrag!A12>0,VLOOKUP(Übertrag!A12,#REF!,7,FALSE),"") ->  | Y288: =IF(Übertrag!A13>0,VLOOKUP(Übertrag!A13,#REF!,2,FALSE),"") ->  | AR288: =IF(Übertrag!A13>0,VLOOKUP(Übertrag!A13,#REF!,7,FALSE),"") -> 
A293: =IF(Übertrag!A12>0,VLOOKUP(Übertrag!A12,#REF!,3,FALSE),"") ->  | T293: =IF(Übertrag!A12>0,VLOOKUP(Übertrag!A12,#REF!,8,FALSE),"") ->  | Y293: =IF(Übertrag!A13>0,VLOOKUP(Übertrag!A13,#REF!,3,FALSE),"") ->  | AR293: =IF(Übertrag!A13>0,VLOOKUP(Übertrag!A13,#REF!,8,FALSE),"") -> 
A297: =_xlfn.IFS(Übertrag!A12="","",K319="1",VLOOKUP(Übertrag!A12,#REF!,17,FALSE),Übertrag!A12>0,VLOOKUP(Übertrag!A12,#REF!,16,FALSE)) ->  | L297: =IF(Übertrag!A12>0,VLOOKUP(Übertrag!A12,#REF!,13,FALSE),"") ->  | T297: =IF(Übertrag!A12>0,VLOOKUP(Übertrag!A12,#REF!,4,FALSE),"") ->  | Y297: =_xlfn.IFS(Übertrag!A13="","",AI319="1",VLOOKUP(Übertrag!A13,#REF!,17,FALSE),Übertrag!A13>0,VLOOKUP(Übertrag!A13,#REF!,16,FALSE)) ->  | AJ297: =IF(Übertrag!A13>0,VLOOKUP(Übertrag!A13,#REF!,13,FALSE),"") ->  | AR297: =IF(Übertrag!A13>0,VLOOKUP(Übertrag!A13,#REF!,4,FALSE),"") -> 
L301: =IF(Übertrag!A12>0,VLOOKUP(Übertrag!A12,#REF!,11,FALSE),"") ->  | AJ301: =IF(Übertrag!A13>0,VLOOKUP(Übertrag!A13,#REF!,11,FALSE),"") -> 
B319: =IF(Übertrag!A12>0,VLOOKUP(Übertrag!A12,#REF!,14,FALSE),"") ->  | K319: =IF(Übertrag!A12>0,VLOOKUP(Übertrag!A12,#REF!,15,FALSE),"") ->  | L319: =IF(N319="","","1kg=") ->  | N319: =IF(Q319=0,"",IF(T319="kg",SUM(L301/Q319),IF(T319="g",SUM(L301/Q319*1000),IF(T319="gr",SUM(L301/Q319*1000),"")))) ->  | Q319: =IF(Übertrag!A12>0,VLOOKUP(Übertrag!A12,#REF!,9,FALSE),"") ->  | T319: =IF(Übertrag!A12>0,VLOOKUP(Übertrag!A12,#REF!,10,FALSE),"") ->  | U319: =IF(Übertrag!A12>0,VLOOKUP(Übertrag!A12,#REF!,12,FALSE),"") ->  | Z319: =IF(Übertrag!A13>0,VLOOKUP(Übertrag!A13,#REF!,14,FALSE),"") ->  | AI319: =IF(Übertrag!A13>0,VLOOKUP(Übertrag!A13,#REF!,15,FALSE),"") ->  | AJ319: =IF(AL319="","","1kg=") ->  | AL319: =IF(AO319=0,"",IF(AR319="kg",SUM(AJ301/AO319),IF(AR319="g",SUM(AJ301/AO319*1000),IF(AR319="gr",SUM(AJ301/AO319*1000),"")))) ->  | AO319: =IF(Übertrag!A13>0,VLOOKUP(Übertrag!A13,#REF!,9,FALSE),"") ->  | AR319: =IF(Übertrag!A13>0,VLOOKUP(Übertrag!A13,#REF!,10,FALSE),"") ->  | AS319: =IF(Übertrag!A13>0,VLOOKUP(Übertrag!A13,#REF!,12,FALSE),"") -> 
A322: =IF(Übertrag!A12>0,VLOOKUP(Übertrag!A12,#REF!,5,FALSE),"") ->  | Y322: =IF(Übertrag!A13>0,VLOOKUP(Übertrag!A13,#REF!,5,FALSE),"") -> 
A326: =IF(Übertrag!A12>0,VLOOKUP(Übertrag!A12,#REF!,6,FALSE),"") ->  | Y326: =IF(Übertrag!A13>0,VLOOKUP(Übertrag!A13,#REF!,6,FALSE),"") -> 
A345: =IF(Übertrag!A14>0,VLOOKUP(Übertrag!A14,#REF!,2,FALSE),"") ->  | T345: =IF(Übertrag!A14>0,VLOOKUP(Übertrag!A14,#REF!,7,FALSE),"") ->  | Y345: =IF(Übertrag!A15>0,VLOOKUP(Übertrag!A15,#REF!,2,FALSE),"") ->  | AR345: =IF(Übertrag!A15>0,VLOOKUP(Übertrag!A15,#REF!,7,FALSE),"") -> 
A350: =IF(Übertrag!A14>0,VLOOKUP(Übertrag!A14,#REF!,3,FALSE),"") ->  | T350: =IF(Übertrag!A14>0,VLOOKUP(Übertrag!A14,#REF!,8,FALSE),"") ->  | Y350: =IF(Übertrag!A15>0,VLOOKUP(Übertrag!A15,#REF!,3,FALSE),"") ->  | AR350: =IF(Übertrag!A15>0,VLOOKUP(Übertrag!A15,#REF!,8,FALSE),"") -> 
A354: =_xlfn.IFS(Übertrag!A14="","",K376="1",VLOOKUP(Übertrag!A14,#REF!,17,FALSE),Übertrag!A14>0,VLOOKUP(Übertrag!A14,#REF!,16,FALSE)) ->  | L354: =IF(Übertrag!A14>0,VLOOKUP(Übertrag!A14,#REF!,13,FALSE),"") ->  | T354: =IF(Übertrag!A14>0,VLOOKUP(Übertrag!A14,#REF!,4,FALSE),"") ->  | Y354: =_xlfn.IFS(Übertrag!A15="","",AI376="1",VLOOKUP(Übertrag!A15,#REF!,17,FALSE),Übertrag!A15>0,VLOOKUP(Übertrag!A15,#REF!,16,FALSE)) ->  | AJ354: =IF(Übertrag!A15>0,VLOOKUP(Übertrag!A15,#REF!,13,FALSE),"") ->  | AR354: =IF(Übertrag!A15>0,VLOOKUP(Übertrag!A15,#REF!,4,FALSE),"") -> 
L358: =IF(Übertrag!A14>0,VLOOKUP(Übertrag!A14,#REF!,11,FALSE),"") ->  | AJ358: =IF(Übertrag!A15>0,VLOOKUP(Übertrag!A15,#REF!,11,FALSE),"") -> 
B376: =IF(Übertrag!A14>0,VLOOKUP(Übertrag!A14,#REF!,14,FALSE),"") ->  | K376: =IF(Übertrag!A14>0,VLOOKUP(Übertrag!A14,#REF!,15,FALSE),"") ->  | L376: =IF(N376="","","1kg=") ->  | N376: =IF(Q376=0,"",IF(T376="kg",SUM(L358/Q376),IF(T376="g",SUM(L358/Q376*1000),IF(T376="gr",SUM(L358/Q376*1000),"")))) ->  | Q376: =IF(Übertrag!A14>0,VLOOKUP(Übertrag!A14,#REF!,9,FALSE),"") ->  | T376: =IF(Übertrag!A14>0,VLOOKUP(Übertrag!A14,#REF!,10,FALSE),"") ->  | U376: =IF(Übertrag!A14>0,VLOOKUP(Übertrag!A14,#REF!,12,FALSE),"") ->  | Z376: =IF(Übertrag!A15>0,VLOOKUP(Übertrag!A15,#REF!,14,FALSE),"") ->  | AI376: =IF(Übertrag!A15>0,VLOOKUP(Übertrag!A15,#REF!,15,FALSE),"") ->  | AJ376: =IF(AL376="","","1kg=") ->  | AL376: =IF(AO376=0,"",IF(AR376="kg",SUM(AJ358/AO376),IF(AR376="g",SUM(AJ358/AO376*1000),IF(AR376="gr",SUM(AJ358/AO376*1000),"")))) ->  | AO376: =IF(Übertrag!A15>0,VLOOKUP(Übertrag!A15,#REF!,9,FALSE),"") ->  | AR376: =IF(Übertrag!A15>0,VLOOKUP(Übertrag!A15,#REF!,10,FALSE),"") ->  | AS376: =IF(Übertrag!A15>0,VLOOKUP(Übertrag!A15,#REF!,12,FALSE),"") -> 
A379: =IF(Übertrag!A14>0,VLOOKUP(Übertrag!A14,#REF!,5,FALSE),"") ->  | Y379: =IF(Übertrag!A15>0,VLOOKUP(Übertrag!A15,#REF!,5,FALSE),"") -> 
A383: =IF(Übertrag!A14>0,VLOOKUP(Übertrag!A14,#REF!,6,FALSE),"") ->  | Y383: =IF(Übertrag!A15>0,VLOOKUP(Übertrag!A15,#REF!,6,FALSE),"") -> 
A402: =IF(Übertrag!A16>0,VLOOKUP(Übertrag!A16,#REF!,2,FALSE),"") ->  | T402: =IF(Übertrag!A16>0,VLOOKUP(Übertrag!A16,#REF!,7,FALSE),"") ->  | Y402: =IF(Übertrag!A17>0,VLOOKUP(Übertrag!A17,#REF!,2,FALSE),"") ->  | AR402: =IF(Übertrag!A17>0,VLOOKUP(Übertrag!A17,#REF!,7,FALSE),"") -> 
A407: =IF(Übertrag!A16>0,VLOOKUP(Übertrag!A16,#REF!,3,FALSE),"") ->  | T407: =IF(Übertrag!A16>0,VLOOKUP(Übertrag!A16,#REF!,8,FALSE),"") ->  | Y407: =IF(Übertrag!A17>0,VLOOKUP(Übertrag!A17,#REF!,3,FALSE),"") ->  | AR407: =IF(Übertrag!A17>0,VLOOKUP(Übertrag!A17,#REF!,8,FALSE),"") -> 
A411: =_xlfn.IFS(Übertrag!A16="","",K433="1",VLOOKUP(Übertrag!A16,#REF!,17,FALSE),Übertrag!A16>0,VLOOKUP(Übertrag!A16,#REF!,16,FALSE)) ->  | L411: =IF(Übertrag!A16>0,VLOOKUP(Übertrag!A16,#REF!,13,FALSE),"") ->  | T411: =IF(Übertrag!A16>0,VLOOKUP(Übertrag!A16,#REF!,4,FALSE),"") ->  | Y411: =_xlfn.IFS(Übertrag!A17="","",AI433="1",VLOOKUP(Übertrag!A17,#REF!,17,FALSE),Übertrag!A17>0,VLOOKUP(Übertrag!A17,#REF!,16,FALSE)) ->  | AJ411: =IF(Übertrag!A17>0,VLOOKUP(Übertrag!A17,#REF!,13,FALSE),"") ->  | AR411: =IF(Übertrag!A17>0,VLOOKUP(Übertrag!A17,#REF!,4,FALSE),"") -> 
L415: =IF(Übertrag!A16>0,VLOOKUP(Übertrag!A16,#REF!,11,FALSE),"") ->  | AJ415: =IF(Übertrag!A17>0,VLOOKUP(Übertrag!A17,#REF!,11,FALSE),"") -> 
B433: =IF(Übertrag!A16>0,VLOOKUP(Übertrag!A16,#REF!,14,FALSE),"") ->  | K433: =IF(Übertrag!A16>0,VLOOKUP(Übertrag!A16,#REF!,15,FALSE),"") ->  | L433: =IF(N433="","","1kg=") ->  | N433: =IF(Q433=0,"",IF(T433="kg",SUM(L415/Q433),IF(T433="g",SUM(L415/Q433*1000),IF(T433="gr",SUM(L415/Q433*1000),"")))) ->  | Q433: =IF(Übertrag!A16>0,VLOOKUP(Übertrag!A16,#REF!,9,FALSE),"") ->  | T433: =IF(Übertrag!A16>0,VLOOKUP(Übertrag!A16,#REF!,10,FALSE),"") ->  | U433: =IF(Übertrag!A16>0,VLOOKUP(Übertrag!A16,#REF!,12,FALSE),"") ->  | Z433: =IF(Übertrag!A17>0,VLOOKUP(Übertrag!A17,#REF!,14,FALSE),"") ->  | AI433: =IF(Übertrag!A17>0,VLOOKUP(Übertrag!A17,#REF!,15,FALSE),"") ->  | AJ433: =IF(AL433="","","1kg=") ->  | AL433: =IF(AO433=0,"",IF(AR433="kg",SUM(AJ415/AO433),IF(AR433="g",SUM(AJ415/AO433*1000),IF(AR433="gr",SUM(AJ415/AO433*1000),"")))) ->  | AO433: =IF(Übertrag!A17>0,VLOOKUP(Übertrag!A17,#REF!,9,FALSE),"") ->  | AR433: =IF(Übertrag!A17>0,VLOOKUP(Übertrag!A17,#REF!,10,FALSE),"") ->  | AS433: =IF(Übertrag!A17>0,VLOOKUP(Übertrag!A17,#REF!,12,FALSE),"") -> 
A436: =IF(Übertrag!A16>0,VLOOKUP(Übertrag!A16,#REF!,5,FALSE),"") ->  | Y436: =IF(Übertrag!A17>0,VLOOKUP(Übertrag!A17,#REF!,5,FALSE),"") -> 
A440: =IF(Übertrag!A16>0,VLOOKUP(Übertrag!A16,#REF!,6,FALSE),"") ->  | Y440: =IF(Übertrag!A17>0,VLOOKUP(Übertrag!A17,#REF!,6,FALSE),"") -> 
A452: =IF(Übertrag!A18>0,VLOOKUP(Übertrag!A18,#REF!,2,FALSE),"") ->  | T452: =IF(Übertrag!A18>0,VLOOKUP(Übertrag!A18,#REF!,7,FALSE),"") ->  | Y452: =IF(Übertrag!A19>0,VLOOKUP(Übertrag!A19,#REF!,2,FALSE),"") ->  | AR452: =IF(Übertrag!A19>0,VLOOKUP(Übertrag!A19,#REF!,7,FALSE),"") -> 
A457: =IF(Übertrag!A18>0,VLOOKUP(Übertrag!A18,#REF!,3,FALSE),"") ->  | T457: =IF(Übertrag!A18>0,VLOOKUP(Übertrag!A18,#REF!,8,FALSE),"") ->  | Y457: =IF(Übertrag!A19>0,VLOOKUP(Übertrag!A19,#REF!,3,FALSE),"") ->  | AR457: =IF(Übertrag!A19>0,VLOOKUP(Übertrag!A19,#REF!,8,FALSE),"") -> 
A461: =_xlfn.IFS(Übertrag!A18="","",K483="1",VLOOKUP(Übertrag!A18,#REF!,17,FALSE),Übertrag!A18>0,VLOOKUP(Übertrag!A18,#REF!,16,FALSE)) ->  | L461: =IF(Übertrag!A18>0,VLOOKUP(Übertrag!A18,#REF!,13,FALSE),"") ->  | T461: =IF(Übertrag!A18>0,VLOOKUP(Übertrag!A18,#REF!,4,FALSE),"") ->  | Y461: =_xlfn.IFS(Übertrag!A19="","",AI483="1",VLOOKUP(Übertrag!A19,#REF!,17,FALSE),Übertrag!A19>0,VLOOKUP(Übertrag!A19,#REF!,16,FALSE)) ->  | AJ461: =IF(Übertrag!A19>0,VLOOKUP(Übertrag!A19,#REF!,13,FALSE),"") ->  | AR461: =IF(Übertrag!A19>0,VLOOKUP(Übertrag!A19,#REF!,4,FALSE),"") -> 
L465: =IF(Übertrag!A18>0,VLOOKUP(Übertrag!A18,#REF!,11,FALSE),"") ->  | AJ465: =IF(Übertrag!A19>0,VLOOKUP(Übertrag!A19,#REF!,11,FALSE),"") -> 
B483: =IF(Übertrag!A18>0,VLOOKUP(Übertrag!A18,#REF!,14,FALSE),"") ->  | K483: =IF(Übertrag!A18>0,VLOOKUP(Übertrag!A18,#REF!,15,FALSE),"") ->  | L483: =IF(N483="","","1kg=") ->  | N483: =IF(Q483=0,"",IF(T483="kg",SUM(L465/Q483),IF(T483="g",SUM(L465/Q483*1000),IF(T483="gr",SUM(L465/Q483*1000),"")))) ->  | Q483: =IF(Übertrag!A18>0,VLOOKUP(Übertrag!A18,#REF!,9,FALSE),"") ->  | T483: =IF(Übertrag!A18>0,VLOOKUP(Übertrag!A18,#REF!,10,FALSE),"") ->  | U483: =IF(Übertrag!A18>0,VLOOKUP(Übertrag!A18,#REF!,12,FALSE),"") ->  | Z483: =IF(Übertrag!A19>0,VLOOKUP(Übertrag!A19,#REF!,14,FALSE),"") ->  | AI483: =IF(Übertrag!A19>0,VLOOKUP(Übertrag!A19,#REF!,15,FALSE),"") ->  | AJ483: =IF(AL483="","","1kg=") ->  | AL483: =IF(AO483=0,"",IF(AR483="kg",SUM(AJ465/AO483),IF(AR483="g",SUM(AJ465/AO483*1000),IF(AR483="gr",SUM(AJ465/AO483*1000),"")))) ->  | AO483: =IF(Übertrag!A19>0,VLOOKUP(Übertrag!A19,#REF!,9,FALSE),"") ->  | AR483: =IF(Übertrag!A19>0,VLOOKUP(Übertrag!A19,#REF!,10,FALSE),"") ->  | AS483: =IF(Übertrag!A19>0,VLOOKUP(Übertrag!A19,#REF!,12,FALSE),"") -> 
A486: =IF(Übertrag!A18>0,VLOOKUP(Übertrag!A18,#REF!,5,FALSE),"") ->  | Y486: =IF(Übertrag!A19>0,VLOOKUP(Übertrag!A19,#REF!,5,FALSE),"") -> 
A490: =IF(Übertrag!A18>0,VLOOKUP(Übertrag!A18,#REF!,6,FALSE),"") ->  | Y490: =IF(Übertrag!A19>0,VLOOKUP(Übertrag!A19,#REF!,6,FALSE),"") -> 
A509: =IF(Übertrag!A20>0,VLOOKUP(Übertrag!A20,#REF!,2,FALSE),"") ->  | T509: =IF(Übertrag!A20>0,VLOOKUP(Übertrag!A20,#REF!,7,FALSE),"") ->  | Y509: =IF(Übertrag!A21>0,VLOOKUP(Übertrag!A21,#REF!,2,FALSE),"") ->  | AR509: =IF(Übertrag!A21>0,VLOOKUP(Übertrag!A21,#REF!,7,FALSE),"") -> 
A514: =IF(Übertrag!A20>0,VLOOKUP(Übertrag!A20,#REF!,3,FALSE),"") ->  | T514: =IF(Übertrag!A20>0,VLOOKUP(Übertrag!A20,#REF!,8,FALSE),"") ->  | Y514: =IF(Übertrag!A234>0,VLOOKUP(Übertrag!A234,#REF!,3,FALSE),"") ->  | AR514: =IF(Übertrag!A21>0,VLOOKUP(Übertrag!A21,#REF!,8,FALSE),"") -> 
A518: =_xlfn.IFS(Übertrag!A20="","",K540="1",VLOOKUP(Übertrag!A20,#REF!,17,FALSE),Übertrag!A20>0,VLOOKUP(Übertrag!A20,#REF!,16,FALSE)) ->  | L518: =IF(Übertrag!A20>0,VLOOKUP(Übertrag!A20,#REF!,13,FALSE),"") ->  | T518: =IF(Übertrag!A20>0,VLOOKUP(Übertrag!A20,#REF!,4,FALSE),"") ->  | Y518: =_xlfn.IFS(Übertrag!A21="","",AI540="1",VLOOKUP(Übertrag!A21,#REF!,17,FALSE),Übertrag!A21>0,VLOOKUP(Übertrag!A21,#REF!,16,FALSE)) ->  | AJ518: =IF(Übertrag!A21>0,VLOOKUP(Übertrag!A21,#REF!,13,FALSE),"") ->  | AR518: =IF(Übertrag!A21>0,VLOOKUP(Übertrag!A21,#REF!,4,FALSE),"") -> 
L522: =IF(Übertrag!A20>0,VLOOKUP(Übertrag!A20,#REF!,11,FALSE),"") ->  | AJ522: =IF(Übertrag!A21>0,VLOOKUP(Übertrag!A21,#REF!,11,FALSE),"") -> 
B540: =IF(Übertrag!A20>0,VLOOKUP(Übertrag!A20,#REF!,14,FALSE),"") ->  | K540: =IF(Übertrag!A20>0,VLOOKUP(Übertrag!A20,#REF!,15,FALSE),"") ->  | L540: =IF(N540="","","1kg=") ->  | N540: =IF(Q540=0,"",IF(T540="kg",SUM(L522/Q540),IF(T540="g",SUM(L522/Q540*1000),IF(T540="gr",SUM(L522/Q540*1000),"")))) ->  | Q540: =IF(Übertrag!A20>0,VLOOKUP(Übertrag!A20,#REF!,9,FALSE),"") ->  | T540: =IF(Übertrag!A20>0,VLOOKUP(Übertrag!A20,#REF!,10,FALSE),"") ->  | U540: =IF(Übertrag!A20>0,VLOOKUP(Übertrag!A20,#REF!,12,FALSE),"") ->  | Z540: =IF(Übertrag!A234>0,VLOOKUP(Übertrag!A234,#REF!,14,FALSE),"") ->  | AI540: =IF(Übertrag!A234>0,VLOOKUP(Übertrag!A234,#REF!,15,FALSE),"") ->  | AJ540: =IF(AL540="","","1kg=") ->  | AL540: =IF(AO540=0,"",IF(AR540="kg",SUM(AJ522/AO540),IF(AR540="g",SUM(AJ522/AO540*1000),IF(AR540="gr",SUM(AJ522/AO540*1000),"")))) ->  | AO540: =IF(Übertrag!A234>0,VLOOKUP(Übertrag!A234,#REF!,9,FALSE),"") ->  | AR540: =IF(Übertrag!A234>0,VLOOKUP(Übertrag!A234,#REF!,10,FALSE),"") ->  | AS540: =IF(Übertrag!A234>0,VLOOKUP(Übertrag!A234,#REF!,12,FALSE),"") -> 
A543: =IF(Übertrag!A20>0,VLOOKUP(Übertrag!A20,#REF!,5,FALSE),"") ->  | Y543: =IF(Übertrag!A21>0,VLOOKUP(Übertrag!A21,#REF!,5,FALSE),"") -> 
A547: =IF(Übertrag!A20>0,VLOOKUP(Übertrag!A20,#REF!,6,FALSE),"") ->  | Y547: =IF(Übertrag!A21>0,VLOOKUP(Übertrag!A21,#REF!,6,FALSE),"") -> 
A566: =IF(Übertrag!A22>0,VLOOKUP(Übertrag!A22,#REF!,2,FALSE),"") ->  | T566: =IF(Übertrag!A22>0,VLOOKUP(Übertrag!A22,#REF!,7,FALSE),"") ->  | Y566: =IF(Übertrag!A23>0,VLOOKUP(Übertrag!A23,#REF!,2,FALSE),"") ->  | AR566: =IF(Übertrag!A23>0,VLOOKUP(Übertrag!A23,#REF!,7,FALSE),"") -> 
A571: =IF(Übertrag!A22>0,VLOOKUP(Übertrag!A22,#REF!,3,FALSE),"") ->  | T571: =IF(Übertrag!A22>0,VLOOKUP(Übertrag!A22,#REF!,8,FALSE),"") ->  | Y571: =IF(Übertrag!A23>0,VLOOKUP(Übertrag!A23,#REF!,3,FALSE),"") ->  | AR571: =IF(Übertrag!A23>0,VLOOKUP(Übertrag!A23,#REF!,8,FALSE),"") -> 
A575: =_xlfn.IFS(Übertrag!A22="","",K597="1",VLOOKUP(Übertrag!A22,#REF!,17,FALSE),Übertrag!A22>0,VLOOKUP(Übertrag!A22,#REF!,16,FALSE)) ->  | L575: =IF(Übertrag!A22>0,VLOOKUP(Übertrag!A22,#REF!,13,FALSE),"") ->  | T575: =IF(Übertrag!A235>0,VLOOKUP(Übertrag!A235,#REF!,4,FALSE),"") ->  | Y575: =_xlfn.IFS(Übertrag!A23="","",AI597="1",VLOOKUP(Übertrag!A23,#REF!,17,FALSE),Übertrag!A23>0,VLOOKUP(Übertrag!A23,#REF!,16,FALSE)) ->  | AJ575: =IF(Übertrag!A23>0,VLOOKUP(Übertrag!A23,#REF!,13,FALSE),"") ->  | AR575: =IF(Übertrag!A23>0,VLOOKUP(Übertrag!A23,#REF!,4,FALSE),"") -> 
L579: =IF(Übertrag!A22>0,VLOOKUP(Übertrag!A22,#REF!,11,FALSE),"") ->  | AJ579: =IF(Übertrag!A23>0,VLOOKUP(Übertrag!A23,#REF!,11,FALSE),"") -> 
B597: =IF(Übertrag!A22>0,VLOOKUP(Übertrag!A22,#REF!,14,FALSE),"") ->  | K597: =IF(Übertrag!A22>0,VLOOKUP(Übertrag!A22,#REF!,15,FALSE),"") ->  | L597: =IF(N597="","","1kg=") ->  | N597: =IF(Q597=0,"",IF(T597="kg",SUM(L579/Q597),IF(T597="g",SUM(L579/Q597*1000),IF(T597="gr",SUM(L579/Q597*1000),"")))) ->  | Q597: =IF(Übertrag!A22>0,VLOOKUP(Übertrag!A22,#REF!,9,FALSE),"") ->  | T597: =IF(Übertrag!A22>0,VLOOKUP(Übertrag!A22,#REF!,10,FALSE),"") ->  | U597: =IF(Übertrag!A22>0,VLOOKUP(Übertrag!A22,#REF!,12,FALSE),"") ->  | Z597: =IF(Übertrag!A23>0,VLOOKUP(Übertrag!A23,#REF!,14,FALSE),"") ->  | AI597: =IF(Übertrag!A23>0,VLOOKUP(Übertrag!A23,#REF!,15,FALSE),"") ->  | AJ597: =IF(AL597="","","1kg=") ->  | AL597: =IF(AO597=0,"",IF(AR597="kg",SUM(AJ579/AO597),IF(AR597="g",SUM(AJ579/AO597*1000),IF(AR597="gr",SUM(AJ579/AO597*1000),"")))) ->  | AO597: =IF(Übertrag!A23>0,VLOOKUP(Übertrag!A23,#REF!,9,FALSE),"") ->  | AR597: =IF(Übertrag!A23>0,VLOOKUP(Übertrag!A23,#REF!,10,FALSE),"") ->  | AS597: =IF(Übertrag!A23>0,VLOOKUP(Übertrag!A23,#REF!,12,FALSE),"") -> 
A600: =IF(Übertrag!A22>0,VLOOKUP(Übertrag!A22,#REF!,5,FALSE),"") ->  | Y600: =IF(Übertrag!A23>0,VLOOKUP(Übertrag!A23,#REF!,5,FALSE),"") -> 
A604: =IF(Übertrag!A22>0,VLOOKUP(Übertrag!A22,#REF!,6,FALSE),"") ->  | Y604: =IF(Übertrag!A23>0,VLOOKUP(Übertrag!A23,#REF!,6,FALSE),"") -> 
A623: =IF(Übertrag!A24>0,VLOOKUP(Übertrag!A24,#REF!,2,FALSE),"") ->  | T623: =IF(Übertrag!A24>0,VLOOKUP(Übertrag!A24,#REF!,7,FALSE),"") ->  | Y623: =IF(Übertrag!A25>0,VLOOKUP(Übertrag!A25,#REF!,2,FALSE),"") ->  | AR623: =IF(Übertrag!A25>0,VLOOKUP(Übertrag!A25,#REF!,7,FALSE),"") -> 
A628: =IF(Übertrag!A24>0,VLOOKUP(Übertrag!A24,#REF!,3,FALSE),"") ->  | T628: =IF(Übertrag!A24>0,VLOOKUP(Übertrag!A24,#REF!,8,FALSE),"") ->  | Y628: =IF(Übertrag!A25>0,VLOOKUP(Übertrag!A25,#REF!,3,FALSE),"") ->  | AR628: =IF(Übertrag!A25>0,VLOOKUP(Übertrag!A25,#REF!,8,FALSE),"") -> 
A632: =_xlfn.IFS(Übertrag!A24="","",K654="1",VLOOKUP(Übertrag!A24,#REF!,17,FALSE),Übertrag!A24>0,VLOOKUP(Übertrag!A24,#REF!,16,FALSE)) ->  | L632: =IF(Übertrag!A24>0,VLOOKUP(Übertrag!A24,#REF!,13,FALSE),"") ->  | T632: =IF(Übertrag!A24>0,VLOOKUP(Übertrag!A24,#REF!,4,FALSE),"") ->  | Y632: =_xlfn.IFS(Übertrag!A25="","",AI654="1",VLOOKUP(Übertrag!A25,#REF!,17,FALSE),Übertrag!A25>0,VLOOKUP(Übertrag!A25,#REF!,16,FALSE)) ->  | AJ632: =IF(Übertrag!A25>0,VLOOKUP(Übertrag!A25,#REF!,13,FALSE),"") ->  | AR632: =IF(Übertrag!A25>0,VLOOKUP(Übertrag!A25,#REF!,4,FALSE),"") -> 
L636: =IF(Übertrag!A24>0,VLOOKUP(Übertrag!A24,#REF!,11,FALSE),"") ->  | AJ636: =IF(Übertrag!A25>0,VLOOKUP(Übertrag!A25,#REF!,11,FALSE),"") -> 
B654: =IF(Übertrag!A24>0,VLOOKUP(Übertrag!A24,#REF!,14,FALSE),"") ->  | K654: =IF(Übertrag!A24>0,VLOOKUP(Übertrag!A24,#REF!,15,FALSE),"") ->  | L654: =IF(N654="","","1kg=") ->  | N654: =IF(Q654=0,"",IF(T654="kg",SUM(L636/Q654),IF(T654="g",SUM(L636/Q654*1000),IF(T654="gr",SUM(L636/Q654*1000),"")))) ->  | Q654: =IF(Übertrag!A24>0,VLOOKUP(Übertrag!A24,#REF!,9,FALSE),"") ->  | T654: =IF(Übertrag!A24>0,VLOOKUP(Übertrag!A24,#REF!,10,FALSE),"") ->  | U654: =IF(Übertrag!A24>0,VLOOKUP(Übertrag!A24,#REF!,12,FALSE),"") ->  | Z654: =IF(Übertrag!A25>0,VLOOKUP(Übertrag!A25,#REF!,14,FALSE),"") ->  | AI654: =IF(Übertrag!A25>0,VLOOKUP(Übertrag!A25,#REF!,15,FALSE),"") ->  | AJ654: =IF(AL654="","","1kg=") ->  | AL654: =IF(AO654=0,"",IF(AR654="kg",SUM(AJ636/AO654),IF(AR654="g",SUM(AJ636/AO654*1000),IF(AR654="gr",SUM(AJ636/AO654*1000),"")))) ->  | AO654: =IF(Übertrag!A25>0,VLOOKUP(Übertrag!A25,#REF!,9,FALSE),"") ->  | AR654: =IF(Übertrag!A25>0,VLOOKUP(Übertrag!A25,#REF!,10,FALSE),"") ->  | AS654: =IF(Übertrag!A25>0,VLOOKUP(Übertrag!A25,#REF!,12,FALSE),"") -> 
A657: =IF(Übertrag!A24>0,VLOOKUP(Übertrag!A24,#REF!,5,FALSE),"") ->  | Y657: =IF(Übertrag!A25>0,VLOOKUP(Übertrag!A25,#REF!,5,FALSE),"") -> 
A661: =IF(Übertrag!A24>0,VLOOKUP(Übertrag!A24,#REF!,6,FALSE),"") ->  | Y661: =IF(Übertrag!A25>0,VLOOKUP(Übertrag!A25,#REF!,6,FALSE),"") -> 
A673: =IF(Übertrag!A26>0,VLOOKUP(Übertrag!A26,#REF!,2,FALSE),"") ->  | T673: =IF(Übertrag!A26>0,VLOOKUP(Übertrag!A26,#REF!,7,FALSE),"") ->  | Y673: =IF(Übertrag!A27>0,VLOOKUP(Übertrag!A27,#REF!,2,FALSE),"") ->  | AR673: =IF(Übertrag!A27>0,VLOOKUP(Übertrag!A27,#REF!,7,FALSE),"") -> 
A678: =IF(Übertrag!A26>0,VLOOKUP(Übertrag!A26,#REF!,3,FALSE),"") ->  | T678: =IF(Übertrag!A26>0,VLOOKUP(Übertrag!A26,#REF!,8,FALSE),"") ->  | Y678: =IF(Übertrag!A27>0,VLOOKUP(Übertrag!A27,#REF!,3,FALSE),"") ->  | AR678: =IF(Übertrag!A27>0,VLOOKUP(Übertrag!A27,#REF!,8,FALSE),"") -> 
A682: =_xlfn.IFS(Übertrag!A26="","",K704="1",VLOOKUP(Übertrag!A26,#REF!,17,FALSE),Übertrag!A26>0,VLOOKUP(Übertrag!A26,#REF!,16,FALSE)) ->  | L682: =IF(Übertrag!A26>0,VLOOKUP(Übertrag!A26,#REF!,13,FALSE),"") ->  | T682: =IF(Übertrag!A26>0,VLOOKUP(Übertrag!A26,#REF!,4,FALSE),"") ->  | Y682: =_xlfn.IFS(Übertrag!A27="","",AI704="1",VLOOKUP(Übertrag!A27,#REF!,17,FALSE),Übertrag!A27>0,VLOOKUP(Übertrag!A27,#REF!,16,FALSE)) ->  | AJ682: =IF(Übertrag!A27>0,VLOOKUP(Übertrag!A27,#REF!,13,FALSE),"") ->  | AR682: =IF(Übertrag!A27>0,VLOOKUP(Übertrag!A27,#REF!,4,FALSE),"") -> 
L686: =IF(Übertrag!A26>0,VLOOKUP(Übertrag!A26,#REF!,11,FALSE),"") ->  | AJ686: =IF(Übertrag!A27>0,VLOOKUP(Übertrag!A27,#REF!,11,FALSE),"") -> 
B704: =IF(Übertrag!A26>0,VLOOKUP(Übertrag!A26,#REF!,14,FALSE),"") ->  | K704: =IF(Übertrag!A26>0,VLOOKUP(Übertrag!A26,#REF!,15,FALSE),"") ->  | L704: =IF(N704="","","1kg=") ->  | N704: =IF(Q704=0,"",IF(T704="kg",SUM(L686/Q704),IF(T704="g",SUM(L686/Q704*1000),IF(T704="gr",SUM(L686/Q704*1000),"")))) ->  | Q704: =IF(Übertrag!A26>0,VLOOKUP(Übertrag!A26,#REF!,9,FALSE),"") ->  | T704: =IF(Übertrag!A26>0,VLOOKUP(Übertrag!A26,#REF!,10,FALSE),"") ->  | U704: =IF(Übertrag!A26>0,VLOOKUP(Übertrag!A26,#REF!,12,FALSE),"") ->  | Z704: =IF(Übertrag!A27>0,VLOOKUP(Übertrag!A27,#REF!,14,FALSE),"") ->  | AI704: =IF(Übertrag!A27>0,VLOOKUP(Übertrag!A27,#REF!,15,FALSE),"") ->  | AJ704: =IF(AL704="","","1kg=") ->  | AL704: =IF(AO704=0,"",IF(AR704="kg",SUM(AJ686/AO704),IF(AR704="g",SUM(AJ686/AO704*1000),IF(AR704="gr",SUM(AJ686/AO704*1000),"")))) ->  | AO704: =IF(Übertrag!A27>0,VLOOKUP(Übertrag!A27,#REF!,9,FALSE),"") ->  | AR704: =IF(Übertrag!A27>0,VLOOKUP(Übertrag!A27,#REF!,10,FALSE),"") ->  | AS704: =IF(Übertrag!A27>0,VLOOKUP(Übertrag!A27,#REF!,12,FALSE),"") -> 
A707: =IF(Übertrag!A26>0,VLOOKUP(Übertrag!A26,#REF!,5,FALSE),"") ->  | Y707: =IF(Übertrag!A27>0,VLOOKUP(Übertrag!A27,#REF!,5,FALSE),"") -> 
A711: =IF(Übertrag!A26>0,VLOOKUP(Übertrag!A26,#REF!,6,FALSE),"") ->  | Y711: =IF(Übertrag!A27>0,VLOOKUP(Übertrag!A27,#REF!,6,FALSE),"") -> 
A730: =IF(Übertrag!A28>0,VLOOKUP(Übertrag!A28,#REF!,2,FALSE),"") ->  | T730: =IF(Übertrag!A28>0,VLOOKUP(Übertrag!A28,#REF!,7,FALSE),"") ->  | Y730: =IF(Übertrag!A29>0,VLOOKUP(Übertrag!A29,#REF!,2,FALSE),"") ->  | AR730: =IF(Übertrag!A29>0,VLOOKUP(Übertrag!A29,#REF!,7,FALSE),"") -> 
A735: =IF(Übertrag!A28>0,VLOOKUP(Übertrag!A28,#REF!,3,FALSE),"") ->  | T735: =IF(Übertrag!A28>0,VLOOKUP(Übertrag!A28,#REF!,8,FALSE),"") ->  | Y735: =IF(Übertrag!A29>0,VLOOKUP(Übertrag!A29,#REF!,3,FALSE),"") ->  | AR735: =IF(Übertrag!A29>0,VLOOKUP(Übertrag!A29,#REF!,8,FALSE),"") -> 
A739: =_xlfn.IFS(Übertrag!A28="","",K761="1",VLOOKUP(Übertrag!A28,#REF!,17,FALSE),Übertrag!A28>0,VLOOKUP(Übertrag!A28,#REF!,16,FALSE)) ->  | L739: =IF(Übertrag!A28>0,VLOOKUP(Übertrag!A28,#REF!,13,FALSE),"") ->  | T739: =IF(Übertrag!A28>0,VLOOKUP(Übertrag!A28,#REF!,4,FALSE),"") ->  | Y739: =_xlfn.IFS(Übertrag!A29="","",AI761="1",VLOOKUP(Übertrag!A29,#REF!,17,FALSE),Übertrag!A29>0,VLOOKUP(Übertrag!A29,#REF!,16,FALSE)) ->  | AJ739: =IF(Übertrag!A455>0,VLOOKUP(Übertrag!A455,#REF!,13,FALSE),"") ->  | AR739: =IF(Übertrag!A455>0,VLOOKUP(Übertrag!A455,#REF!,4,FALSE),"") -> 
L743: =IF(Übertrag!A28>0,VLOOKUP(Übertrag!A28,#REF!,11,FALSE),"") ->  | AJ743: =IF(Übertrag!A29>0,VLOOKUP(Übertrag!A29,#REF!,11,FALSE),"") -> 
B761: =IF(Übertrag!A28>0,VLOOKUP(Übertrag!A28,#REF!,14,FALSE),"") ->  | K761: =IF(Übertrag!A28>0,VLOOKUP(Übertrag!A28,#REF!,15,FALSE),"") ->  | L761: =IF(N761="","","1kg=") ->  | N761: =IF(Q761=0,"",IF(T761="kg",SUM(L743/Q761),IF(T761="g",SUM(L743/Q761*1000),IF(T761="gr",SUM(L743/Q761*1000),"")))) ->  | Q761: =IF(Übertrag!A28>0,VLOOKUP(Übertrag!A28,#REF!,9,FALSE),"") ->  | T761: =IF(Übertrag!A28>0,VLOOKUP(Übertrag!A28,#REF!,10,FALSE),"") ->  | U761: =IF(Übertrag!A28>0,VLOOKUP(Übertrag!A28,#REF!,12,FALSE),"") ->  | Z761: =IF(Übertrag!A29>0,VLOOKUP(Übertrag!A29,#REF!,14,FALSE),"") ->  | AI761: =IF(Übertrag!A29>0,VLOOKUP(Übertrag!A29,#REF!,15,FALSE),"") ->  | AJ761: =IF(AL761="","","1kg=") ->  | AL761: =IF(AO761=0,"",IF(AR761="kg",SUM(AJ743/AO761),IF(AR761="g",SUM(AJ743/AO761*1000),IF(AR761="gr",SUM(AJ743/AO761*1000),"")))) ->  | AO761: =IF(Übertrag!A29>0,VLOOKUP(Übertrag!A29,#REF!,9,FALSE),"") ->  | AR761: =IF(Übertrag!A29>0,VLOOKUP(Übertrag!A29,#REF!,10,FALSE),"") ->  | AS761: =IF(Übertrag!A29>0,VLOOKUP(Übertrag!A29,#REF!,12,FALSE),"") -> 
A764: =IF(Übertrag!A28>0,VLOOKUP(Übertrag!A28,#REF!,5,FALSE),"") ->  | Y764: =IF(Übertrag!A29>0,VLOOKUP(Übertrag!A29,#REF!,5,FALSE),"") -> 
A768: =IF(Übertrag!A28>0,VLOOKUP(Übertrag!A28,#REF!,6,FALSE),"") ->  | Y768: =IF(Übertrag!A29>0,VLOOKUP(Übertrag!A29,#REF!,6,FALSE),"") -> 
A787: =IF(Übertrag!A30>0,VLOOKUP(Übertrag!A30,#REF!,2,FALSE),"") ->  | T787: =IF(Übertrag!A30>0,VLOOKUP(Übertrag!A30,#REF!,7,FALSE),"") ->  | Y787: =IF(Übertrag!A31>0,VLOOKUP(Übertrag!A31,#REF!,2,FALSE),"") ->  | AR787: =IF(Übertrag!A31>0,VLOOKUP(Übertrag!A31,#REF!,7,FALSE),"") -> 
A792: =IF(Übertrag!A30>0,VLOOKUP(Übertrag!A30,#REF!,3,FALSE),"") ->  | T792: =IF(Übertrag!A30>0,VLOOKUP(Übertrag!A30,#REF!,8,FALSE),"") ->  | Y792: =IF(Übertrag!A31>0,VLOOKUP(Übertrag!A31,#REF!,3,FALSE),"") ->  | AR792: =IF(Übertrag!A31>0,VLOOKUP(Übertrag!A31,#REF!,8,FALSE),"") -> 
A796: =_xlfn.IFS(Übertrag!A30="","",K818="1",VLOOKUP(Übertrag!A30,#REF!,17,FALSE),Übertrag!A30>0,VLOOKUP(Übertrag!A30,#REF!,16,FALSE)) ->  | L796: =IF(Übertrag!A30>0,VLOOKUP(Übertrag!A30,#REF!,13,FALSE),"") ->  | T796: =IF(Übertrag!A30>0,VLOOKUP(Übertrag!A30,#REF!,4,FALSE),"") ->  | Y796: =_xlfn.IFS(Übertrag!A31="","",AI818="1",VLOOKUP(Übertrag!A31,#REF!,17,FALSE),Übertrag!A31>0,VLOOKUP(Übertrag!A31,#REF!,16,FALSE)) ->  | AJ796: =IF(Übertrag!A31>0,VLOOKUP(Übertrag!A31,#REF!,13,FALSE),"") ->  | AR796: =IF(Übertrag!A31>0,VLOOKUP(Übertrag!A31,#REF!,4,FALSE),"") -> 
L800: =IF(Übertrag!A30>0,VLOOKUP(Übertrag!A30,#REF!,11,FALSE),"") ->  | AJ800: =IF(Übertrag!A31>0,VLOOKUP(Übertrag!A31,#REF!,11,FALSE),"") -> 
B818: =IF(Übertrag!A30>0,VLOOKUP(Übertrag!A30,#REF!,14,FALSE),"") ->  | K818: =IF(Übertrag!A30>0,VLOOKUP(Übertrag!A30,#REF!,15,FALSE),"") ->  | L818: =IF(N818="","","1kg=") ->  | N818: =IF(Q818=0,"",IF(T818="kg",SUM(L800/Q818),IF(T818="g",SUM(L800/Q818*1000),IF(T818="gr",SUM(L800/Q818*1000),"")))) ->  | Q818: =IF(Übertrag!A30>0,VLOOKUP(Übertrag!A30,#REF!,9,FALSE),"") ->  | T818: =IF(Übertrag!A30>0,VLOOKUP(Übertrag!A30,#REF!,10,FALSE),"") ->  | U818: =IF(Übertrag!A30>0,VLOOKUP(Übertrag!A30,#REF!,12,FALSE),"") ->  | Z818: =IF(Übertrag!A31>0,VLOOKUP(Übertrag!A31,#REF!,14,FALSE),"") ->  | AI818: =IF(Übertrag!A31>0,VLOOKUP(Übertrag!A31,#REF!,15,FALSE),"") ->  | AJ818: =IF(AL818="","","1kg=") ->  | AL818: =IF(AO818=0,"",IF(AR818="kg",SUM(AJ800/AO818),IF(AR818="g",SUM(AJ800/AO818*1000),IF(AR818="gr",SUM(AJ800/AO818*1000),"")))) ->  | AO818: =IF(Übertrag!A31>0,VLOOKUP(Übertrag!A31,#REF!,9,FALSE),"") ->  | AR818: =IF(Übertrag!A31>0,VLOOKUP(Übertrag!A31,#REF!,10,FALSE),"") ->  | AS818: =IF(Übertrag!A31>0,VLOOKUP(Übertrag!A31,#REF!,12,FALSE),"") -> 
A821: =IF(Übertrag!A30>0,VLOOKUP(Übertrag!A30,#REF!,5,FALSE),"") ->  | Y821: =IF(Übertrag!A31>0,VLOOKUP(Übertrag!A31,#REF!,5,FALSE),"") -> 
A825: =IF(Übertrag!A30>0,VLOOKUP(Übertrag!A30,#REF!,6,FALSE),"") ->  | Y825: =IF(Übertrag!A31>0,VLOOKUP(Übertrag!A31,#REF!,6,FALSE),"") -> 
A844: =IF(Übertrag!A32>0,VLOOKUP(Übertrag!A32,#REF!,2,FALSE),"") ->  | T844: =IF(Übertrag!A32>0,VLOOKUP(Übertrag!A32,#REF!,7,FALSE),"") ->  | Y844: =IF(Übertrag!A33>0,VLOOKUP(Übertrag!A33,#REF!,2,FALSE),"") ->  | AR844: =IF(Übertrag!A33>0,VLOOKUP(Übertrag!A33,#REF!,7,FALSE),"") -> 
A849: =IF(Übertrag!A32>0,VLOOKUP(Übertrag!A32,#REF!,3,FALSE),"") ->  | T849: =IF(Übertrag!A32>0,VLOOKUP(Übertrag!A32,#REF!,8,FALSE),"") ->  | Y849: =IF(Übertrag!A33>0,VLOOKUP(Übertrag!A33,#REF!,3,FALSE),"") ->  | AR849: =IF(Übertrag!A33>0,VLOOKUP(Übertrag!A33,#REF!,8,FALSE),"") -> 
A853: =_xlfn.IFS(Übertrag!A32="","",K875="1",VLOOKUP(Übertrag!A32,#REF!,17,FALSE),Übertrag!A32>0,VLOOKUP(Übertrag!A32,#REF!,16,FALSE)) ->  | L853: =IF(Übertrag!A32>0,VLOOKUP(Übertrag!A32,#REF!,13,FALSE),"") ->  | T853: =IF(Übertrag!A32>0,VLOOKUP(Übertrag!A32,#REF!,4,FALSE),"") ->  | Y853: =_xlfn.IFS(Übertrag!A33="","",AI875="1",VLOOKUP(Übertrag!A33,#REF!,17,FALSE),Übertrag!A33>0,VLOOKUP(Übertrag!A33,#REF!,16,FALSE)) ->  | AJ853: =IF(Übertrag!A33>0,VLOOKUP(Übertrag!A33,#REF!,13,FALSE),"") ->  | AR853: =IF(Übertrag!A33>0,VLOOKUP(Übertrag!A33,#REF!,4,FALSE),"") -> 
L857: =IF(Übertrag!A32>0,VLOOKUP(Übertrag!A32,#REF!,11,FALSE),"") ->  | AJ857: =IF(Übertrag!A33>0,VLOOKUP(Übertrag!A33,#REF!,11,FALSE),"") -> 
B875: =IF(Übertrag!A32>0,VLOOKUP(Übertrag!A32,#REF!,14,FALSE),"") ->  | K875: =IF(Übertrag!A32>0,VLOOKUP(Übertrag!A32,#REF!,15,FALSE),"") ->  | L875: =IF(N875="","","1kg=") ->  | N875: =IF(Q875=0,"",IF(T875="kg",SUM(L857/Q875),IF(T875="g",SUM(L857/Q875*1000),IF(T875="gr",SUM(L857/Q875*1000),"")))) ->  | Q875: =IF(Übertrag!A32>0,VLOOKUP(Übertrag!A32,#REF!,9,FALSE),"") ->  | T875: =IF(Übertrag!A32>0,VLOOKUP(Übertrag!A32,#REF!,10,FALSE),"") ->  | U875: =IF(Übertrag!A32>0,VLOOKUP(Übertrag!A32,#REF!,12,FALSE),"") ->  | Z875: =IF(Übertrag!A33>0,VLOOKUP(Übertrag!A33,#REF!,14,FALSE),"") ->  | AI875: =IF(Übertrag!A33>0,VLOOKUP(Übertrag!A33,#REF!,15,FALSE),"") ->  | AJ875: =IF(AL875="","","1kg=") ->  | AL875: =IF(AO875=0,"",IF(AR875="kg",SUM(AJ857/AO875),IF(AR875="g",SUM(AJ857/AO875*1000),IF(AR875="gr",SUM(AJ857/AO875*1000),"")))) ->  | AO875: =IF(Übertrag!A33>0,VLOOKUP(Übertrag!A33,#REF!,9,FALSE),"") ->  | AR875: =IF(Übertrag!A33>0,VLOOKUP(Übertrag!A33,#REF!,10,FALSE),"") ->  | AS875: =IF(Übertrag!A33>0,VLOOKUP(Übertrag!A33,#REF!,12,FALSE),"") -> 
A878: =IF(Übertrag!A32>0,VLOOKUP(Übertrag!A32,#REF!,5,FALSE),"") ->  | Y878: =IF(Übertrag!A33>0,VLOOKUP(Übertrag!A33,#REF!,5,FALSE),"") -> 
A882: =IF(Übertrag!A32>0,VLOOKUP(Übertrag!A32,#REF!,6,FALSE),"") ->  | Y882: =IF(Übertrag!A33>0,VLOOKUP(Übertrag!A33,#REF!,6,FALSE),"") -> 

Sheet Druck2 (hidden)
A10: =IF(Übertrag!A2>0,VLOOKUP(Übertrag!A2,#REF!,2,FALSE),"") ->  | T10: =IF(Übertrag!A2>0,VLOOKUP(Übertrag!A2,#REF!,7,FALSE),"") ->  | Y10: =IF(Übertrag!A3>0,VLOOKUP(Übertrag!A3,#REF!,2,FALSE),"") ->  | AR10: =IF(Übertrag!A3>0,VLOOKUP(Übertrag!A3,#REF!,7,FALSE),"") -> 
A15: =IF(Übertrag!A2>0,VLOOKUP(Übertrag!A2,#REF!,3,FALSE),"") ->  | T15: =IF(Übertrag!A2>0,VLOOKUP(Übertrag!A2,#REF!,8,FALSE),"") ->  | Y15: =IF(Übertrag!A3>0,VLOOKUP(Übertrag!A3,#REF!,3,FALSE),"") ->  | AR15: =IF(Übertrag!A3>0,VLOOKUP(Übertrag!A3,#REF!,8,FALSE),"") -> 
A19: =_xlfn.IFS(Übertrag!A2="","",K41="1",VLOOKUP(Übertrag!A2,#REF!,17,FALSE),Übertrag!A2>0,VLOOKUP(Übertrag!A2,#REF!,16,FALSE)) ->  | L19: =IF(Übertrag!A2>0,VLOOKUP(Übertrag!A2,#REF!,13,FALSE),"") ->  | T19: =IF(Übertrag!A2>0,VLOOKUP(Übertrag!A2,#REF!,4,FALSE),"") ->  | Y19: =_xlfn.IFS(Übertrag!A3="","",AI41="1",VLOOKUP(Übertrag!A3,#REF!,17,FALSE),Übertrag!A3>0,VLOOKUP(Übertrag!A3,#REF!,16,FALSE)) ->  | AJ19: =IF(Übertrag!A3>0,VLOOKUP(Übertrag!A3,#REF!,13,FALSE),"") ->  | AR19: =IF(Übertrag!A3>0,VLOOKUP(Übertrag!A3,#REF!,4,FALSE),"") -> 
K23: =IF(Übertrag!A2>0,VLOOKUP(Übertrag!A2,#REF!,11,FALSE),"") ->  | AJ23: =IF(Übertrag!A3>0,VLOOKUP(Übertrag!A3,#REF!,11,FALSE),"") -> 
B41: =IF(Übertrag!A2>0,VLOOKUP(Übertrag!A2,#REF!,14,FALSE),"") ->  | K41: =IF(Übertrag!A2>0,VLOOKUP(Übertrag!A2,#REF!,15,FALSE),"") ->  | L41: =IF(N41="","","1kg=") ->  | N41: =IF(Q41=0,"",IF(U41="lose","",IF(T41="kg",SUM(K23/Q41),IF(T41="g",SUM(K23/Q41*1000),IF(T41="gr",SUM(K23/Q41*1000),""))))) ->  | Q41: =IF(Übertrag!A2>0,VLOOKUP(Übertrag!A2,#REF!,9,FALSE),"") ->  | T41: =IF(Übertrag!A2>0,VLOOKUP(Übertrag!A2,#REF!,10,FALSE),"") ->  | U41: =IF(Übertrag!A2>0,VLOOKUP(Übertrag!A2,#REF!,12,FALSE),"") ->  | Z41: =IF(Übertrag!A3>0,VLOOKUP(Übertrag!A3,#REF!,14,FALSE),"") ->  | AI41: =IF(Übertrag!A3>0,VLOOKUP(Übertrag!A3,#REF!,15,FALSE),"") ->  | AJ41: =IF(AL41="","","1kg=") ->  | AL41: =IF(AO41=0,"",IF(AS41="lose","",IF(AR41="kg",SUM(AJ23/AO41),IF(AR41="g",SUM(AJ23/AO41*1000),IF(AR41="gr",SUM(AJ23/AO41*1000),""))))) ->  | AO41: =IF(Übertrag!A3>0,VLOOKUP(Übertrag!A3,#REF!,9,FALSE),"") ->  | AR41: =IF(Übertrag!A3>0,VLOOKUP(Übertrag!A3,#REF!,10,FALSE),"") ->  | AS41: =IF(Übertrag!A3>0,VLOOKUP(Übertrag!A3,#REF!,12,FALSE),"") -> 
A44: =IF(Übertrag!A2>0,VLOOKUP(Übertrag!A2,#REF!,5,FALSE),"") ->  | Y44: =IF(Übertrag!A3>0,VLOOKUP(Übertrag!A3,#REF!,5,FALSE),"") -> 
A48: =IF(Übertrag!A2>0,VLOOKUP(Übertrag!A2,#REF!,6,FALSE),"") ->  | Y48: =IF(Übertrag!A3>0,VLOOKUP(Übertrag!A3,#REF!,6,FALSE),"") -> 
A67: =IF(Übertrag!A4>0,VLOOKUP(Übertrag!A4,#REF!,2,FALSE),"") ->  | T67: =IF(Übertrag!A4>0,VLOOKUP(Übertrag!A4,#REF!,7,FALSE),"") ->  | Y67: =IF(Übertrag!A5>0,VLOOKUP(Übertrag!A5,#REF!,2,FALSE),"") ->  | AR67: =IF(Übertrag!A5>0,VLOOKUP(Übertrag!A5,#REF!,7,FALSE),"") -> 
A72: =IF(Übertrag!A4>0,VLOOKUP(Übertrag!A4,#REF!,3,FALSE),"") ->  | T72: =IF(Übertrag!A4>0,VLOOKUP(Übertrag!A4,#REF!,8,FALSE),"") ->  | Y72: =IF(Übertrag!A5>0,VLOOKUP(Übertrag!A5,#REF!,3,FALSE),"") ->  | AR72: =IF(Übertrag!A5>0,VLOOKUP(Übertrag!A5,#REF!,8,FALSE),"") -> 
A76: =_xlfn.IFS(Übertrag!A4="","",K98="1",VLOOKUP(Übertrag!A4,#REF!,17,FALSE),Übertrag!A4>0,VLOOKUP(Übertrag!A4,#REF!,16,FALSE)) ->  | L76: =IF(Übertrag!A4>0,VLOOKUP(Übertrag!A4,#REF!,13,FALSE),"") ->  | T76: =IF(Übertrag!A4>0,VLOOKUP(Übertrag!A4,#REF!,4,FALSE),"") ->  | Y76: =_xlfn.IFS(Übertrag!A5="","",AI98="1",VLOOKUP(Übertrag!A5,#REF!,17,FALSE),Übertrag!A5>0,VLOOKUP(Übertrag!A5,#REF!,16,FALSE)) ->  | AJ76: =IF(Übertrag!A5>0,VLOOKUP(Übertrag!A5,#REF!,13,FALSE),"") ->  | AR76: =IF(Übertrag!A5>0,VLOOKUP(Übertrag!A5,#REF!,4,FALSE),"") -> 
L80: =IF(Übertrag!A4>0,VLOOKUP(Übertrag!A4,#REF!,11,FALSE),"") ->  | AJ80: =IF(Übertrag!A5>0,VLOOKUP(Übertrag!A5,#REF!,11,FALSE),"") -> 
B98: =IF(Übertrag!A4>0,VLOOKUP(Übertrag!A2,#REF!,14,FALSE),"") ->  | K98: =IF(Übertrag!A4>0,VLOOKUP(Übertrag!A4,#REF!,15,FALSE),"") ->  | L98: =IF(N98="","","1kg=") ->  | N98: =IF(Q98=0,"",IF(U98="lose","",IF(T98="kg",SUM(L80/Q98),IF(T98="g",SUM(L80/Q98*1000),IF(T98="gr",SUM(L80/Q98*1000),""))))) ->  | Q98: =IF(Übertrag!A4>0,VLOOKUP(Übertrag!A4,#REF!,9,FALSE),"") ->  | T98: =IF(Übertrag!A4>0,VLOOKUP(Übertrag!A4,#REF!,10,FALSE),"") ->  | U98: =IF(Übertrag!A4>0,VLOOKUP(Übertrag!A4,#REF!,12,FALSE),"") ->  | Z98: =IF(Übertrag!A5>0,VLOOKUP(Übertrag!A5,#REF!,14,FALSE),"") ->  | AI98: =IF(Übertrag!A5>0,VLOOKUP(Übertrag!A5,#REF!,15,FALSE),"") ->  | AJ98: =IF(AL98="","","1kg=") ->  | AL98: =IF(AO98=0,"",IF(AS98="lose","",IF(AS98="lose","",IF(AR98="kg",SUM(AJ80/AO98),IF(AR98="g",SUM(AJ80/AO98*1000),IF(AR98="gr",SUM(AJ80/AO98*1000),"")))))) ->  | AO98: =IF(Übertrag!A5>0,VLOOKUP(Übertrag!A5,#REF!,9,FALSE),"") ->  | AR98: =IF(Übertrag!A5>0,VLOOKUP(Übertrag!A5,#REF!,10,FALSE),"") ->  | AS98: =IF(Übertrag!A5>0,VLOOKUP(Übertrag!A5,#REF!,12,FALSE),"") -> 
A101: =IF(Übertrag!A4>0,VLOOKUP(Übertrag!A4,#REF!,5,FALSE),"") ->  | Y101: =IF(Übertrag!A5>0,VLOOKUP(Übertrag!A5,#REF!,5,FALSE),"") -> 
A105: =IF(Übertrag!A4>0,VLOOKUP(Übertrag!A4,#REF!,6,FALSE),"") ->  | Y105: =IF(Übertrag!A5>0,VLOOKUP(Übertrag!A5,#REF!,6,FALSE),"") -> 
A124: =IF(Übertrag!A6>0,VLOOKUP(Übertrag!A6,#REF!,2,FALSE),"") ->  | T124: =IF(Übertrag!A6>0,VLOOKUP(Übertrag!A6,#REF!,7,FALSE),"") ->  | Y124: =IF(Übertrag!A7>0,VLOOKUP(Übertrag!A7,#REF!,2,FALSE),"") ->  | AR124: =IF(Übertrag!A7>0,VLOOKUP(Übertrag!A7,#REF!,7,FALSE),"") -> 
A129: =IF(Übertrag!A6>0,VLOOKUP(Übertrag!A6,#REF!,3,FALSE),"") ->  | T129: =IF(Übertrag!A6>0,VLOOKUP(Übertrag!A6,#REF!,8,FALSE),"") ->  | Y129: =IF(Übertrag!A7>0,VLOOKUP(Übertrag!A7,#REF!,3,FALSE),"") ->  | AR129: =IF(Übertrag!A7>0,VLOOKUP(Übertrag!A7,#REF!,8,FALSE),"") -> 
A133: =_xlfn.IFS(Übertrag!A6="","",K155="1",VLOOKUP(Übertrag!A6,#REF!,17,FALSE),Übertrag!A6>0,VLOOKUP(Übertrag!A6,#REF!,16,FALSE)) ->  | L133: =IF(Übertrag!A6>0,VLOOKUP(Übertrag!A6,#REF!,13,FALSE),"") ->  | T133: =IF(Übertrag!A6>0,VLOOKUP(Übertrag!A6,#REF!,4,FALSE),"") ->  | Y133: =_xlfn.IFS(Übertrag!A7="","",AI155="1",VLOOKUP(Übertrag!A7,#REF!,17,FALSE),Übertrag!A7>0,VLOOKUP(Übertrag!A7,#REF!,16,FALSE)) ->  | AJ133: =IF(Übertrag!A7>0,VLOOKUP(Übertrag!A7,#REF!,13,FALSE),"") ->  | AR133: =IF(Übertrag!A7>0,VLOOKUP(Übertrag!A7,#REF!,4,FALSE),"") -> 
L137: =IF(Übertrag!A6>0,VLOOKUP(Übertrag!A6,#REF!,11,FALSE),"") ->  | AJ137: =IF(Übertrag!A7>0,VLOOKUP(Übertrag!A7,#REF!,11,FALSE),"") -> 
B155: =IF(Übertrag!A6>0,VLOOKUP(Übertrag!A6,#REF!,14,FALSE),"") ->  | K155: =IF(Übertrag!A6>0,VLOOKUP(Übertrag!A6,#REF!,15,FALSE),"") ->  | L155: =IF(N155="","","1kg=") ->  | N155: =IF(Q155=0,"",IF(U155="lose","",IF(T155="kg",SUM(L137/Q155),IF(T155="g",SUM(L137/Q155*1000),IF(T155="gr",SUM(L137/Q155*1000),""))))) ->  | Q155: =IF(Übertrag!A6>0,VLOOKUP(Übertrag!A6,#REF!,9,FALSE),"") ->  | T155: =IF(Übertrag!A6>0,VLOOKUP(Übertrag!A6,#REF!,10,FALSE),"") ->  | U155: =IF(Übertrag!A6>0,VLOOKUP(Übertrag!A6,#REF!,12,FALSE),"") ->  | Z155: =IF(Übertrag!A7>0,VLOOKUP(Übertrag!A7,#REF!,14,FALSE),"") ->  | AI155: =IF(Übertrag!A7>0,VLOOKUP(Übertrag!A7,#REF!,15,FALSE),"") ->  | AJ155: =IF(AL155="","","1kg=") ->  | AL155: =IF(AO155=0,"",IF(AS155="lose","",IF(AR155="kg",SUM(AJ137/AO155),IF(AR155="g",SUM(AJ137/AO155*1000),IF(AR155="gr",SUM(AJ137/AO155*1000),""))))) ->  | AO155: =IF(Übertrag!A7>0,VLOOKUP(Übertrag!A7,#REF!,9,FALSE),"") ->  | AR155: =IF(Übertrag!A7>0,VLOOKUP(Übertrag!A7,#REF!,10,FALSE),"") ->  | AS155: =IF(Übertrag!A7>0,VLOOKUP(Übertrag!A7,#REF!,12,FALSE),"") -> 
A158: =IF(Übertrag!A6>0,VLOOKUP(Übertrag!A6,#REF!,5,FALSE),"") ->  | Y158: =IF(Übertrag!A7>0,VLOOKUP(Übertrag!A7,#REF!,5,FALSE),"") -> 
A162: =IF(Übertrag!A6>0,VLOOKUP(Übertrag!A6,#REF!,6,FALSE),"") ->  | Y162: =IF(Übertrag!A7>0,VLOOKUP(Übertrag!A7,#REF!,6,FALSE),"") -> 
A181: =IF(Übertrag!A8>0,VLOOKUP(Übertrag!A8,#REF!,2,FALSE),"") ->  | T181: =IF(Übertrag!A8>0,VLOOKUP(Übertrag!A8,#REF!,7,FALSE),"") ->  | Y181: =IF(Übertrag!A9>0,VLOOKUP(Übertrag!A9,#REF!,2,FALSE),"") ->  | AR181: =IF(Übertrag!A9>0,VLOOKUP(Übertrag!A9,#REF!,7,FALSE),"") -> 
A186: =IF(Übertrag!A8>0,VLOOKUP(Übertrag!A8,#REF!,3,FALSE),"") ->  | T186: =IF(Übertrag!A8>0,VLOOKUP(Übertrag!A8,#REF!,8,FALSE),"") ->  | Y186: =IF(Übertrag!A9>0,VLOOKUP(Übertrag!A9,#REF!,3,FALSE),"") ->  | AR186: =IF(Übertrag!A9>0,VLOOKUP(Übertrag!A9,#REF!,8,FALSE),"") -> 
A190: =_xlfn.IFS(Übertrag!A8="","",K212="1",VLOOKUP(Übertrag!A8,#REF!,17,FALSE),Übertrag!A8>0,VLOOKUP(Übertrag!A8,#REF!,16,FALSE)) ->  | L190: =IF(Übertrag!A8>0,VLOOKUP(Übertrag!A8,#REF!,13,FALSE),"") ->  | T190: =IF(Übertrag!A8>0,VLOOKUP(Übertrag!A8,#REF!,4,FALSE),"") ->  | Y190: =_xlfn.IFS(Übertrag!A9="","",AI212="1",VLOOKUP(Übertrag!A9,#REF!,17,FALSE),Übertrag!A9>0,VLOOKUP(Übertrag!A9,#REF!,16,FALSE)) ->  | AJ190: =IF(Übertrag!A9>0,VLOOKUP(Übertrag!A9,#REF!,13,FALSE),"") ->  | AR190: =IF(Übertrag!A9>0,VLOOKUP(Übertrag!A9,#REF!,4,FALSE),"") -> 
L194: =IF(Übertrag!A8>0,VLOOKUP(Übertrag!A8,#REF!,11,FALSE),"") ->  | AJ194: =IF(Übertrag!A9>0,VLOOKUP(Übertrag!A9,#REF!,11,FALSE),"") -> 
B212: =IF(Übertrag!A8>0,VLOOKUP(Übertrag!A8,#REF!,14,FALSE),"") ->  | K212: =IF(Übertrag!A8>0,VLOOKUP(Übertrag!A8,#REF!,15,FALSE),"") ->  | L212: =IF(N212="","","1kg=") ->  | N212: =IF(Q212=0,"",IF(U212="lose","",IF(T212="kg",SUM(L194/Q212),IF(T212="g",SUM(L194/Q212*1000),IF(T212="gr",SUM(L194/Q212*1000),""))))) ->  | Q212: =IF(Übertrag!A8>0,VLOOKUP(Übertrag!A8,#REF!,9,FALSE),"") ->  | T212: =IF(Übertrag!A8>0,VLOOKUP(Übertrag!A8,#REF!,10,FALSE),"") ->  | U212: =IF(Übertrag!A8>0,VLOOKUP(Übertrag!A8,#REF!,12,FALSE),"") ->  | Z212: =IF(Übertrag!A9>0,VLOOKUP(Übertrag!A9,#REF!,14,FALSE),"") ->  | AI212: =IF(Übertrag!A9>0,VLOOKUP(Übertrag!A9,#REF!,15,FALSE),"") ->  | AJ212: =IF(AL212="","","1kg=") ->  | AL212: =IF(AO212=0,"",IF(AS212="lose","",IF(AR212="kg",SUM(AJ194/AO212),IF(AR212="g",SUM(AJ194/AO212*1000),IF(AR212="gr",SUM(AJ194/AO212*1000),""))))) ->  | AO212: =IF(Übertrag!A9>0,VLOOKUP(Übertrag!A9,#REF!,9,FALSE),"") ->  | AR212: =IF(Übertrag!A9>0,VLOOKUP(Übertrag!A9,#REF!,10,FALSE),"") ->  | AS212: =IF(Übertrag!A9>0,VLOOKUP(Übertrag!A9,#REF!,12,FALSE),"") -> 
A215: =IF(Übertrag!A8>0,VLOOKUP(Übertrag!A8,#REF!,5,FALSE),"") ->  | Y215: =IF(Übertrag!A9>0,VLOOKUP(Übertrag!A9,#REF!,5,FALSE),"") -> 
A219: =IF(Übertrag!A8>0,VLOOKUP(Übertrag!A8,#REF!,6,FALSE),"") ->  | Y219: =IF(Übertrag!A9>0,VLOOKUP(Übertrag!A9,#REF!,6,FALSE),"") -> 
A231: =IF(Übertrag!A10>0,VLOOKUP(Übertrag!A10,#REF!,2,FALSE),"") ->  | T231: =IF(Übertrag!A10>0,VLOOKUP(Übertrag!A10,#REF!,7,FALSE),"") ->  | Y231: =IF(Übertrag!A11>0,VLOOKUP(Übertrag!A11,#REF!,2,FALSE),"") ->  | AR231: =IF(Übertrag!A11>0,VLOOKUP(Übertrag!A11,#REF!,7,FALSE),"") -> 
A236: =IF(Übertrag!A10>0,VLOOKUP(Übertrag!A10,#REF!,3,FALSE),"") ->  | T236: =IF(Übertrag!A10>0,VLOOKUP(Übertrag!A10,#REF!,8,FALSE),"") ->  | Y236: =IF(Übertrag!A11>0,VLOOKUP(Übertrag!A11,#REF!,3,FALSE),"") ->  | AR236: =IF(Übertrag!A11>0,VLOOKUP(Übertrag!A11,#REF!,8,FALSE),"") -> 
A240: =_xlfn.IFS(Übertrag!A10="","",K262="1",VLOOKUP(Übertrag!A10,#REF!,17,FALSE),Übertrag!A10>0,VLOOKUP(Übertrag!A10,#REF!,16,FALSE)) ->  | L240: =IF(Übertrag!A10>0,VLOOKUP(Übertrag!A10,#REF!,13,FALSE),"") ->  | T240: =IF(Übertrag!A10>0,VLOOKUP(Übertrag!A10,#REF!,4,FALSE),"") ->  | Y240: =_xlfn.IFS(Übertrag!A11="","",AI262="1",VLOOKUP(Übertrag!A11,#REF!,17,FALSE),Übertrag!A11>0,VLOOKUP(Übertrag!A11,#REF!,16,FALSE)) ->  | AJ240: =IF(Übertrag!A11>0,VLOOKUP(Übertrag!A11,#REF!,13,FALSE),"") ->  | AR240: =IF(Übertrag!A11>0,VLOOKUP(Übertrag!A11,#REF!,4,FALSE),"") -> 
L244: =IF(Übertrag!A10>0,VLOOKUP(Übertrag!A10,#REF!,11,FALSE),"") ->  | AJ244: =IF(Übertrag!A11>0,VLOOKUP(Übertrag!A11,#REF!,11,FALSE),"") -> 
B262: =IF(Übertrag!A10>0,VLOOKUP(Übertrag!A10,#REF!,14,FALSE),"") ->  | K262: =IF(Übertrag!A10>0,VLOOKUP(Übertrag!A10,#REF!,15,FALSE),"") ->  | L262: =IF(N262="","","1kg=") ->  | N262: =IF(Q262=0,"",IF(U262="lose","",IF(T262="kg",SUM(L244/Q262),IF(T262="g",SUM(L244/Q262*1000),IF(T262="gr",SUM(L244/Q262*1000),""))))) ->  | Q262: =IF(Übertrag!A10>0,VLOOKUP(Übertrag!A10,#REF!,9,FALSE),"") ->  | T262: =IF(Übertrag!A10>0,VLOOKUP(Übertrag!A10,#REF!,10,FALSE),"") ->  | U262: =IF(Übertrag!A10>0,VLOOKUP(Übertrag!A10,#REF!,12,FALSE),"") ->  | Z262: =IF(Übertrag!A11>0,VLOOKUP(Übertrag!A11,#REF!,14,FALSE),"") ->  | AI262: =IF(Übertrag!A11>0,VLOOKUP(Übertrag!A11,#REF!,15,FALSE),"") ->  | AJ262: =IF(AL262="","","1kg=") ->  | AL262: =IF(AO262=0,"",IF(AS262="lose","",IF(AR262="kg",SUM(AJ244/AO262),IF(AR262="g",SUM(AJ244/AO262*1000),IF(AR262="gr",SUM(AJ244/AO262*1000),""))))) ->  | AO262: =IF(Übertrag!A11>0,VLOOKUP(Übertrag!A11,#REF!,9,FALSE),"") ->  | AR262: =IF(Übertrag!A11>0,VLOOKUP(Übertrag!A11,#REF!,10,FALSE),"") ->  | AS262: =IF(Übertrag!A11>0,VLOOKUP(Übertrag!A11,#REF!,12,FALSE),"") -> 
A265: =IF(Übertrag!A10>0,VLOOKUP(Übertrag!A10,#REF!,5,FALSE),"") ->  | Y265: =IF(Übertrag!A11>0,VLOOKUP(Übertrag!A11,#REF!,5,FALSE),"") -> 
A269: =IF(Übertrag!A10>0,VLOOKUP(Übertrag!A10,#REF!,6,FALSE),"") ->  | Y269: =IF(Übertrag!A11>0,VLOOKUP(Übertrag!A11,#REF!,6,FALSE),"") -> 
A288: =IF(Übertrag!A12>0,VLOOKUP(Übertrag!A12,#REF!,2,FALSE),"") ->  | T288: =IF(Übertrag!A12>0,VLOOKUP(Übertrag!A12,#REF!,7,FALSE),"") ->  | Y288: =IF(Übertrag!A13>0,VLOOKUP(Übertrag!A13,#REF!,2,FALSE),"") ->  | AR288: =IF(Übertrag!A13>0,VLOOKUP(Übertrag!A13,#REF!,7,FALSE),"") -> 
A293: =IF(Übertrag!A12>0,VLOOKUP(Übertrag!A12,#REF!,3,FALSE),"") ->  | T293: =IF(Übertrag!A12>0,VLOOKUP(Übertrag!A12,#REF!,8,FALSE),"") ->  | Y293: =IF(Übertrag!A13>0,VLOOKUP(Übertrag!A13,#REF!,3,FALSE),"") ->  | AR293: =IF(Übertrag!A13>0,VLOOKUP(Übertrag!A13,#REF!,8,FALSE),"") -> 
A297: =_xlfn.IFS(Übertrag!A12="","",K319="1",VLOOKUP(Übertrag!A12,#REF!,17,FALSE),Übertrag!A12>0,VLOOKUP(Übertrag!A12,#REF!,16,FALSE)) ->  | L297: =IF(Übertrag!A12>0,VLOOKUP(Übertrag!A12,#REF!,13,FALSE),"") ->  | T297: =IF(Übertrag!A12>0,VLOOKUP(Übertrag!A12,#REF!,4,FALSE),"") ->  | Y297: =_xlfn.IFS(Übertrag!A13="","",AI319="1",VLOOKUP(Übertrag!A13,#REF!,17,FALSE),Übertrag!A13>0,VLOOKUP(Übertrag!A13,#REF!,16,FALSE)) ->  | AJ297: =IF(Übertrag!A13>0,VLOOKUP(Übertrag!A13,#REF!,13,FALSE),"") ->  | AR297: =IF(Übertrag!A13>0,VLOOKUP(Übertrag!A13,#REF!,4,FALSE),"") -> 
L301: =IF(Übertrag!A12>0,VLOOKUP(Übertrag!A12,#REF!,11,FALSE),"") ->  | AJ301: =IF(Übertrag!A13>0,VLOOKUP(Übertrag!A13,#REF!,11,FALSE),"") -> 
B319: =IF(Übertrag!A12>0,VLOOKUP(Übertrag!A12,#REF!,14,FALSE),"") ->  | K319: =IF(Übertrag!A12>0,VLOOKUP(Übertrag!A12,#REF!,15,FALSE),"") ->  | L319: =IF(N319="","","1kg=") ->  | N319: =IF(Q319=0,"",IF(U319="lose","",IF(T319="kg",SUM(L301/Q319),IF(T319="g",SUM(L301/Q319*1000),IF(T319="gr",SUM(L301/Q319*1000),""))))) ->  | Q319: =IF(Übertrag!A12>0,VLOOKUP(Übertrag!A12,#REF!,9,FALSE),"") ->  | T319: =IF(Übertrag!A12>0,VLOOKUP(Übertrag!A12,#REF!,10,FALSE),"") ->  | U319: =IF(Übertrag!A12>0,VLOOKUP(Übertrag!A12,#REF!,12,FALSE),"") ->  | Z319: =IF(Übertrag!A13>0,VLOOKUP(Übertrag!A13,#REF!,14,FALSE),"") ->  | AI319: =IF(Übertrag!A13>0,VLOOKUP(Übertrag!A13,#REF!,15,FALSE),"") ->  | AJ319: =IF(AL319="","","1kg=") ->  | AL319: =IF(AO319=0,"",IF(AS319="lose","",IF(AR319="kg",SUM(AJ301/AO319),IF(AR319="g",SUM(AJ301/AO319*1000),IF(AR319="gr",SUM(AJ301/AO319*1000),""))))) ->  | AO319: =IF(Übertrag!A13>0,VLOOKUP(Übertrag!A13,#REF!,9,FALSE),"") ->  | AR319: =IF(Übertrag!A13>0,VLOOKUP(Übertrag!A13,#REF!,10,FALSE),"") ->  | AS319: =IF(Übertrag!A13>0,VLOOKUP(Übertrag!A13,#REF!,12,FALSE),"") -> 
A322: =IF(Übertrag!A12>0,VLOOKUP(Übertrag!A12,#REF!,5,FALSE),"") ->  | Y322: =IF(Übertrag!A13>0,VLOOKUP(Übertrag!A13,#REF!,5,FALSE),"") -> 
A326: =IF(Übertrag!A12>0,VLOOKUP(Übertrag!A12,#REF!,6,FALSE),"") ->  | Y326: =IF(Übertrag!A13>0,VLOOKUP(Übertrag!A13,#REF!,6,FALSE),"") -> 
A345: =IF(Übertrag!A14>0,VLOOKUP(Übertrag!A14,#REF!,2,FALSE),"") ->  | T345: =IF(Übertrag!A14>0,VLOOKUP(Übertrag!A14,#REF!,7,FALSE),"") ->  | Y345: =IF(Übertrag!A15>0,VLOOKUP(Übertrag!A15,#REF!,2,FALSE),"") ->  | AR345: =IF(Übertrag!A15>0,VLOOKUP(Übertrag!A15,#REF!,7,FALSE),"") -> 
A350: =IF(Übertrag!A14>0,VLOOKUP(Übertrag!A14,#REF!,3,FALSE),"") ->  | T350: =IF(Übertrag!A14>0,VLOOKUP(Übertrag!A14,#REF!,8,FALSE),"") ->  | Y350: =IF(Übertrag!A15>0,VLOOKUP(Übertrag!A15,#REF!,3,FALSE),"") ->  | AR350: =IF(Übertrag!A15>0,VLOOKUP(Übertrag!A15,#REF!,8,FALSE),"") -> 
A354: =_xlfn.IFS(Übertrag!A14="","",K376="1",VLOOKUP(Übertrag!A14,#REF!,17,FALSE),Übertrag!A14>0,VLOOKUP(Übertrag!A14,#REF!,16,FALSE)) ->  | L354: =IF(Übertrag!A14>0,VLOOKUP(Übertrag!A14,#REF!,13,FALSE),"") ->  | T354: =IF(Übertrag!A14>0,VLOOKUP(Übertrag!A14,#REF!,4,FALSE),"") ->  | Y354: =_xlfn.IFS(Übertrag!A15="","",AI376="1",VLOOKUP(Übertrag!A15,#REF!,17,FALSE),Übertrag!A15>0,VLOOKUP(Übertrag!A15,#REF!,16,FALSE)) ->  | AJ354: =IF(Übertrag!A15>0,VLOOKUP(Übertrag!A15,#REF!,13,FALSE),"") ->  | AR354: =IF(Übertrag!A15>0,VLOOKUP(Übertrag!A15,#REF!,4,FALSE),"") -> 
L358: =IF(Übertrag!A14>0,VLOOKUP(Übertrag!A14,#REF!,11,FALSE),"") ->  | AJ358: =IF(Übertrag!A15>0,VLOOKUP(Übertrag!A15,#REF!,11,FALSE),"") -> 
B376: =IF(Übertrag!A14>0,VLOOKUP(Übertrag!A14,#REF!,14,FALSE),"") ->  | K376: =IF(Übertrag!A14>0,VLOOKUP(Übertrag!A14,#REF!,15,FALSE),"") ->  | L376: =IF(N376="","","1kg=") ->  | N376: =IF(Q376=0,"",IF(U376="lose","",IF(T376="kg",SUM(L358/Q376),IF(T376="g",SUM(L358/Q376*1000),IF(T376="gr",SUM(L358/Q376*1000),""))))) ->  | Q376: =IF(Übertrag!A14>0,VLOOKUP(Übertrag!A14,#REF!,9,FALSE),"") ->  | T376: =IF(Übertrag!A14>0,VLOOKUP(Übertrag!A14,#REF!,10,FALSE),"") ->  | U376: =IF(Übertrag!A14>0,VLOOKUP(Übertrag!A14,#REF!,12,FALSE),"") ->  | Z376: =IF(Übertrag!A15>0,VLOOKUP(Übertrag!A15,#REF!,14,FALSE),"") ->  | AI376: =IF(Übertrag!A15>0,VLOOKUP(Übertrag!A15,#REF!,15,FALSE),"") ->  | AJ376: =IF(AL376="","","1kg=") ->  | AL376: =IF(AO376=0,"",IF(AS376="lose","",IF(AR376="kg",SUM(AJ358/AO376),IF(AR376="g",SUM(AJ358/AO376*1000),IF(AR376="gr",SUM(AJ358/AO376*1000),""))))) ->  | AO376: =IF(Übertrag!A15>0,VLOOKUP(Übertrag!A15,#REF!,9,FALSE),"") ->  | AR376: =IF(Übertrag!A15>0,VLOOKUP(Übertrag!A15,#REF!,10,FALSE),"") ->  | AS376: =IF(Übertrag!A15>0,VLOOKUP(Übertrag!A15,#REF!,12,FALSE),"") -> 
A379: =IF(Übertrag!A14>0,VLOOKUP(Übertrag!A14,#REF!,5,FALSE),"") ->  | Y379: =IF(Übertrag!A15>0,VLOOKUP(Übertrag!A15,#REF!,5,FALSE),"") -> 
A383: =IF(Übertrag!A14>0,VLOOKUP(Übertrag!A14,#REF!,6,FALSE),"") ->  | Y383: =IF(Übertrag!A15>0,VLOOKUP(Übertrag!A15,#REF!,6,FALSE),"") -> 
A402: =IF(Übertrag!A16>0,VLOOKUP(Übertrag!A16,#REF!,2,FALSE),"") ->  | T402: =IF(Übertrag!A16>0,VLOOKUP(Übertrag!A16,#REF!,7,FALSE),"") ->  | Y402: =IF(Übertrag!A17>0,VLOOKUP(Übertrag!A17,#REF!,2,FALSE),"") ->  | AR402: =IF(Übertrag!A17>0,VLOOKUP(Übertrag!A17,#REF!,7,FALSE),"") -> 
A407: =IF(Übertrag!A16>0,VLOOKUP(Übertrag!A16,#REF!,3,FALSE),"") ->  | T407: =IF(Übertrag!A16>0,VLOOKUP(Übertrag!A16,#REF!,8,FALSE),"") ->  | Y407: =IF(Übertrag!A17>0,VLOOKUP(Übertrag!A17,#REF!,3,FALSE),"") ->  | AR407: =IF(Übertrag!A17>0,VLOOKUP(Übertrag!A17,#REF!,8,FALSE),"") -> 
A411: =_xlfn.IFS(Übertrag!A16="","",K433="1",VLOOKUP(Übertrag!A16,#REF!,17,FALSE),Übertrag!A16>0,VLOOKUP(Übertrag!A16,#REF!,16,FALSE)) ->  | L411: =IF(Übertrag!A16>0,VLOOKUP(Übertrag!A16,#REF!,13,FALSE),"") ->  | T411: =IF(Übertrag!A16>0,VLOOKUP(Übertrag!A16,#REF!,4,FALSE),"") ->  | Y411: =_xlfn.IFS(Übertrag!A17="","",AI433="1",VLOOKUP(Übertrag!A17,#REF!,17,FALSE),Übertrag!A17>0,VLOOKUP(Übertrag!A17,#REF!,16,FALSE)) ->  | AJ411: =IF(Übertrag!A17>0,VLOOKUP(Übertrag!A17,#REF!,13,FALSE),"") ->  | AR411: =IF(Übertrag!A17>0,VLOOKUP(Übertrag!A17,#REF!,4,FALSE),"") -> 
L415: =IF(Übertrag!A16>0,VLOOKUP(Übertrag!A16,#REF!,11,FALSE),"") ->  | AJ415: =IF(Übertrag!A17>0,VLOOKUP(Übertrag!A17,#REF!,11,FALSE),"") -> 
B433: =IF(Übertrag!A16>0,VLOOKUP(Übertrag!A16,#REF!,14,FALSE),"") ->  | K433: =IF(Übertrag!A16>0,VLOOKUP(Übertrag!A16,#REF!,15,FALSE),"") ->  | L433: =IF(N433="","","1kg=") ->  | N433: =IF(Q433=0,"",IF(U433="lose","",IF(T433="kg",SUM(L415/Q433),IF(T433="g",SUM(L415/Q433*1000),IF(T433="gr",SUM(L415/Q433*1000),""))))) ->  | Q433: =IF(Übertrag!A16>0,VLOOKUP(Übertrag!A16,#REF!,9,FALSE),"") ->  | T433: =IF(Übertrag!A16>0,VLOOKUP(Übertrag!A16,#REF!,10,FALSE),"") ->  | U433: =IF(Übertrag!A16>0,VLOOKUP(Übertrag!A16,#REF!,12,FALSE),"") ->  | Z433: =IF(Übertrag!A17>0,VLOOKUP(Übertrag!A17,#REF!,14,FALSE),"") ->  | AI433: =IF(Übertrag!A17>0,VLOOKUP(Übertrag!A17,#REF!,15,FALSE),"") ->  | AJ433: =IF(AL433="","","1kg=") ->  | AL433: =IF(AO433=0,"",IF(AS433="lose","",IF(AR433="kg",SUM(AJ415/AO433),IF(AR433="g",SUM(AJ415/AO433*1000),IF(AR433="gr",SUM(AJ415/AO433*1000),""))))) ->  | AO433: =IF(Übertrag!A17>0,VLOOKUP(Übertrag!A17,#REF!,9,FALSE),"") ->  | AR433: =IF(Übertrag!A17>0,VLOOKUP(Übertrag!A17,#REF!,10,FALSE),"") ->  | AS433: =IF(Übertrag!A17>0,VLOOKUP(Übertrag!A17,#REF!,12,FALSE),"") -> 
A436: =IF(Übertrag!A16>0,VLOOKUP(Übertrag!A16,#REF!,5,FALSE),"") ->  | Y436: =IF(Übertrag!A17>0,VLOOKUP(Übertrag!A17,#REF!,5,FALSE),"") -> 
A440: =IF(Übertrag!A16>0,VLOOKUP(Übertrag!A16,#REF!,6,FALSE),"") ->  | Y440: =IF(Übertrag!A17>0,VLOOKUP(Übertrag!A17,#REF!,6,FALSE),"") -> 
